Workbook

Sheet Lotto4 DL560 Gen10 1
C1: TOTALE PRODOTTI CONVENZIONE | D1: =H10 -> 0 | G1: =IF(D106=" OK",0,1) -> 0 | H1: =IF(G1+G2=0,(D1+D2),"ERRORE VERIFICARE LA CONFIGURAZIONE") -> 0
C2: TOTALE ARTICOLI 20% | D2: =H11 -> 0
B3: Indicare qui la quantità Server -----> | D3: 0 | H3: =Riepilogo!T6 -> ver. 3.5 | CD3: 0
A4: Tecnologie Server 2 Lotto 4 Base DL560 Gen10
D10: Totale Server e Opzioni | H10: =F17*SRV_A -> 0
A11: Components: Server HPE Proliant DL560 Gen10 (2CPU Intel® Xeon-Gold 5218) | D11: Totale Ulteriori Opzioni | H11: =G17*SRV_A -> 0
D13: TOTALE CONVENZIONE | H13: =H11+H10 -> 0
F15: 4628
B16: Quantity: | C16: =SRV_A -> 0 | F16: =SUM(F20:F205) -> 0
F17: =SUM(F15:F16) -> 4628 | G17: =SUM(G20:G205) -> 10
B19: Base
B20: HPE DL560 Gen10 8SFF CTO Server | C20: 1 | E20: 841730-B21
B22: Configurazione dello chassis
B23: HP DL560 Gen9 2SFF Media Bay Kit | C23: 1 | E23: 795090-B21
B25: Processore
B26: Intel Xeon-Gold 5218 (2.3GHz/16-core/125W) | C26: 2 | E26: 840399-L21
B27: HPE DL560 Gen10 Intel® Xeon-Gold 5118 (2.3GHz/12-core/105W) Processor | C27: 1 | E27: 840399-B21
B29: Processore aggiuntivo
B30: No Additional Processor | C30: =VLOOKUP($B$30, CPU_A, 2, FALSE) -> 0 | D30: =VLOOKUP($B$30, CPU_A, 3, FALSE) ->  | E30: 840399-L21 | F30: =VLOOKUP(B30, CPU_A, 12, FALSE) -> 0
B32: Mezz Board Option
B33: =VLOOKUP($B$30, CPU_A, 6, FALSE) ->  | C33: =VLOOKUP($B$30, CPU_A, 7, FALSE) ->  | E33: =VLOOKUP($B$30, CPU_A, 8, FALSE) -> 
B35: Memoria Totale in GB | C35: =IF(F30=2584,IF(B36=64,"ATTENZIONE: AUMENTARE LA RAM",""),"") -> 
B36: 128 (DIMM 32GB)
B38: Capacità di memoria
B39: =IF($B$30="No Additional Processor",VLOOKUP($B$36, MEM_A1, 8, FALSE),VLOOKUP($B$36, MEM_A2, 8, FALSE)) -> HPE 32GB 2Rx4 PC4-2933 Smart Kit | C39: =IF($B$30="No Additional Processor",VLOOKUP($B$36, MEM_A1, 9, FALSE),VLOOKUP($B$36, MEM_A2, 9, FALSE)) -> 4 | E39: =IF($B$30="No Additional Processor",VLOOKUP($B$36, MEM_A1, 10, FALSE),VLOOKUP($B$36, MEM_A2, 10, FALSE)) -> 815100-B21
B41: =IF($B$30="No Additional Processor",VLOOKUP($B$36, MEM_A1, 2, FALSE),VLOOKUP($B$36, MEM_A2, 2, FALSE)) -> HPE 32GB 2Rx4 PC4-2933 Smart Kit | C41: =IF($B$30="No Additional Processor",VLOOKUP($B$36, MEM_A1, 3, FALSE),VLOOKUP($B$36, MEM_A2, 3, FALSE)) -> 4 | D41: =IF($B$30="No Additional Processor",VLOOKUP($B$36, MEM_A1, 4, FALSE),VLOOKUP($B$36, MEM_A2, 4, FALSE)) ->  | E41: =IF($B$30="No Additional Processor",VLOOKUP($B$36, MEM_A1, 6, FALSE),VLOOKUP($B$36, MEM_A2, 6, FALSE)) -> 815100-B21 | F41: =IF($B$30="No Additional Processor",VLOOKUP($B$36, MEM_A1, 7, FALSE),VLOOKUP($B$36, MEM_A2, 7, FALSE)) -> 0
B42: =IF($B$30="No Additional Processor",VLOOKUP($B$36, MEM_A1, 11, FALSE),VLOOKUP($B$36, MEM_A2, 11, FALSE)) ->  | C42: =IF($B$30="No Additional Processor",VLOOKUP($B$36, MEM_A1, 12, FALSE),VLOOKUP($B$36, MEM_A2, 12, FALSE)) ->  | D42: =IF($B$30="No Additional Processor",VLOOKUP($B$36, MEM_A1, 13, FALSE),VLOOKUP($B$36, MEM_A2, 13, FALSE)) ->  | E42: =IF($B$30="No Additional Processor",VLOOKUP($B$36, MEM_A1, 15, FALSE),VLOOKUP($B$36, MEM_A2, 15, FALSE)) ->  | F42: =IF($B$30="No Additional Processor",VLOOKUP($B$36, MEM_A1, 16, FALSE),VLOOKUP($B$36, MEM_A2, 16, FALSE)) -> 
B45: Sistema operativo preinstallato
B46: No Operating System | C46: =VLOOKUP($B$46, OS_A, 2, FALSE) ->  | D46: =VLOOKUP($B$46, OS_A, 3, FALSE) ->  | E46: =VLOOKUP($B$46, OS_A, 5, FALSE) ->  | F46: =VLOOKUP($B$46, OS_A, 6, FALSE) -> 
B47: =IF($B$30="No Additional Processor",VLOOKUP($B$46, OS_A, 19, FALSE),VLOOKUP($B$46, OS_A2, 19, FALSE)) ->  | C47: =IF($B$30="No Additional Processor",VLOOKUP($B$46, OS_A, 20, FALSE),VLOOKUP($B$46, OS_A2, 20, FALSE)) -> 0 | D47: =IF($B$30="No Additional Processor",VLOOKUP($B$46, OS_A, 21, FALSE),VLOOKUP($B$46, OS_A2, 21, FALSE)) ->  | E47: =IF($B$30="No Additional Processor",VLOOKUP($B$46, OS_A, 23, FALSE),VLOOKUP($B$46, OS_A2, 23, FALSE)) ->  | F47: =IF($B$30="No Additional Processor",VLOOKUP($B$46, OS_A, 24, FALSE)*C47,VLOOKUP($B$46, OS_A2, 24, FALSE)*C47) -> 0
B48: =IF($B$30="No Additional Processor",VLOOKUP($B$46, OS_A, 25, FALSE),VLOOKUP($B$46, OS_A2, 25, FALSE)) ->  | C48: =IF($B$30="No Additional Processor",VLOOKUP($B$46, OS_A, 26, FALSE),VLOOKUP($B$46, OS_A2, 26, FALSE)) -> 0 | D48: =IF($B$30="No Additional Processor",VLOOKUP($B$46, OS_A, 27, FALSE),VLOOKUP($B$46, OS_A2, 27, FALSE)) ->  | E48: =IF($B$30="No Additional Processor",VLOOKUP($B$46, OS_A, 29, FALSE),VLOOKUP($B$46, OS_A2, 29, FALSE)) ->  | F48: =IF($B$30="No Additional Processor",VLOOKUP($B$46, OS_A, 30, FALSE)*C48,VLOOKUP($B$46, OS_A2, 30, FALSE)*C48) -> 0
B50: Client Access Licenses
B51: =VLOOKUP($B$46, OS_A, 7, FALSE) -> None | C51: 0 | D51: =VLOOKUP($B$46, OS_A, 9, FALSE) ->  | E51: =VLOOKUP($B$46, OS_A, 11, FALSE) ->  | F51: =VLOOKUP($B$46, OS_A, 12, FALSE)*C51 -> 0 | AT51: =SRV_A1=SUM(AJ51:AS51) -> 
B53: =VLOOKUP($B$46, OS_A, 13, FALSE) -> None | C53: 0 | D53: =VLOOKUP($B$46, OS_A, 15, FALSE) ->  | E53: =VLOOKUP($B$46, OS_A, 17, FALSE) ->  | F53: =VLOOKUP($B$46, OS_A, 18, FALSE)*C53 -> 0
B55: VMware vSphere
B56: None | C56: =IF(D56="",0,($C$26+$C$30)) -> 0 | D56: =VLOOKUP($B$56,vmware, 3, FALSE) ->  | E56: =VLOOKUP($B$56,vmware, 5, FALSE) ->  | G56: =VLOOKUP($B$56,vmware, 6, FALSE)*C56 -> 0
B57: VMware vSphere Essentials Plus
B58: None | C58: =VLOOKUP($B$58,vmwareplus, 2, FALSE) -> 0 | D58: =VLOOKUP($B$58,vmwareplus, 3, FALSE) ->  | E58: =VLOOKUP($B$58,vmwareplus, 5, FALSE) ->  | G58: =VLOOKUP($B$58,vmwareplus, 6, FALSE)*C58 -> 0
B59: VMware vCenter Server
B60: None | C60: =VLOOKUP($B$60,vmwarevcenter, 2, FALSE) -> 0 | D60: =VLOOKUP($B$60,vmwarevcenter, 3, FALSE) ->  | E60: =VLOOKUP($B$60,vmwarevcenter, 5, FALSE) ->  | G60: =VLOOKUP($B$60, vmwarevcenter, 6, FALSE)*C60 -> 0
B61: VMware vSAN
B62: None | C62: =IF(D62="",0,($C$26+$C$30)) -> 0 | D62: =VLOOKUP($B$62,wmvsan, 3, FALSE) ->  | E62: =VLOOKUP($B$62,wmvsan, 5, FALSE) ->  | G62: =VLOOKUP($B$62,wmvsan, 6, FALSE)*C62 -> 0
B65: HPE OneView Advanced (with HPE iLO Advanced)
B66: None | C66: =VLOOKUP($B$66, OpzOVAdv, 2, FALSE) -> 0 | D66: =VLOOKUP($B$66, OpzOVAdv, 3, FALSE) ->  | E66: =VLOOKUP($B$66, OpzOVAdv, 5, FALSE) ->  | G66: =VLOOKUP($B$66, OpzOVAdv, 6, FALSE) -> 0
B68: Configurazione dello chassis
B69: HPE DL560 Gen10 8SFF HDD Bay3 Kit | C69: 1 | E69: 872237-B21
B71: HPE DL560 Gen10 8SFF HDD Bay2 Kit | C71: 0 | D71: =VLOOKUP($C$71, HDD_Bay2, 2, FALSE) ->  | E71: =VLOOKUP($C$71, HDD_Bay2, 3, FALSE) ->  | F71: =VLOOKUP($C$71, HDD_Bay2, 4, FALSE) ->  | G71: =IF(C74>=1,0,VLOOKUP($C$71,HDD_Bay2,5,FALSE)) -> 0
B74: HPE DL560 Gen10 8SFF HDD Bay1 Kit | C74: 0 | D74: =VLOOKUP($C$74, HDD_BAY1, 2, FALSE) ->  | E74: =VLOOKUP($C$74, HDD_BAY1, 3, FALSE) ->  | F74: =VLOOKUP($C$74, HDD_BAY1, 4, FALSE) ->  | G74: =VLOOKUP($C$74,HDD_BAY1,5,FALSE) -> 0
B76: Controller RAID
B77: HPE Smart Array P408i-a SR Gen10 | C77: 1 | E77: 869081-B21
B79: HPE 96W Smart Storage Battery with 145mm Cable Kit | C79: 1 | E79: P01366-B21
B81: =IF(C74+C71=0,"","HPE DL5x0 Gen10 12Gb SAS Expander Card Kit with Cables") ->  | C81: =IF(C74+C71=0,"",1) ->  | D81: =IF(C74+C71=0,"","TS2L4-SASBAY1") ->  | E81: =IF(C74=0,"","873444-B21") -> 
B83: =IF(C69+C71+C74=1,"Dischi rigidi (numero massimo totale 8)",(IF(C69+C71+C74=2,"Dischi rigidi (numero massimo totale 16)","Dischi rigidi (numero massimo totale 24)"))) -> Dischi rigidi (numero massimo totale 8)
B84: HPE 300GB SAS 15K SFF SC DS HDD | C84: 2 | E84: 870753-B21
B86: HPE 300GB SAS 15K SFF SC DS HDD | C86: 2 | D86: TS2L4-15K300 | E86: 870753-B21 | F86: =IF(C86<=2,0,C86-2)*135 -> 0
B88: HPE 1.2TB SAS 10K SFF SC DS HDD | C88: 0 | D88: TS2L4-10K1200 | E88: 872479-B21 | F88: =C88*146 -> 0
A90: HDD SAS | B90: HPE 1.8TB SAS 10K SFF HDD | C90: 0 | D90: TS2L4-10K1800 | E90: 872481-B21 | G90: =C90*190 -> 0
B92: HPE 480GB SAS 12G SFF SC DS SSD | C92: 0 | D92: TS2L4-SSD480 | E92: ????? | F92: =C92*399 -> 0
B94: HPE 960GB SAS 12G Read Intensive SFF SC DS SSD | C94: 0 | D94: TS2L4-SSDR960 | E94: P06584-B21 | F94: =C94*664 -> 0
B96: HPE 400GB SAS 12G Mixed Use SFF (2.5in) SC DS SSD | C96: 0 | D96: TS2L4-SSD400MU | E96: P09088-B21 | G96: =C96*622 -> 0
B98: HPE 400GB SAS 12G Write Intensive SFF (2.5in) SC DS SSD | C98: 0 | D98: TS2L4-SSD400WIB | E98: P09098-B21 | G98: =C98*959 -> 0
A99: SSD SAS
B100: HPE 800GB SAS 12G Mixed Use SFF (2.5in) SC DS SSD | C100: 0 | D100: TS2L4-SSD800MU | E100: P09090-B21 | G100: =C100*980 -> 0
B102: HPE 960GB SAS 12G Mixed Use SC 3yr Wty Value SAS DS SSD | C102: 0 | D102: TS2L4-SSD960MU | E102: P10448-B21 | G102: =C102*864 -> 0
B104: HPE 1.92TB SAS 12G RI SFF SSD | C104: 0 | D104: TS2L4-SSDR1920 | E104: P04519-B21 | G104: =C104*1313 -> 0
B106: DISCHI TOTALI | C106: =SUM(C86:C104) -> 2 | D106: =IF(C106<=((C69+C71+C74)*8)," OK"," ERRORE: Totale n° di dischi superiore al consentito") -> OK
B108: NOTE sulla configurazione (CAMPO OBBLIGATORIO)
A109: =IF(C106<=((C69+C71+C74)*8),"","ERRORE: Totale n° di dischi superiore al consentito") ->  | B109: Specificare la configurazione RAID per l'installazione del Sistema Operativo, se richiesto. e/o inserire eventuali note. | E109: Specificare la configurazione RAID per l'installazione del Sistema Operativo, se richiesto. e/o inserire eventuali note. | H109: =IF(B109=E109,"ERRORE: Compilare il campo NOTE","") -> ERRORE: Compilare il campo NOTE
B110: Configurazione RAID con HDD 300GB
B111: RAID 1 (2 HDDs) | C111: 1 | E111: =VLOOKUP($B$111, RAID_A1, 2, FALSE) -> 
B112: Hot Spare for 300GB HDD | C112: No
B114: Micro SD (USB Flash Drive) | C114: 0
B115: None | C115: =VLOOKUP($B$115,microsd, 2, FALSE) -> 0 | D115: =VLOOKUP($B$115,microsd, 3, FALSE) ->  | E115: =VLOOKUP($B$115,microsd, 5, FALSE) ->  | G115: =VLOOKUP($B$115, microsd, 6, FALSE)*C115 -> 0
C116: 0
B118: Alimentatore
B119: HPE 1600W Flex Slot Platinum Hot Plug Low Halogen Power Supply Kit | C119: 2 | E119: 830272-B21
B121: PCIe Riser
B122: Primary & Secondary Riser | C122: 1 | E122: 870548-B21
B124: Secondary Riser | C124: 0 | D124: =VLOOKUP($C$124, Riser2, 2, FALSE) ->  | E124: =VLOOKUP($C$124, Riser2, 3, FALSE) ->  | F124: =VLOOKUP($C$124, Riser2, 4, FALSE) ->  | G124: =VLOOKUP($C$124, Riser2, 5, FALSE) -> 0 | H124: =IF(C124+C126=2,"ERRORE - SELEZIONARE SOLO UNA SECONDARY RISER","") -> 
B126: Secondary Riser for GPU (abilita l'installazione della GPU P2000 su slot 5) | C126: 0 | D126: =VLOOKUP($C$126, Riser2GPU, 2, FALSE) ->  | E126: =VLOOKUP($C$126, Riser2GPU, 3, FALSE) ->  | F126: =VLOOKUP($C$126, Riser2GPU, 4, FALSE) ->  | G126: =VLOOKUP($C$126, Riser2GPU, 5, FALSE) -> 0
B128: Tertiary riser | C128: 0 | D128: =VLOOKUP($C$128, Riser3, 2, FALSE) ->  | E128: =VLOOKUP($C$128, Riser3, 3, FALSE) ->  | F128: =VLOOKUP($C$128, Riser3, 4, FALSE) ->  | G128: =VLOOKUP($C$128, Riser3, 5, FALSE) -> 0
B130: Scheda FlexibleLOM
B131: HPE Ethernet 1Gb 4-port 331FLR Adapter | C131: =VLOOKUP(B131, FLR_Slot, 2, FALSE) -> 1 | D131: =VLOOKUP(B131, FLR_Slot, 3, FALSE) ->  | E131: =VLOOKUP(B131, FLR_Slot, 5, FALSE) ->  | F131: =VLOOKUP(B131, FLR_Slot, 6, FALSE) ->  | G131: =VLOOKUP(B131, FLR_Slot, 9, FALSE) -> 0
B133: Additional Card for PCIe Slot 1 x8 CPU 1
B134: None | C134: =IF(B134=B81,"",VLOOKUP(B134, PCI_A1, 2, FALSE)) ->  | D134: =IF(B134=B81,"",VLOOKUP(B134, PCI_A1, 3, FALSE)) ->  | E134: =IF(B134=B81,"",VLOOKUP(B134, PCI_A1, 5, FALSE)) ->  | F134: =IF(B134=B81,"",VLOOKUP(B134, PCI_A1, 6, FALSE)) ->  | G134: =IF(B134=B81,"",VLOOKUP($B$134,PCI_A1,9,FALSE)) -> 0
B136: Additional Card for PCIe Slot 2 x16 CPU 1
B137: None | C137: =VLOOKUP(B137, PCI_A2, 2, FALSE) ->  | D137: =VLOOKUP(B137, PCI_A2, 3, FALSE) ->  | E137: =VLOOKUP(B137, PCI_A2, 5, FALSE) ->  | F137: =VLOOKUP(B137, PCI_A2, 6, FALSE) ->  | G137: =VLOOKUP(B137, PCI_A2, 9, FALSE) -> 0
B139: Additional Card for PCIe Slot 3 x8 CPU 1
B140: None | C140: =VLOOKUP(B140, PCI_A2, 2, FALSE) ->  | D140: =VLOOKUP(B140, PCI_A2, 3, FALSE) ->  | E140: =VLOOKUP(B140, PCI_A2, 5, FALSE) ->  | F140: =VLOOKUP(B140, PCI_A2, 6, FALSE) ->  | G140: =VLOOKUP(B140, PCI_A2, 9, FALSE) -> 0
B142: =IF(C126=1,"Additional Card for PCIe Slot 4 x8 CPU 2 ","Additional Card for PCIe Slot 4 x8 CPU 2 ") -> Additional Card for PCIe Slot 4 x8 CPU 2
B143: None | C143: =VLOOKUP(B143, PCI_A2, 2, FALSE) ->  | D143: =VLOOKUP(B143, PCI_A2, 3, FALSE) ->  | E143: =VLOOKUP(B143, PCI_A2, 5, FALSE) ->  | F143: =VLOOKUP(B143, PCI_A2, 6, FALSE) ->  | G143: =VLOOKUP(B143, PCI_A2, 9, FALSE) -> 0
B145: Additional Card for PCIe Slot 5 (GPU SLOT) x16 CPU 2
B146: None | C146: =VLOOKUP(B146, PCI_A5, 2, FALSE) ->  | D146: =VLOOKUP(B146, PCI_A5, 3, FALSE) ->  | E146: =VLOOKUP(B146, PCI_A5, 5, FALSE) ->  | F146: =VLOOKUP(B146, PCI_A5, 6, FALSE) ->  | G146: =VLOOKUP(B146, PCI_A5, 9, FALSE) -> 0
B148: Additional Card for PCIe Slot 6 x8 CPU 2
B149: None | C149: =VLOOKUP(B149, PCI_A2, 2, FALSE) ->  | D149: =VLOOKUP(B149, PCI_A2, 3, FALSE) ->  | E149: =VLOOKUP(B149, PCI_A2, 5, FALSE) ->  | F149: =VLOOKUP(B149, PCI_A2, 6, FALSE) ->  | G149: =VLOOKUP(B149, PCI_A2, 9, FALSE) -> 0
B151: Additional Card for PCIe Slot 7 x8 CPU 2
B152: None | C152: =IF($B$152="Aggiungere Tertiary riser","",VLOOKUP(B152,PCI_A2,2,FALSE)) ->  | D152: =IF($B$152="Aggiungere Tertiary riser","",VLOOKUP(B152,PCI_A2,3,FALSE)) ->  | E152: =IF($B$152="Aggiungere Tertiary riser","",VLOOKUP(B152,PCI_A2,5,FALSE)) ->  | F152: =IF($B$152="Aggiungere Tertiary riser","",VLOOKUP(B152,PCI_A2,6,FALSE)) ->  | G152: =IF($B$152="Aggiungere Tertiary riser","",VLOOKUP(B152,PCI_A2,9,FALSE)) -> 0
B154: Additional Card for PCIe Slot 8 x8 CPU 2
B155: None | C155: =IF($B$155="Aggiungere Tertiary riser","",VLOOKUP(B155,PCI_A2,2,FALSE)) ->  | D155: =IF($B$155="Aggiungere Tertiary riser","",VLOOKUP(B155,PCI_A2,3,FALSE)) ->  | E155: =IF($B$155="Aggiungere Tertiary riser","",VLOOKUP(B155,PCI_A2,5,FALSE)) ->  | F155: =IF($B$155="Aggiungere Tertiary riser","",VLOOKUP(B155,PCI_A2,6,FALSE)) ->  | G155: =IF($B$155="Aggiungere Tertiary riser","",VLOOKUP(B155,PCI_A2,9,FALSE)) -> 0
B157: Bezel
B158: None | C158: 1
B160: Unità ottica
B161: HP Mobile USB DVDRW Drive | C161: 1 | E161: 701498-B21
B163: Accessori per Server
B164: HP BLc 10G SFP+ SR Transceiver | E164: 455883-B21
B166: Cavi rj45
B167: Cavo Rete UTP cat. 5e 3 metri | C167: 5 | D167: =IF(C167=0,"","TS2L4-3MRJ45") -> TS2L4-3MRJ45 | E167: ROS1403/G | G167: =2*C167 -> 10
B169: Direct Attach Cables
B170: HPE X240 10G SFP+ SFP+ 3m DAC Cable | C170: 0 | D170: =IF(C170=0,"","TS2L4-DACX240M3") ->  | E170: JD097C | G170: =C170*81 -> 0
B172: HPE X240 10G SFP+ SFP+ 5m DAC Cable | C172: 0 | D172: =IF(C172=0,"","TS2L4-DACX240M5") ->  | E172: JG081C | G172: =C172*95 -> 0
B174: HPE X240 10G SFP+ SFP+ 7m DAC Cable | C174: 0 | D174: =IF(C174=0,"","TS2L4-DACX240M7") ->  | E174: JC784C | G174: =C174*106 -> 0
B176: HPE 25Gb SFP28 to SFP28 3m Direct Attach Cable | C176: 0 | D176: =IF(C176=0,"","TS2L4-DAC3SFP28") ->  | G176: =C176*134 -> 0
B178: InfiniBand Copper Cable
B179: HPE 2M FDR Quad Small Form Factor Pluggable InfiniBand Copper Cable | C179: 0 | D179: =IF(C179=0,"","TS2L4-DACQSFPM2") ->  | E179: 670759-B24 | G179: =C179*147 -> 0
B181: Omni-Path Architecture Copper Cable
B182: HPE 2M 100Gb QSFP28 Omni-Path Architecture Copper Cable | C182: 0 | D182: =IF(C182=0,"","TS2L4-DAC100M2") ->  | E182: 830024-B24 | G182: =C182*117 -> 0
B184: HPE 3M 100Gb QSFP28 Omni-Path Architecture Copper Cable | C184: 0 | D184: =IF(C184=0,"","TS2L4-DAC100M3") ->  | E184: 830024-B25 | G184: =C184*147 -> 0
B185: 1
B186: Omni-Path Architecture Optical
B187: HPE 3M 100Gb QSFP28 Omni-Path Architecture Optical Power Class 2 Cable | C187: 0 | D187: =IF(C187=0,"","TS2L4-DACAOCM3") ->  | E187: 881204-B21 | G187: =C187*612 -> 0
B189: HPE 5M 100Gb QSFP28 Omni-Path Architecture Optical Power Class 2 Cable | C189: 0 | D189: =IF(C189=0,"","TS2L4-DACAOCM5") ->  | E189: 881204-B22 | G189: =C189*619 -> 0
B191: HPE 7M 100Gb QSFP28 Omni-Path Architecture Optical Power Class 2 Cable | C191: 0 | D191: =IF(C191=0,"","TS2L4-DACAOCM7") ->  | E191: 881204-B23 | G191: =C191*627 -> 0
B193: Optical Transceiver
B194: HPE 10Gb SFP+ SR Transceiver | C194: 0 | D194: =IF(C194=0,"","TS2L4-10OTSR") ->  | E194: 455883-B21 | G194: =C194*230 -> 0
B196: HPE 10G SFP+ LR Transceiver | C196: 0 | D196: =IF(C196=0,"","TS2L4-10OTLR") ->  | E196: 455886-B21 | G196: =C196*481 -> 0
B198: HPE 25Gb SFP28 SR 100m Transceiver | C198: 0 | D198: =IF(C198=0,"","TS2L4-SFP28SR") ->  | G198: =C198*887 -> 0
B200: Estensione di Garanzia
B201: None | C201: =VLOOKUP($B$201, SO_B1,2, FALSE) ->  | D201: =VLOOKUP($B$201, SO_B1, 3, FALSE) ->  | E201: =VLOOKUP($B$201, SO_B1, 5, FALSE) ->  | F201: =VLOOKUP($B$201, SO_B1, 6, FALSE) -> 
B204: None | C204: =VLOOKUP($B$204, SO_A2, 2, FALSE) ->  | D204: =VLOOKUP($B$204, SO_A2, 3, FALSE) ->  | E204: =VLOOKUP($B$204, SO_A2,5, FALSE) ->  | F204: =VLOOKUP($B$204, SO_A2, 6, FALSE) -> 

Sheet Lotto4 DL560 Gen10 2
C1: TOTALE PRODOTTI CONVENZIONE | D1: =H10 -> 0 | G1: =IF(D106=" OK",0,1) -> 0 | H1: =IF(G1+G2=0,(D1+D2),"ERRORE VERIFICARE LA CONFIGURAZIONE") -> 0
C2: TOTALE ARTICOLI 20% | D2: =H11 -> 0
B3: Indicare qui la quantità Server -----> | D3: 0 | H3: =Riepilogo!T6 -> ver. 3.5
A4: Tecnologie Server 2 Lotto 4 Base DL560 Gen10
D10: Totale Server e Opzioni | H10: =F17*SRV_AA -> 0
A11: Components: Server HPE Proliant DL560 Gen10 (2CPU Intel® Xeon-Gold 5218) | D11: Totale Ulteriori Opzioni | H11: =G17*SRV_AA -> 0
D13: TOTALE CONVENZIONE | H13: =H11+H10 -> 0
F15: 4628
B16: Quantity: | C16: =SRV_AA -> 0 | F16: =SUM(F20:F205) -> 0
F17: =SUM(F15:F16) -> 4628 | G17: =SUM(G20:G205) -> 10
B19: Base
B20: HPE DL560 Gen10 8SFF CTO Server | C20: 1 | E20: 841730-B21
B22: Configurazione dello chassis
B23: HP DL560 Gen9 2SFF Media Bay Kit | C23: 1 | E23: 795090-B21
B25: Processore
B26: Intel Xeon-Gold 5218 (2.3GHz/16-core/125W) | C26: 2 | E26: 840399-L21
B27: HPE DL560 Gen10 Intel® Xeon-Gold 5118 (2.3GHz/12-core/105W) Processor | C27: 1 | E27: 840399-B21
B29: Processore aggiuntivo
B30: No Additional Processor | C30: =VLOOKUP($B$30, CPU_A, 2, FALSE) -> 0 | D30: =VLOOKUP($B$30, CPU_A, 3, FALSE) ->  | E30: =VLOOKUP($B$30, CPU_A, 5, FALSE) ->  | F30: =VLOOKUP(B30, CPU_A, 12, FALSE) -> 0
B32: Mezz Board Option
B33: =VLOOKUP($B$30, CPU_A, 6, FALSE) ->  | C33: =VLOOKUP($B$30, CPU_A, 7, FALSE) ->  | E33: =VLOOKUP($B$30, CPU_A, 8, FALSE) -> 
B35: Memoria Totale in GB | C35: =IF(F30=2584,IF(B36=64,"ATTENZIONE: AUMENTARE LA RAM",""),"") -> 
B36: 128 (DIMM 32GB)
B38: Capacità di memoria
B39: =IF($B$30="No Additional Processor",VLOOKUP($B$36, MEM_A1, 8, FALSE),VLOOKUP($B$36, MEM_A2, 8, FALSE)) -> HPE 32GB 2Rx4 PC4-2933 Smart Kit | C39: =IF($B$30="No Additional Processor",VLOOKUP($B$36, MEM_A1, 9, FALSE),VLOOKUP($B$36, MEM_A2, 9, FALSE)) -> 4 | E39: =IF($B$30="No Additional Processor",VLOOKUP($B$36, MEM_A1, 10, FALSE),VLOOKUP($B$36, MEM_A2, 10, FALSE)) -> 815100-B21
B41: =IF($B$30="No Additional Processor",VLOOKUP($B$36, MEM_A1, 2, FALSE),VLOOKUP($B$36, MEM_A2, 2, FALSE)) -> HPE 32GB 2Rx4 PC4-2933 Smart Kit | C41: =IF($B$30="No Additional Processor",VLOOKUP($B$36, MEM_A1, 3, FALSE),VLOOKUP($B$36, MEM_A2, 3, FALSE)) -> 4 | D41: =IF($B$30="No Additional Processor",VLOOKUP($B$36, MEM_A1, 4, FALSE),VLOOKUP($B$36, MEM_A2, 4, FALSE)) ->  | E41: =IF($B$30="No Additional Processor",VLOOKUP($B$36, MEM_A1, 6, FALSE),VLOOKUP($B$36, MEM_A2, 6, FALSE)) -> 815100-B21 | F41: =IF($B$30="No Additional Processor",VLOOKUP($B$36, MEM_A1, 7, FALSE),VLOOKUP($B$36, MEM_A2, 7, FALSE)) -> 0
B42: =IF($B$30="No Additional Processor",VLOOKUP($B$36, MEM_A1, 11, FALSE),VLOOKUP($B$36, MEM_A2, 11, FALSE)) ->  | C42: =IF($B$30="No Additional Processor",VLOOKUP($B$36, MEM_A1, 12, FALSE),VLOOKUP($B$36, MEM_A2, 12, FALSE)) ->  | D42: =IF($B$30="No Additional Processor",VLOOKUP($B$36, MEM_A1, 13, FALSE),VLOOKUP($B$36, MEM_A2, 13, FALSE)) ->  | E42: =IF($B$30="No Additional Processor",VLOOKUP($B$36, MEM_A1, 15, FALSE),VLOOKUP($B$36, MEM_A2, 15, FALSE)) ->  | F42: =IF($B$30="No Additional Processor",VLOOKUP($B$36, MEM_A1, 16, FALSE),VLOOKUP($B$36, MEM_A2, 16, FALSE)) -> 
B45: Sistema operativo preinstallato
B46: No Operating System | C46: =VLOOKUP($B$46, OS_A, 2, FALSE) ->  | D46: =VLOOKUP($B$46, OS_A, 3, FALSE) ->  | E46: =VLOOKUP($B$46, OS_A, 5, FALSE) ->  | F46: =VLOOKUP($B$46, OS_A, 6, FALSE) -> 
B47: =IF($B$30="No Additional Processor",VLOOKUP($B$46, OS_A, 19, FALSE),VLOOKUP($B$46, OS_A2, 19, FALSE)) ->  | C47: =IF($B$30="No Additional Processor",VLOOKUP($B$46, OS_A, 20, FALSE),VLOOKUP($B$46, OS_A2, 20, FALSE)) -> 0 | D47: =IF($B$30="No Additional Processor",VLOOKUP($B$46, OS_A, 21, FALSE),VLOOKUP($B$46, OS_A2, 21, FALSE)) ->  | E47: =IF($B$30="No Additional Processor",VLOOKUP($B$46, OS_A, 23, FALSE),VLOOKUP($B$46, OS_A2, 23, FALSE)) ->  | F47: =IF($B$30="No Additional Processor",VLOOKUP($B$46, OS_A, 24, FALSE)*C47,VLOOKUP($B$46, OS_A2, 24, FALSE)*C47) -> 0 | H47: =IF(D46="TS1L2-WIN1",3,IF(D46="TS1L2-WINDC1",4,0)) -> 0
B48: =IF($B$30="No Additional Processor",VLOOKUP($B$46, OS_A, 25, FALSE),VLOOKUP($B$46, OS_A2, 25, FALSE)) ->  | C48: =IF($B$30="No Additional Processor",VLOOKUP($B$46, OS_A, 26, FALSE),VLOOKUP($B$46, OS_A2, 26, FALSE)) -> 0 | D48: =IF($B$30="No Additional Processor",VLOOKUP($B$46, OS_A, 27, FALSE),VLOOKUP($B$46, OS_A2, 27, FALSE)) ->  | E48: =IF($B$30="No Additional Processor",VLOOKUP($B$46, OS_A, 29, FALSE),VLOOKUP($B$46, OS_A2, 29, FALSE)) ->  | F48: =IF($B$30="No Additional Processor",VLOOKUP($B$46, OS_A, 30, FALSE)*C48,VLOOKUP($B$46, OS_A2, 30, FALSE)*C48) -> 0
B50: Client Access Licenses
B51: =VLOOKUP($B$46, OS_A, 7, FALSE) -> None | C51: 0 | D51: =VLOOKUP($B$46, OS_A, 9, FALSE) ->  | E51: =VLOOKUP($B$46, OS_A, 11, FALSE) ->  | F51: =VLOOKUP($B$46, OS_A, 12, FALSE)*C51 -> 0
B53: =VLOOKUP($B$46, OS_A, 13, FALSE) -> None | C53: 0 | D53: =VLOOKUP($B$46, OS_A, 15, FALSE) ->  | E53: =VLOOKUP($B$46, OS_A, 17, FALSE) ->  | F53: =VLOOKUP($B$46, OS_A, 18, FALSE)*C53 -> 0
B55: VMware vSphere
B56: None | C56: =IF(D56="",0,($C$26+$C$30)) -> 0 | D56: =VLOOKUP($B$56,vmware, 3, FALSE) ->  | E56: =VLOOKUP($B$56,vmware, 5, FALSE) ->  | G56: =VLOOKUP($B$56,vmware, 6, FALSE)*C56 -> 0
B57: VMware vCenter Server Standard
B58: None | C58: =VLOOKUP($B$58,vmwareplus, 2, FALSE) -> 0 | D58: =VLOOKUP($B$58,vmwareplus, 3, FALSE) ->  | E58: =VLOOKUP($B$58,vmwareplus, 5, FALSE) ->  | G58: =VLOOKUP($B$58,vmwareplus, 6, FALSE)*C58 -> 0
B59: Essentials Plus Kit
B60: None | C60: =VLOOKUP($B$60,vmwarevcenter, 2, FALSE) -> 0 | D60: =VLOOKUP($B$60,vmwarevcenter, 3, FALSE) ->  | E60: =VLOOKUP($B$60,vmwarevcenter, 5, FALSE) ->  | G60: =VLOOKUP($B$60, vmwarevcenter, 6, FALSE)*C60 -> 0
B61: VMware vSAN
B62: None | C62: =IF(D62="",0,($C$26+$C$30)) -> 0 | D62: =VLOOKUP($B$62,wmvsan, 3, FALSE) ->  | E62: =VLOOKUP($B$62,wmvsan, 5, FALSE) ->  | G62: =VLOOKUP($B$62,wmvsan, 6, FALSE)*C62 -> 0
B65: HPE OneView Advanced (with HPE iLO Advanced)
B66: None | C66: =VLOOKUP($B$66, OpzOVAdv, 2, FALSE) -> 0 | D66: =VLOOKUP($B$66, OpzOVAdv, 3, FALSE) ->  | E66: =VLOOKUP($B$66, OpzOVAdv, 5, FALSE) ->  | G66: =VLOOKUP($B$66, OpzOVAdv, 6, FALSE) -> 0
B68: Configurazione dello chassis
B69: HPE DL560 Gen10 8SFF HDD Bay3 Kit | C69: 1 | E69: 872237-B21
B71: HPE DL560 Gen10 8SFF HDD Bay2 Kit | C71: 0 | D71: =VLOOKUP($C$71, HDD_Bay2, 2, FALSE) ->  | E71: =VLOOKUP($C$71, HDD_Bay2, 3, FALSE) ->  | F71: =VLOOKUP($C$71, HDD_Bay2, 4, FALSE) ->  | G71: =IF(C74>=1,0,VLOOKUP($C$71,HDD_Bay2,5,FALSE)) -> 0
B74: HPE DL560 Gen10 8SFF HDD Bay1 Kit | C74: 0 | D74: =VLOOKUP($C$74, HDD_BAY1, 2, FALSE) ->  | E74: =VLOOKUP($C$74, HDD_BAY1, 3, FALSE) ->  | F74: =VLOOKUP($C$74, HDD_BAY1, 4, FALSE) ->  | G74: =VLOOKUP($C$74,HDD_BAY1,5,FALSE) -> 0
B76: Controller RAID
B77: HPE Smart Array P408i-a SR Gen10 | C77: 1 | E77: 869081-B21
B79: HPE 96W Smart Storage Battery with 145mm Cable Kit | C79: 1 | E79: P01366-B21
B81: =IF(C74+C71=0,"","HPE DL5x0 Gen10 12Gb SAS Expander Card Kit with Cables") ->  | C81: =IF(C74+C71=0,"",1) ->  | D81: =IF(C74+C71=0,"","TS2L4-SASBAY1") ->  | E81: =IF(C74=0,"","873444-B21") -> 
B83: =IF(C65+C67+C69=1,"Dischi rigidi (numero massimo totale 8)",(IF(C65+C67+C69=2,"Dischi rigidi (numero massimo totale 16)","Dischi rigidi (numero massimo totale 24)"))) -> Dischi rigidi (numero massimo totale 8)
B84: HPE 300GB SAS 15K SFF SC DS HDD | C84: 2 | E84: 870753-B21
B86: HPE 300GB SAS 15K SFF SC DS HDD | C86: 2 | D86: TS2L4-15K300 | E86: 870753-B21 | F86: =IF(C86<=2,0,C86-2)*135 -> 0
B88: HPE 1.2TB SAS 10K SFF SC DS HDD | C88: 0 | D88: TS2L4-10K1200 | E88: 872479-B21 | F88: =C88*146 -> 0
A90: HDD SAS | B90: HPE 1.8TB SAS 10K SFF HDD | C90: 0 | D90: TS2L4-10K1800 | E90: 872481-B21 | G90: =C90*190 -> 0
B92: HPE 480GB SAS 12G SFF SC DS SSD | C92: 0 | D92: TS2L4-SSD480 | E92: ????? | F92: =C92*399 -> 0
B94: HPE 960GB SAS 12G Read Intensive SFF SC DS SSD | C94: 0 | D94: TS2L4-SSDR960 | E94: P06584-B21 | F94: =C94*664 -> 0
B96: HPE 400GB SAS 12G Mixed Use SFF (2.5in) SC DS SSD | C96: 0 | D96: TS2L4-SSD400MU | E96: P09088-B21 | G96: =C96*622 -> 0
B98: HPE 400GB SAS 12G Write Intensive SFF (2.5in) SC DS SSD | C98: 0 | D98: TS2L4-SSD400WIB | E98: P09098-B21 | G98: =C98*959 -> 0
A99: SSD SAS
B100: HPE 800GB SAS 12G Mixed Use SFF (2.5in) SC DS SSD | C100: 0 | D100: TS2L4-SSD800MU | E100: P09090-B21 | G100: =C100*980 -> 0
B102: HPE 960GB SAS 12G Mixed Use SC 3yr Wty Value SAS DS SSD | C102: 0 | D102: TS2L4-SSD960MU | E102: P10448-B21 | G102: =C102*864 -> 0
B104: HPE 1.92TB SAS 12G RI SFF SSD | C104: 0 | D104: TS2L4-SSDR1920 | E104: P04519-B21 | G104: =C104*1313 -> 0
B106: DISCHI TOTALI | C106: =SUM(C86:C104) -> 2 | D106: =IF(C106<=((C69+C71+C74)*8)," OK"," ERRORE: Totale n° di dischi superiore al consentito") -> OK
B108: NOTE sulla configurazione (CAMPO OBBLIGATORIO)
A109: =IF(C106<=((C69+C71+C74)*8),"","ERRORE: Totale n° di dischi superiore al consentito") ->  | B109: Specificare la configurazione RAID per l'installazione del Sistema Operativo, se richiesto. e/o inserire eventuali note. | E109: Specificare la configurazione RAID per l'installazione del Sistema Operativo, se richiesto. e/o inserire eventuali note. | H109: =IF(B109=E109,"ERRORE: Compilare il campo NOTE","") -> ERRORE: Compilare il campo NOTE
B110: Configurazione RAID con HDD 300GB
B111: RAID 1 (2 HDDs) | C111: 1 | E111: =VLOOKUP($B$111, RAID_A1, 2, FALSE) -> 
B112: Hot Spare for 300GB HDD | C112: No
B114: Micro SD (USB Flash Drive) | C114: 0
B115: None | C115: =VLOOKUP($B$115,microsd, 2, FALSE) -> 0 | D115: =VLOOKUP($B$115,microsd, 3, FALSE) ->  | E115: =VLOOKUP($B$115,microsd, 5, FALSE) ->  | G115: =VLOOKUP($B$115, microsd, 6, FALSE)*C115 -> 0
B116: Hot Spare for 1TB HDD | C116: 0
B118: Alimentatore
B119: HPE 1600W Flex Slot Platinum Hot Plug Low Halogen Power Supply Kit | C119: 2 | E119: 830272-B21
B121: PCIe Riser
B122: Primary & Secondary Riser | C122: 1 | E122: 870548-B21
B124: Secondary Riser | C124: 0 | D124: =VLOOKUP($C$124, Riser2, 2, FALSE) ->  | E124: =VLOOKUP($C$124, Riser2, 3, FALSE) ->  | F124: =VLOOKUP($C$124, Riser2, 4, FALSE) ->  | G124: =VLOOKUP($C$124, Riser2, 5, FALSE) -> 0
B126: Secondary Riser for GPU (abilita l'installazione della GPU P2000 su slot 5) | C126: 0 | D126: =VLOOKUP($C$126, Riser2GPU, 2, FALSE) ->  | E126: =VLOOKUP($C$126, Riser2GPU, 3, FALSE) ->  | F126: =VLOOKUP($C$126, Riser2GPU, 4, FALSE) ->  | G126: =VLOOKUP($C$126, Riser2GPU, 5, FALSE) -> 0
B128: Tertiary riser | C128: 0 | D128: =VLOOKUP($C$128, Riser3, 2, FALSE) ->  | E128: =VLOOKUP($C$128, Riser3, 3, FALSE) ->  | F128: =VLOOKUP($C$128, Riser3, 4, FALSE) ->  | G128: =VLOOKUP($C$128, Riser3, 5, FALSE) -> 0
B130: Scheda FlexibleLOM
B131: HPE Ethernet 1Gb 4-port 331FLR Adapter | C131: =VLOOKUP(B131, FLR_Slot, 2, FALSE) -> 1 | D131: =VLOOKUP(B131, FLR_Slot, 3, FALSE) ->  | E131: =VLOOKUP(B131, FLR_Slot, 5, FALSE) ->  | F131: =VLOOKUP(B131, FLR_Slot, 6, FALSE) ->  | G131: =VLOOKUP(B131, FLR_Slot, 9, FALSE) -> 0
B133: Additional Card for PCIe Slot 1 x8 CPU 1
B134: None | C134: =IF(B134=B81,"",VLOOKUP(B134, PCI_A1, 2, FALSE)) ->  | D134: =IF(B134=B81,"",VLOOKUP(B134, PCI_A1, 3, FALSE)) ->  | E134: =IF(B134=B81,"",VLOOKUP(B134, PCI_A1, 5, FALSE)) ->  | F134: =IF(B134=B81,"",VLOOKUP(B134, PCI_A1, 6, FALSE)) ->  | G134: =IF(B134=B81,"",VLOOKUP($B$134,PCI_A1,9,FALSE)) -> 0
B136: Additional Card for PCIe Slot 2 x16 CPU 1
B137: None | C137: =VLOOKUP(B137, PCI_A2, 2, FALSE) ->  | D137: =VLOOKUP(B137, PCI_A2, 3, FALSE) ->  | E137: =VLOOKUP(B137, PCI_A2, 5, FALSE) ->  | F137: =VLOOKUP(B137, PCI_A2, 6, FALSE) ->  | G137: =VLOOKUP(B137, PCI_A2, 9, FALSE) -> 0
B139: Additional Card for PCIe Slot 3 x8 CPU 1
B140: None | C140: =VLOOKUP(B140, PCI_A2, 2, FALSE) ->  | D140: =VLOOKUP(B140, PCI_A2, 3, FALSE) ->  | E140: =VLOOKUP(B140, PCI_A2, 5, FALSE) ->  | F140: =VLOOKUP(B140, PCI_A2, 6, FALSE) ->  | G140: =VLOOKUP(B140, PCI_A2, 9, FALSE) -> 0
B142: =IF(C126=1,"Additional Card for PCIe Slot 4 x8 CPU 2 ","Additional Card for PCIe Slot 4 x8 CPU 2 ") -> Additional Card for PCIe Slot 4 x8 CPU 2
B143: None | C143: =VLOOKUP(B143, PCI_A2, 2, FALSE) ->  | D143: =VLOOKUP(B143, PCI_A2, 3, FALSE) ->  | E143: =VLOOKUP(B143, PCI_A2, 5, FALSE) ->  | F143: =VLOOKUP(B143, PCI_A2, 6, FALSE) ->  | G143: =VLOOKUP(B143, PCI_A2, 9, FALSE) -> 0
B145: Additional Card for PCIe Slot 5 (GPU SLOT) x16 CPU 2
B146: None | C146: =VLOOKUP(B146, PCI_A5, 2, FALSE) ->  | D146: =VLOOKUP(B146, PCI_A5, 3, FALSE) ->  | E146: =VLOOKUP(B146, PCI_A5, 5, FALSE) ->  | F146: =VLOOKUP(B146, PCI_A5, 6, FALSE) ->  | G146: =VLOOKUP(B146, PCI_A5, 9, FALSE) -> 0
B148: Additional Card for PCIe Slot 6 x8 CPU 2
B149: None | C149: =VLOOKUP(B149, PCI_A2, 2, FALSE) ->  | D149: =VLOOKUP(B149, PCI_A2, 3, FALSE) ->  | E149: =VLOOKUP(B149, PCI_A2, 5, FALSE) ->  | F149: =VLOOKUP(B149, PCI_A2, 6, FALSE) ->  | G149: =VLOOKUP(B149, PCI_A2, 9, FALSE) -> 0
B151: Additional Card for PCIe Slot 7 x8 CPU 2
B152: None | C152: =IF($B$152="Aggiungere Tertiary riser","",VLOOKUP(B152,PCI_A2,2,FALSE)) ->  | D152: =IF($B$152="Aggiungere Tertiary riser","",VLOOKUP(B152,PCI_A2,3,FALSE)) ->  | E152: =IF($B$152="Aggiungere Tertiary riser","",VLOOKUP(B152,PCI_A2,5,FALSE)) ->  | F152: =IF($B$152="Aggiungere Tertiary riser","",VLOOKUP(B152,PCI_A2,6,FALSE)) ->  | G152: =IF($B$152="Aggiungere Tertiary riser","",VLOOKUP(B152,PCI_A2,9,FALSE)) -> 0
B154: Additional Card for PCIe Slot 8 x8 CPU 2
B155: None | C155: =IF($B$155="Aggiungere Tertiary riser","",VLOOKUP(B155,PCI_A2,2,FALSE)) ->  | D155: =IF($B$155="Aggiungere Tertiary riser","",VLOOKUP(B155,PCI_A2,3,FALSE)) ->  | E155: =IF($B$155="Aggiungere Tertiary riser","",VLOOKUP(B155,PCI_A2,5,FALSE)) ->  | F155: =IF($B$155="Aggiungere Tertiary riser","",VLOOKUP(B155,PCI_A2,6,FALSE)) ->  | G155: =IF($B$155="Aggiungere Tertiary riser","",VLOOKUP(B155,PCI_A2,9,FALSE)) -> 0
B157: Bezel
B158: None | C158: 1
B160: Unità ottica
B161: HP Mobile USB DVDRW Drive | C161: 1 | E161: 701498-B21
B163: Accessori per Server
B164: HP BLc 10G SFP+ SR Transceiver | E164: 455883-B21
B166: Cavi rj45
B167: Cavo Rete UTP cat. 5e 3 metri | C167: 5 | D167: =IF(C167=0,"","TS2L4-3MRJ45") -> TS2L4-3MRJ45 | E167: ROS1403/G | G167: =2*C167 -> 10
B169: Omni-Path Architecture Optical
B170: HPE X240 10G SFP+ SFP+ 3m DAC Cable | C170: 0 | D170: =IF(C170=0,"","TS2L4-DACX240M3") ->  | E170: JD097C | G170: =C170*81 -> 0
B172: HPE X240 10G SFP+ SFP+ 5m DAC Cable | C172: 0 | D172: =IF(C172=0,"","TS2L4-DACX240M5") ->  | E172: JG081C | G172: =C172*95 -> 0
B174: HPE X240 10G SFP+ SFP+ 7m DAC Cable | C174: 0 | D174: =IF(C174=0,"","TS2L4-DACX240M7") ->  | E174: JC784C | G174: =C174*106 -> 0
B176: HPE 25Gb SFP28 to SFP28 3m Direct Attach Cable | C176: 0 | D176: =IF(C176=0,"","TS2L4-DAC3SFP28") ->  | G176: =C176*134 -> 0
B178: InfiniBand Copper Cable
B179: HPE 2M FDR Quad Small Form Factor Pluggable InfiniBand Copper Cable | C179: 0 | D179: =IF(C179=0,"","TS2L4-DACQSFPM2") ->  | E179: 670759-B24 | G179: =C179*147 -> 0
B181: Omni-Path Architecture Copper Cable
B182: HPE 2M 100Gb QSFP28 Omni-Path Architecture Copper Cable | C182: 0 | D182: =IF(C182=0,"","TS2L4-DAC100M2") ->  | E182: 830024-B24 | G182: =C182*117 -> 0
B184: HPE 3M 100Gb QSFP28 Omni-Path Architecture Copper Cable | C184: 0 | D184: =IF(C184=0,"","TS2L4-DAC100M3") ->  | E184: 830024-B25 | G184: =C184*147 -> 0
B186: Omni-Path Architecture Optical
B187: HPE 3M 100Gb QSFP28 Omni-Path Architecture Optical Power Class 2 Cable | C187: 0 | D187: =IF(C187=0,"","TS2L4-DACAOCM3") ->  | E187: 881204-B21 | G187: =C187*612 -> 0
B189: HPE 5M 100Gb QSFP28 Omni-Path Architecture Optical Power Class 2 Cable | C189: 0 | D189: =IF(C189=0,"","TS2L4-DACAOCM5") ->  | E189: 881204-B22 | G189: =C189*619 -> 0
B191: HPE 7M 100Gb QSFP28 Omni-Path Architecture Optical Power Class 2 Cable | C191: 0 | D191: =IF(C191=0,"","TS2L4-DACAOCM7") ->  | E191: 881204-B23 | G191: =C191*627 -> 0
B193: Optical Transceiver
B194: HPE 10Gb SFP+ SR Transceiver | C194: 0 | D194: =IF(C194=0,"","TS2L4-10OTSR") ->  | E194: 455883-B21 | G194: =C194*230 -> 0
B196: HPE 10G SFP+ LR Transceiver | C196: 0 | D196: =IF(C196=0,"","TS2L4-10OTLR") ->  | E196: 455886-B21 | G196: =C196*481 -> 0
B198: HPE 25Gb SFP28 SR 100m Transceiver | C198: 0 | D198: =IF(C198=0,"","TS2L4-SFP28SR") ->  | G198: =C198*887 -> 0
B200: Estensione di Garanzia
B201: None | C201: =VLOOKUP($B$201, SO_B1,2, FALSE) ->  | D201: =VLOOKUP($B$201, SO_B1, 3, FALSE) ->  | E201: =VLOOKUP($B$201, SO_B1, 5, FALSE) ->  | F201: =VLOOKUP($B$201, SO_B1, 6, FALSE) -> 
B204: None | C204: =VLOOKUP($B$204, SO_A2, 2, FALSE) ->  | D204: =VLOOKUP($B$204, SO_A2, 3, FALSE) ->  | E204: =VLOOKUP($B$204, SO_A2,5, FALSE) ->  | F204: =VLOOKUP($B$204, SO_A2, 6, FALSE) -> 

Sheet Lotto4 DL560 Gen10 3
C1: TOTALE PRODOTTI CONVENZIONE | D1: =H10 -> 0 | G1: =IF(D106=" OK",0,1) -> 0 | H1: =IF(G1+G2=0,(D1+D2),"ERRORE VERIFICARE LA CONFIGURAZIONE") -> 0
C2: TOTALE ARTICOLI 20% | D2: =H11 -> 0
B3: Indicare qui la quantità Server -----> | D3: 0 | H3: =Riepilogo!T6 -> ver. 3.5
A4: Tecnologie Server 2 Lotto 4 Base DL560 Gen10
D10: Totale Server e Opzioni | H10: =F17*SRV_AAA -> 0
A11: Components: Server HPE Proliant DL560 Gen10 (2CPU Intel® Xeon-Gold 5218) | D11: Totale Ulteriori Opzioni | H11: =G17*SRV_AAA -> 0
D13: TOTALE CONVENZIONE | H13: =H11+H10 -> 0
F15: 4628
B16: Quantity: | C16: =SRV_AAA -> 0 | F16: =SUM(F20:F205) -> 0
F17: =SUM(F15:F16) -> 4628 | G17: =SUM(G20:G205) -> 10
B19: Base
B20: HPE DL560 Gen10 8SFF CTO Server | C20: 1 | E20: 841730-B21
B22: Configurazione dello chassis
B23: HP DL560 Gen9 2SFF Media Bay Kit | C23: 1 | E23: 795090-B21
B25: Processore
B26: Intel Xeon-Gold 5218 (2.3GHz/16-core/125W) | C26: 2 | E26: 840399-L21
B27: HPE DL560 Gen10 Intel® Xeon-Gold 5118 (2.3GHz/12-core/105W) Processor | C27: 1 | E27: 840399-B21
B29: Processore aggiuntivo
B30: No Additional Processor | C30: =VLOOKUP($B$30, CPU_A, 2, FALSE) -> 0 | D30: =VLOOKUP($B$30, CPU_A, 3, FALSE) ->  | E30: =VLOOKUP($B$30, CPU_A, 5, FALSE) ->  | F30: =VLOOKUP(B30, CPU_A, 12, FALSE) -> 0
B32: Mezz Board Option
B33: =VLOOKUP($B$30, CPU_A, 6, FALSE) ->  | C33: =VLOOKUP($B$30, CPU_A, 7, FALSE) ->  | E33: =VLOOKUP($B$30, CPU_A, 8, FALSE) -> 
B35: Memoria Totale in GB | C35: =IF(F30=2584,IF(B36=64,"ATTENZIONE: AUMENTARE LA RAM",""),"") -> 
B36: 128 (DIMM 32GB)
B38: Capacità di memoria
B39: =IF($B$30="No Additional Processor",VLOOKUP($B$36, MEM_A1, 8, FALSE),VLOOKUP($B$36, MEM_A2, 8, FALSE)) -> HPE 32GB 2Rx4 PC4-2933 Smart Kit | C39: =IF($B$30="No Additional Processor",VLOOKUP($B$36, MEM_A1, 9, FALSE),VLOOKUP($B$36, MEM_A2, 9, FALSE)) -> 4 | E39: =IF($B$30="No Additional Processor",VLOOKUP($B$36, MEM_A1, 10, FALSE),VLOOKUP($B$36, MEM_A2, 10, FALSE)) -> 815100-B21
B41: =IF($B$30="No Additional Processor",VLOOKUP($B$36, MEM_A1, 2, FALSE),VLOOKUP($B$36, MEM_A2, 2, FALSE)) -> HPE 32GB 2Rx4 PC4-2933 Smart Kit | C41: =IF($B$30="No Additional Processor",VLOOKUP($B$36, MEM_A1, 3, FALSE),VLOOKUP($B$36, MEM_A2, 3, FALSE)) -> 4 | D41: =IF($B$30="No Additional Processor",VLOOKUP($B$36, MEM_A1, 4, FALSE),VLOOKUP($B$36, MEM_A2, 4, FALSE)) ->  | E41: =IF($B$30="No Additional Processor",VLOOKUP($B$36, MEM_A1, 6, FALSE),VLOOKUP($B$36, MEM_A2, 6, FALSE)) -> 815100-B21 | F41: =IF($B$30="No Additional Processor",VLOOKUP($B$36, MEM_A1, 7, FALSE),VLOOKUP($B$36, MEM_A2, 7, FALSE)) -> 0
B42: =IF($B$30="No Additional Processor",VLOOKUP($B$36, MEM_A1, 11, FALSE),VLOOKUP($B$36, MEM_A2, 11, FALSE)) ->  | C42: =IF($B$30="No Additional Processor",VLOOKUP($B$36, MEM_A1, 12, FALSE),VLOOKUP($B$36, MEM_A2, 12, FALSE)) ->  | D42: =IF($B$30="No Additional Processor",VLOOKUP($B$36, MEM_A1, 13, FALSE),VLOOKUP($B$36, MEM_A2, 13, FALSE)) ->  | E42: =IF($B$30="No Additional Processor",VLOOKUP($B$36, MEM_A1, 15, FALSE),VLOOKUP($B$36, MEM_A2, 15, FALSE)) ->  | F42: =IF($B$30="No Additional Processor",VLOOKUP($B$36, MEM_A1, 16, FALSE),VLOOKUP($B$36, MEM_A2, 16, FALSE)) -> 
B45: Sistema operativo preinstallato
B46: No Operating System | C46: =VLOOKUP($B$46, OS_A, 2, FALSE) ->  | D46: =VLOOKUP($B$46, OS_A, 3, FALSE) ->  | E46: =VLOOKUP($B$46, OS_A, 5, FALSE) ->  | F46: =VLOOKUP($B$46, OS_A, 6, FALSE) -> 
B47: =IF($B$30="No Additional Processor",VLOOKUP($B$46, OS_A, 19, FALSE),VLOOKUP($B$46, OS_A2, 19, FALSE)) ->  | C47: =IF($B$30="No Additional Processor",VLOOKUP($B$46, OS_A, 20, FALSE),VLOOKUP($B$46, OS_A2, 20, FALSE)) -> 0 | D47: =IF($B$30="No Additional Processor",VLOOKUP($B$46, OS_A, 21, FALSE),VLOOKUP($B$46, OS_A2, 21, FALSE)) ->  | E47: =IF($B$30="No Additional Processor",VLOOKUP($B$46, OS_A, 23, FALSE),VLOOKUP($B$46, OS_A2, 23, FALSE)) ->  | F47: =IF($B$30="No Additional Processor",VLOOKUP($B$46, OS_A, 24, FALSE)*C47,VLOOKUP($B$46, OS_A2, 24, FALSE)*C47) -> 0 | H47: =IF(D46="TS1L2-WIN1",3,IF(D46="TS1L2-WINDC1",4,0)) -> 0
B48: =IF($B$30="No Additional Processor",VLOOKUP($B$46, OS_A, 25, FALSE),VLOOKUP($B$46, OS_A2, 25, FALSE)) ->  | C48: =IF($B$30="No Additional Processor",VLOOKUP($B$46, OS_A, 26, FALSE),VLOOKUP($B$46, OS_A2, 26, FALSE)) -> 0 | D48: =IF($B$30="No Additional Processor",VLOOKUP($B$46, OS_A, 27, FALSE),VLOOKUP($B$46, OS_A2, 27, FALSE)) ->  | E48: =IF($B$30="No Additional Processor",VLOOKUP($B$46, OS_A, 29, FALSE),VLOOKUP($B$46, OS_A2, 29, FALSE)) ->  | F48: =IF($B$30="No Additional Processor",VLOOKUP($B$46, OS_A, 30, FALSE)*C48,VLOOKUP($B$46, OS_A2, 30, FALSE)*C48) -> 0
B50: Client Access Licenses
B51: =VLOOKUP($B$46, OS_A, 7, FALSE) -> None | C51: 0 | D51: =VLOOKUP($B$46, OS_A, 9, FALSE) ->  | E51: =VLOOKUP($B$46, OS_A, 11, FALSE) ->  | F51: =VLOOKUP($B$46, OS_A, 12, FALSE)*C51 -> 0
B53: =VLOOKUP($B$46, OS_A, 13, FALSE) -> None | C53: 0 | D53: =VLOOKUP($B$46, OS_A, 15, FALSE) ->  | E53: =VLOOKUP($B$46, OS_A, 17, FALSE) ->  | F53: =VLOOKUP($B$46, OS_A, 18, FALSE)*C53 -> 0
B55: VMware vSphere
B56: None | C56: =IF(D56="",0,($C$26+$C$30)) -> 0 | D56: =VLOOKUP($B$56,vmware, 3, FALSE) ->  | E56: =VLOOKUP($B$56,vmware, 5, FALSE) ->  | G56: =VLOOKUP($B$56,vmware, 6, FALSE)*C56 -> 0
B57: VMware vCenter Server Standard
B58: None | C58: =VLOOKUP($B$58,vmwareplus, 2, FALSE) -> 0 | D58: =VLOOKUP($B$58,vmwareplus, 3, FALSE) ->  | E58: =VLOOKUP($B$58,vmwareplus, 5, FALSE) ->  | G58: =VLOOKUP($B$58,vmwareplus, 6, FALSE)*C58 -> 0
B59: Essentials Plus Kit
B60: None | C60: =VLOOKUP($B$60,vmwarevcenter, 2, FALSE) -> 0 | D60: =VLOOKUP($B$60,vmwarevcenter, 3, FALSE) ->  | E60: =VLOOKUP($B$60,vmwarevcenter, 5, FALSE) ->  | G60: =VLOOKUP($B$60, vmwarevcenter, 6, FALSE)*C60 -> 0
B61: VMware vSAN
B62: None | C62: =IF(D62="",0,($C$26+$C$30)) -> 0 | D62: =VLOOKUP($B$62,wmvsan, 3, FALSE) ->  | E62: =VLOOKUP($B$62,wmvsan, 5, FALSE) ->  | G62: =VLOOKUP($B$62,wmvsan, 6, FALSE)*C62 -> 0
B65: HPE OneView Advanced (with HPE iLO Advanced)
B66: None | C66: =VLOOKUP($B$66, OpzOVAdv, 2, FALSE) -> 0 | D66: =VLOOKUP($B$66, OpzOVAdv, 3, FALSE) ->  | E66: =VLOOKUP($B$66, OpzOVAdv, 5, FALSE) ->  | G66: =VLOOKUP($B$66, OpzOVAdv, 6, FALSE) -> 0
B68: Configurazione dello chassis
B69: HPE DL560 Gen10 8SFF HDD Bay3 Kit | C69: 1 | E69: 872237-B21
B71: HPE DL560 Gen10 8SFF HDD Bay2 Kit | C71: 0 | D71: =VLOOKUP($C$71, HDD_Bay2, 2, FALSE) ->  | E71: =VLOOKUP($C$71, HDD_Bay2, 3, FALSE) ->  | F71: =VLOOKUP($C$71, HDD_Bay2, 4, FALSE) ->  | G71: =IF(C74>=1,0,VLOOKUP($C$71,HDD_Bay2,5,FALSE)) -> 0
B74: HPE DL560 Gen10 8SFF HDD Bay1 Kit | C74: 0 | D74: =VLOOKUP($C$74, HDD_BAY1, 2, FALSE) ->  | E74: =VLOOKUP($C$74, HDD_BAY1, 3, FALSE) ->  | F74: =VLOOKUP($C$74, HDD_BAY1, 4, FALSE) ->  | G74: =VLOOKUP($C$74,HDD_BAY1,5,FALSE) -> 0
B76: Controller RAID
B77: HPE Smart Array P408i-a SR Gen10 | C77: 1 | E77: 869081-B21
B79: HPE 96W Smart Storage Battery with 145mm Cable Kit | C79: 1 | E79: P01366-B21
B81: =IF(C74+C71=0,"","HPE DL5x0 Gen10 12Gb SAS Expander Card Kit with Cables") ->  | C81: =IF(C74+C71=0,"",1) ->  | D81: =IF(C74+C71=0,"","TS2L4-SASBAY1") ->  | E81: =IF(C74=0,"","873444-B21") -> 
B83: =IF(C65+C67+C69=1,"Dischi rigidi (numero massimo totale 8)",(IF(C65+C67+C69=2,"Dischi rigidi (numero massimo totale 16)","Dischi rigidi (numero massimo totale 24)"))) -> Dischi rigidi (numero massimo totale 8)
B84: HPE 300GB SAS 15K SFF SC DS HDD | C84: 2 | E84: 870753-B21
B86: HPE 300GB SAS 15K SFF SC DS HDD | C86: 2 | D86: TS2L4-15K300 | E86: 870753-B21 | F86: =IF(C86<=2,0,C86-2)*135 -> 0
B88: HPE 1.2TB SAS 10K SFF SC DS HDD | C88: 0 | D88: TS2L4-10K1200 | E88: 872479-B21 | F88: =C88*146 -> 0
A90: HDD SAS | B90: HPE 1.8TB SAS 10K SFF HDD | C90: 0 | D90: TS2L4-10K1800 | E90: 872481-B21 | G90: =C90*190 -> 0
B92: HPE 480GB SAS 12G SFF SC DS SSD | C92: 0 | D92: TS2L4-SSD480 | E92: ????? | F92: =C92*399 -> 0
B94: HPE 960GB SAS 12G Read Intensive SFF SC DS SSD | C94: 0 | D94: TS2L4-SSDR960 | E94: P06584-B21 | F94: =C94*664 -> 0
B96: HPE 400GB SAS 12G Mixed Use SFF (2.5in) SC DS SSD | C96: 0 | D96: TS2L4-SSD400MU | E96: P09088-B21 | G96: =C96*622 -> 0
B98: HPE 400GB SAS 12G Write Intensive SFF (2.5in) SC DS SSD | C98: 0 | D98: TS2L4-SSD400WIB | E98: P09098-B21 | G98: =C98*959 -> 0
A99: SSD SAS
B100: HPE 800GB SAS 12G Mixed Use SFF (2.5in) SC DS SSD | C100: 0 | D100: TS2L4-SSD800MU | E100: P09090-B21 | G100: =C100*980 -> 0
B102: HPE 960GB SAS 12G Mixed Use SC 3yr Wty Value SAS DS SSD | C102: 0 | D102: TS2L4-SSD960MU | E102: P10448-B21 | G102: =C102*864 -> 0
B104: HPE 1.92TB SAS 12G RI SFF SSD | C104: 0 | D104: TS2L4-SSDR1920 | E104: P04519-B21 | G104: =C104*1313 -> 0
B106: DISCHI TOTALI | C106: =SUM(C86:C104) -> 2 | D106: =IF(C106<=((C69+C71+C74)*8)," OK"," ERRORE: Totale n° di dischi superiore al consentito") -> OK
B108: NOTE sulla configurazione (CAMPO OBBLIGATORIO)
A109: =IF(C106<=((C69+C71+C74)*8),"","ERRORE: Totale n° di dischi superiore al consentito") ->  | B109: Specificare la configurazione RAID per l'installazione del Sistema Operativo, se richiesto. e/o inserire eventuali note. | E109: Specificare la configurazione RAID per l'installazione del Sistema Operativo, se richiesto. e/o inserire eventuali note. | H109: =IF(B109=E109,"ERRORE: Compilare il campo NOTE","") -> ERRORE: Compilare il campo NOTE
B110: Configurazione RAID con HDD 300GB
B111: RAID 1 (2 HDDs) | C111: 1 | E111: =VLOOKUP($B$111, RAID_A1, 2, FALSE) -> 
B112: Hot Spare for 300GB HDD | C112: No
B114: Micro SD (USB Flash Drive) | C114: 0
B115: None | C115: =VLOOKUP($B$115,microsd, 2, FALSE) -> 0 | D115: =VLOOKUP($B$115,microsd, 3, FALSE) ->  | E115: =VLOOKUP($B$115,microsd, 5, FALSE) ->  | G115: =VLOOKUP($B$115, microsd, 6, FALSE)*C115 -> 0
B116: Hot Spare for 1TB HDD | C116: 0
B118: Alimentatore
B119: HPE 1600W Flex Slot Platinum Hot Plug Low Halogen Power Supply Kit | C119: 2 | E119: 830272-B21
B121: PCIe Riser
B122: Primary & Secondary Riser | C122: 1 | E122: 870548-B21
B124: Secondary Riser | C124: 0 | D124: =VLOOKUP($C$124, Riser2, 2, FALSE) ->  | E124: =VLOOKUP($C$124, Riser2, 3, FALSE) ->  | F124: =VLOOKUP($C$124, Riser2, 4, FALSE) ->  | G124: =VLOOKUP($C$124, Riser2, 5, FALSE) -> 0
B126: Secondary Riser for GPU (abilita l'installazione della GPU P2000 su slot 5) | C126: 0 | D126: =VLOOKUP($C$126, Riser2GPU, 2, FALSE) ->  | E126: =VLOOKUP($C$126, Riser2GPU, 3, FALSE) ->  | F126: =VLOOKUP($C$126, Riser2GPU, 4, FALSE) ->  | G126: =VLOOKUP($C$126, Riser2GPU, 5, FALSE) -> 0
B128: Tertiary riser | C128: 0 | D128: =VLOOKUP($C$128, Riser3, 2, FALSE) ->  | E128: =VLOOKUP($C$128, Riser3, 3, FALSE) ->  | F128: =VLOOKUP($C$128, Riser3, 4, FALSE) ->  | G128: =VLOOKUP($C$128, Riser3, 5, FALSE) -> 0
B130: Scheda FlexibleLOM
B131: HPE Ethernet 1Gb 4-port 331FLR Adapter | C131: =VLOOKUP(B131, FLR_Slot, 2, FALSE) -> 1 | D131: =VLOOKUP(B131, FLR_Slot, 3, FALSE) ->  | E131: =VLOOKUP(B131, FLR_Slot, 5, FALSE) ->  | F131: =VLOOKUP(B131, FLR_Slot, 6, FALSE) ->  | G131: =VLOOKUP(B131, FLR_Slot, 9, FALSE) -> 0
B133: Additional Card for PCIe Slot 1 x8 CPU 1
B134: None | C134: =IF(B134=B81,"",VLOOKUP(B134, PCI_A1, 2, FALSE)) ->  | D134: =IF(B134=B81,"",VLOOKUP(B134, PCI_A1, 3, FALSE)) ->  | E134: =IF(B134=B81,"",VLOOKUP(B134, PCI_A1, 5, FALSE)) ->  | F134: =IF(B134=B81,"",VLOOKUP(B134, PCI_A1, 6, FALSE)) ->  | G134: =IF(B134=B81,"",VLOOKUP($B$134,PCI_A1,9,FALSE)) -> 0
B136: Additional Card for PCIe Slot 2 x16 CPU 1
B137: None | C137: =VLOOKUP(B137, PCI_A2, 2, FALSE) ->  | D137: =VLOOKUP(B137, PCI_A2, 3, FALSE) ->  | E137: =VLOOKUP(B137, PCI_A2, 5, FALSE) ->  | F137: =VLOOKUP(B137, PCI_A2, 6, FALSE) ->  | G137: =VLOOKUP(B137, PCI_A2, 9, FALSE) -> 0
B139: Additional Card for PCIe Slot 3 x8 CPU 1
B140: None | C140: =VLOOKUP(B140, PCI_A2, 2, FALSE) ->  | D140: =VLOOKUP(B140, PCI_A2, 3, FALSE) ->  | E140: =VLOOKUP(B140, PCI_A2, 5, FALSE) ->  | F140: =VLOOKUP(B140, PCI_A2, 6, FALSE) ->  | G140: =VLOOKUP(B140, PCI_A2, 9, FALSE) -> 0
B142: =IF(C126=1,"Additional Card for PCIe Slot 4 x8 CPU 2 ","Additional Card for PCIe Slot 4 x8 CPU 2 ") -> Additional Card for PCIe Slot 4 x8 CPU 2
B143: None | C143: =VLOOKUP(B143, PCI_A2, 2, FALSE) ->  | D143: =VLOOKUP(B143, PCI_A2, 3, FALSE) ->  | E143: =VLOOKUP(B143, PCI_A2, 5, FALSE) ->  | F143: =VLOOKUP(B143, PCI_A2, 6, FALSE) ->  | G143: =VLOOKUP(B143, PCI_A2, 9, FALSE) -> 0
B145: Additional Card for PCIe Slot 5 (GPU SLOT) x16 CPU 2
B146: None | C146: =VLOOKUP(B146, PCI_A5, 2, FALSE) ->  | D146: =VLOOKUP(B146, PCI_A5, 3, FALSE) ->  | E146: =VLOOKUP(B146, PCI_A5, 5, FALSE) ->  | F146: =VLOOKUP(B146, PCI_A5, 6, FALSE) ->  | G146: =VLOOKUP(B146, PCI_A5, 9, FALSE) -> 0
B148: Additional Card for PCIe Slot 6 x8 CPU 2
B149: None | C149: =VLOOKUP(B149, PCI_A2, 2, FALSE) ->  | D149: =VLOOKUP(B149, PCI_A2, 3, FALSE) ->  | E149: =VLOOKUP(B149, PCI_A2, 5, FALSE) ->  | F149: =VLOOKUP(B149, PCI_A2, 6, FALSE) ->  | G149: =VLOOKUP(B149, PCI_A2, 9, FALSE) -> 0
B151: Additional Card for PCIe Slot 7 x8 CPU 2
B152: None | C152: =IF($B$152="Aggiungere Tertiary riser","",VLOOKUP(B152,PCI_A2,2,FALSE)) ->  | D152: =IF($B$152="Aggiungere Tertiary riser","",VLOOKUP(B152,PCI_A2,3,FALSE)) ->  | E152: =IF($B$152="Aggiungere Tertiary riser","",VLOOKUP(B152,PCI_A2,5,FALSE)) ->  | F152: =IF($B$152="Aggiungere Tertiary riser","",VLOOKUP(B152,PCI_A2,6,FALSE)) ->  | G152: =IF($B$152="Aggiungere Tertiary riser","",VLOOKUP(B152,PCI_A2,9,FALSE)) -> 0
B154: Additional Card for PCIe Slot 8 x8 CPU 2
B155: None | C155: =IF($B$155="Aggiungere Tertiary riser","",VLOOKUP(B155,PCI_A2,2,FALSE)) ->  | D155: =IF($B$155="Aggiungere Tertiary riser","",VLOOKUP(B155,PCI_A2,3,FALSE)) ->  | E155: =IF($B$155="Aggiungere Tertiary riser","",VLOOKUP(B155,PCI_A2,5,FALSE)) ->  | F155: =IF($B$155="Aggiungere Tertiary riser","",VLOOKUP(B155,PCI_A2,6,FALSE)) ->  | G155: =IF($B$155="Aggiungere Tertiary riser","",VLOOKUP(B155,PCI_A2,9,FALSE)) -> 0
B157: Bezel
B158: None | C158: 1
B160: Unità ottica
B161: HP Mobile USB DVDRW Drive | C161: 1 | E161: 701498-B21
B163: Accessori per Server
B164: HP BLc 10G SFP+ SR Transceiver | E164: 455883-B21
B166: Cavi rj45
B167: Cavo Rete UTP cat. 5e 3 metri | C167: 5 | D167: =IF(C167=0,"","TS2L4-3MRJ45") -> TS2L4-3MRJ45 | E167: ROS1403/G | G167: =2*C167 -> 10
B169: Omni-Path Architecture Optical
B170: HPE X240 10G SFP+ SFP+ 3m DAC Cable | C170: 0 | D170: =IF(C170=0,"","TS2L4-DACX240M3") ->  | E170: JD097C | G170: =C170*81 -> 0
B172: HPE X240 10G SFP+ SFP+ 5m DAC Cable | C172: 0 | D172: =IF(C172=0,"","TS2L4-DACX240M5") ->  | E172: JG081C | G172: =C172*95 -> 0
B174: HPE X240 10G SFP+ SFP+ 7m DAC Cable | C174: 0 | D174: =IF(C174=0,"","TS2L4-DACX240M7") ->  | E174: JC784C | G174: =C174*106 -> 0
B176: HPE 25Gb SFP28 to SFP28 3m Direct Attach Cable | C176: 0 | D176: =IF(C176=0,"","TS2L4-DAC3SFP28") ->  | G176: =C176*134 -> 0
B178: InfiniBand Copper Cable
B179: HPE 2M FDR Quad Small Form Factor Pluggable InfiniBand Copper Cable | C179: 0 | D179: =IF(C179=0,"","TS2L4-DACQSFPM2") ->  | E179: 670759-B24 | G179: =C179*147 -> 0
B181: Omni-Path Architecture Copper Cable
B182: HPE 2M 100Gb QSFP28 Omni-Path Architecture Copper Cable | C182: 0 | D182: =IF(C182=0,"","TS2L4-DAC100M2") ->  | E182: 830024-B24 | G182: =C182*117 -> 0
B184: HPE 3M 100Gb QSFP28 Omni-Path Architecture Copper Cable | C184: 0 | D184: =IF(C184=0,"","TS2L4-DAC100M3") ->  | E184: 830024-B25 | G184: =C184*147 -> 0
B186: Omni-Path Architecture Optical
B187: HPE 3M 100Gb QSFP28 Omni-Path Architecture Optical Power Class 2 Cable | C187: 0 | D187: =IF(C187=0,"","TS2L4-DACAOCM3") ->  | E187: 881204-B21 | G187: =C187*612 -> 0
B189: HPE 5M 100Gb QSFP28 Omni-Path Architecture Optical Power Class 2 Cable | C189: 0 | D189: =IF(C189=0,"","TS2L4-DACAOCM5") ->  | E189: 881204-B22 | G189: =C189*619 -> 0
B191: HPE 7M 100Gb QSFP28 Omni-Path Architecture Optical Power Class 2 Cable | C191: 0 | D191: =IF(C191=0,"","TS2L4-DACAOCM7") ->  | E191: 881204-B23 | G191: =C191*627 -> 0
B193: Optical Transceiver
B194: HPE 10Gb SFP+ SR Transceiver | C194: 0 | D194: =IF(C194=0,"","TS2L4-10OTSR") ->  | E194: 455883-B21 | G194: =C194*230 -> 0
B196: HPE 10G SFP+ LR Transceiver | C196: 0 | D196: =IF(C196=0,"","TS2L4-10OTLR") ->  | E196: 455886-B21 | G196: =C196*481 -> 0
B198: HPE 25Gb SFP28 SR 100m Transceiver | C198: 0 | D198: =IF(C198=0,"","TS2L4-SFP28SR") ->  | G198: =C198*887 -> 0
B200: Estensione di Garanzia
B201: None | C201: =VLOOKUP($B$201, SO_B1,2, FALSE) ->  | D201: =VLOOKUP($B$201, SO_B1, 3, FALSE) ->  | E201: =VLOOKUP($B$201, SO_B1, 5, FALSE) ->  | F201: =VLOOKUP($B$201, SO_B1, 6, FALSE) -> 
B204: None | C204: =VLOOKUP($B$204, SO_A2, 2, FALSE) ->  | D204: =VLOOKUP($B$204, SO_A2, 3, FALSE) ->  | E204: =VLOOKUP($B$204, SO_A2,5, FALSE) ->  | F204: =VLOOKUP($B$204, SO_A2, 6, FALSE) -> 

Sheet RACK, Accessori e Servizi
J1: TOTALE PRODOTTI CONVENZIONE | K1: =SUM(Riepilogo!T44:U47) -> 0 | L1: =K1+K2 -> 0
J2: TOTALE ARTICOLI 20% | K2: =L33+L36 -> 0
M4: SERVIZI
C5: =IF(SRV_A+SRV_B>=1,"Servizi Specialistici","") -> 
C6: =IF(SRV_A+SRV_B>=1,"Servizio Specialistico di System and Network Management per sistema opertivo Windows, erogato on site. (GG/Uomo)","") ->  | K6: =IF(J6>=1,"10L2-SO-WIN","") -> 
C8: =IF(SRV_A+SRV_B>=1,"Servizio Specialistico di System and Network Management per sistema opertivo Linux, erogato on site. (GG/Uomo)","") ->  | K8: =IF(J8>=1,"10L2-SO-LINUX","") -> 
C10: =IF((SRV_A+SRV_AA+SRV_AAA+SRV_B+SRV_BB+SRV_BBB)>=5,"Servizi specialistici sistemistici per aggiornare e prevenire malfunzionamenti. (Minimo 5 Server)","") ->  | K10: =IF(J10>=1,"10L2-SO-PREV","") -> 
M13: SERVER RACK
C14: =IF(Riepilogo!G6>"","","Rack (OpzRack)") -> Rack (OpzRack)
C15: =IF((SRV_A+SRV_AA+SRV_AAA)>=1,"Tecnosteel: armadio Rack 19'' 42U","") ->  | J15: 0 | K15: =IF(J15>=1,"TS2L4-RACK","") -> 
C17: PDU (OpzPDU32A)
C18: =IF((SRV_A+SRV_AA+SRV_AAA)>=1,"PDU Vertical 20+4 outlets C13 with MCB - IEC60309 input","") ->  | K18: =IF(J18>=1,"TS1-646861","") -> 
C20: OpzPDU_TRIFASE
C21: =IF((SRV_A+SRV_AA+SRV_AAA)>=1,"PDU Vertical 18+6 outlets (C13+C19) with MCB and ammeter - IEC60309 input - 3 phase","") ->  | K21: =IF(J21>=1,"TS1-646875","") -> 
C23: KVM (OpzGUIRack)
C24: =IF((SRV_A+SRV_AA+SRV_AAA)>=1,"Tecnosteel: 1U Rackmount Console 17'' with Italian Keyboard","") ->  | J24: 0 | K24: =IF(J24>=1,"TS2L4-GUI","") -> 
C26: KVM Option (OpzSWGUIRack)
C27: =IF((SRV_A+SRV_AA+SRV_AAA)>=1,"Tecnosteel: 16-port remote KVM switch with one remote user","") ->  | J27: 0 | K27: =IF(J27>=1,"TS2L4-KVMIP","") -> 
C29: Uninterrupted Power Supply (OpzUPS 3000VA)
C30: =IF((SRV_A+SRV_AA+SRV_AAA)>=1,"Riello - UPS MSR3000EVO 3000VA 2U Rackmount (SNMP+USB+RS232)","") ->  | J30: 0 | K30: =IF(J30>=1,"TS2L4-UPS","") -> 
C32: PDU da Rack
C33: =IF((SRV_A+SRV_AA+SRV_AAA)>=1,"Coppia di PDU Vertical 1Ph-32A-18xC13-6xC19 - 0U Base + Kit di montaggio)","") ->  | J33: 0 | K33: =IF(J33>=1,"TS2L4-PDU32A","") ->  | L33: =IF(J33>=1,"436","0") -> 0
C35: Armadio Rack 42U
C36: =IF((SRV_A+SRV_AA+SRV_AAA)>=1,"Armadio Rack 42U profonità 120cm con coppia di PDU 32A monofase","") ->  | J36: 0 | K36: =IF(J36>=1,"TS2L4-RACKPDU32","") ->  | L36: =IF(J36>=1,"2200","0") -> 0
D39: Totale-
D40: RACK A | E40: RACK B | F40: RACK C | G40: RACK D | H40: RACK E | I40: RACK F | J40: RACK G | K40: RACK H | L40: RACK I | M40: RACK J
C41: =J15 -> 0 | D41: =IF(H61>0,IF(C41-H61=0,0,C41-H61),0) -> 0 | E41: =IF(I61>0,IF(D41-I61=0,0,D41-I61),0) -> 0 | F41: 0 | G41: 0 | H41: 0 | I41: 0 | J41: =IF(#REF!>0,IF(I41-#REF!=0,0,I41-#REF!),0) ->  | K41: =IF(#REF!>0,IF(J41-#REF!=0,0,J41-#REF!),0) ->  | L41: =IF(#REF!>0,IF(K41-#REF!=0,0,K41-#REF!),0) ->  | M41: =IF(#REF!>0,IF(L41-#REF!=0,0,L41-#REF!),0) -> 
D44: Server Modello 1 | G44: =SRV_A -> 0
D45: Server Modello 2 | G45: =SRV_AA -> 0
D46: Server Modello 3 | G46: =SRV_AAA -> 0
D47: Server Modello 4 | G47: =SRV_B -> 
D48: Server Modello 5 | G48: =SRV_BB -> 
D49: Server Modello 6 | G49: =SRV_BBB -> 
H51: =SUM(H5:H10)+H12+H93*2+H95*2 -> 0 | I51: 0 | J51: 0 | K51: 0 | L51: 0 | M51: 0
C59: Rack ancora da configurare | F59: =J15-H61-I61-J61-K61-L61-M61-#REF!-#REF!-#REF!-#REF! -> 
C61: Indicare il numero di rack per questa configurazione
E63: Totali | F63: da inserire | H63: =IF(C41>0,"RACK A","") ->  | I63: =IF(D41>0,"RACK B","") ->  | J63: =IF(E41>0,"RACK C","") ->  | K63: =IF(F41>0,"RACK D","") ->  | L63: =IF(G41>0,"RACK E","") ->  | M63: =IF(H41>0,"RACK F","") -> 
C65: =IF(G44*$J$15>0,"Server Lotto2 DL560 Conf.1","") ->  | E65: =G44 -> 0 | F65: =(E65-(H65*$H$61)-(I65*$I$61)-(J65*$J$61)-(K65*$K$61)-(L65*$L$61)-(M65*$M$61)-(#REF!*#REF!)-(#REF!*#REF!)-(#REF!*#REF!)-(#REF!*#REF!)) -> 
C66: =IF(G45*$J$15>0,"Server Lotto2 DL560 Conf.2","") ->  | E66: 0 | F66: =(E66-(H66*$H$61)-(I66*$I$61)-(J66*$J$61)-(K66*$K$61)-(L66*$L$61)-(M66*$M$61)-(#REF!*#REF!)-(#REF!*#REF!)-(#REF!*#REF!)-(#REF!*#REF!)) -> 
C67: =IF(G46*$J$15>0,"Server Lotto2 DL560 Conf.3","") ->  | E67: 0 | F67: =(E67-(H67*$H$61)-(I67*$I$61)-(J67*$J$61)-(K67*$K$61)-(L67*$L$61)-(M67*$M$61)-(#REF!*#REF!)-(#REF!*#REF!)-(#REF!*#REF!)-(#REF!*#REF!)) -> 
C68: =IF(G47*$J$15>0,"Server Lotto2 DL580 Conf.1","") ->  | F68: =(E68-(H68*$H$61)-(I68*$I$61)-(J68*$J$61)-(K68*$K$61)-(L68*$L$61)-(M68*$M$61)-(#REF!*#REF!)-(#REF!*#REF!)-(#REF!*#REF!)-(#REF!*#REF!)) -> 
C69: =IF(G48*$J$15>0,"Server Lotto2 DL580 Conf.2","") ->  | F69: =(E69-(H69*$H$61)-(I69*$I$61)-(J69*$J$61)-(K69*$K$61)-(L69*$L$61)-(M69*$M$61)-(#REF!*#REF!)-(#REF!*#REF!)-(#REF!*#REF!)-(#REF!*#REF!)) -> 
C70: =IF(G49*$J$15>0,"Server Lotto2 DL580 Conf.3","") ->  | F70: =(E70-(H70*$H$61)-(I70*$I$61)-(J70*$J$61)-(K70*$K$61)-(L70*$L$61)-(M70*$M$61)-(#REF!*#REF!)-(#REF!*#REF!)-(#REF!*#REF!)-(#REF!*#REF!)) -> 
C72: =IF(J24>0,"OpzGUIRack Disponibili"," ") ->  | E72: =J24 -> 0 | F72: =J24-H72*H61-I72*I61-J72*J61-K72*K61-L72*L61-M72*M61-#REF!*#REF!-#REF!*#REF!-#REF!*#REF!-#REF!*#REF! -> 
C74: =IF(J27>0,"OpzSWGUIRack Disponibili"," ") ->  | E74: =J27 -> 0 | F74: =J27-H74*H61-I74*I61-J74*J61-K74*K61-L74*L61-M74*M61-#REF!*#REF!-#REF!*#REF!-#REF!*#REF!-#REF!*#REF! -> 
C76: =IF(J36>0,"OpzUPS 3000VA Disponibili"," ") ->  | E76: =J36 -> 0 | F76: =J36-H76*H61-I76*I61-J76*J61-K76*K61-L76*L61-M76*M61-#REF!*#REF!-#REF!*#REF!-#REF!*#REF!-#REF!*#REF! -> 

Sheet Riepilogo
B1: Amministrazione | R1: CONFIGURATORE ELETTRONICO TECNOLOGIE SERVER 2 LOTTO 4 | V1: 1 | X1: Server1 | Y1: Server2 | Z1: Server3
B2: N° Identificativo Ordine | I2: =IF(AA2>0,"ERRORE DI CONFIGURAZIONE",IF(Y13>0,"ERRORE DI MANCATA COMPILAZIONE DATI NECESSARI PER L'ORDINATIVO","Configurazione OK")) -> ERRORE DI MANCATA COMPILAZIONE DATI NECESSARI PER L'ORDINATIVO | V2: 1 | W2: Errore | X2: =IF('Lotto4 DL560 Gen10 1'!H1="ERRORE VERIFICARE LA CONFIGURAZIONE",1,0) -> 0 | Y2: =IF('Lotto4 DL560 Gen10 2'!I1="ERRORE VERIFICARE LA CONFIGURAZIONE",1,0) -> 0 | Z2: =IF('Lotto4 DL560 Gen10 3'!J1="ERRORE VERIFICARE LA CONFIGURAZIONE",1,0) -> 0 | AA2: =SUM(X2:Z2) -> 0
B3: Data Ordine | V3: 1 | W3: Dati non compilati | X3: Amministrazione | Y3: =IF(G1>0,0,1) -> 1
B4: Tot Ordine Portale CONSIP IVA incl. | G4: =R103 -> 0 | U4: Nel "Tot Ordine Portale CONSIP" deve essere inserito l'importo totale risultante dall'ordinativo del portale CONSIP. Qualora l'importo inserito corrisponde al valore ricalcolato dal configuratore viene attivato il pulsante "Salva in formato PDF" che permette di generare il file pdf da allegare all'ordinativo. | V4: 1 | X4: N° Identificativo Ordine | Y4: =IF(G2>0,0,1) -> 1
B5: LE CELLE IN GIALLO DEVO ESSERE COMPILATE OBBLIGATORIAMENTE | I5: =IF(AA2>0,"",IF(Y13>0,"","Cliccare il pulsante --------------> per generare il PDF da allegare")) ->  | V5: 1 | X5: Data Ordine | Y5: =IF(G3>0,0,1) -> 1
B6: Quantità Server Ordinati | G6: =IF(B15="",0,B15) -> 0 | T6: ver. 3.5 | V6: 1 | X6: Tot Ordine Portale CONSIP IVA incl. | Y6: =IF(G4>0,0,1) -> 1
V7: 1 | X7: Referente per la Consegna | Y7: =IF(E8>0,0,1) -> 1
B8: Referente per la Consegna | J8: Telefono | P8: email | V8: 1 | X8: Telefono | Y8: =IF(L8>0,0,1) -> 1
V9: 1 | X9: email | Y9: =IF(Q8>0,0,1) -> 1
B10: Referente per l'installazione | J10: Telefono | P10: email | V10: 1 | X10: Referente per l'installazione | Y10: =IF(E10>0,0,1) -> 1
V11: 1 | X11: Telefono | Y11: =IF(L10>0,0,1) -> 1
B12: ATTENZIONE: I CODICI PRODOTTO DELL'ORDINE DEVONO ESSERE SPECULARI A QUELLI GENERATI DAL CONFIGURATORE. | V12: 1 | X12: email | Y12: =IF(Q10>0,0,1) -> 1
B13: Qtà Ordinata | C13: CODICE ARTICOLO PRODUTTORE | G13: CODICE ARTICOLO CONVENZIONE | J13: Descrizione Sintetica (si faccia riferimento alla guida alla convenzione per la descrizione estesa e per le regole di acquisto delle opzioni) | R13: Costo Unitario | T13: Costo Complessivo | V13: 1 | Y13: =SUM(Y3:Y12) -> 10 | AA13: =Y13+AA2 -> 10 | AB13: =IF(AA13=0,"_SavePDFon","_SavePDFoff") -> _SavePDFoff
B14: SERVER BASE (HPE PROLIANT DL560 Gen10) | V14: =IF(B15>="",0,1) -> 0 | W14: DL560 | X14: Server1 | Y14: Server2 | Z14: Server3
B15: =IF(AE15>=1,AE15,"") ->  | C15: =IF(AE15>0,(VLOOKUP(G15,COD_A,2,FALSE)),"") ->  | G15: =IF(AE15>=1,W15,"") ->  | J15: =IF(AE15>0,(VLOOKUP(G15,COD_A,5,FALSE)),"") ->  | R15: =IF(AE15>0,(VLOOKUP(G15,COD_A,3,FALSE)),"") ->  | T15: =IF(B15="","",R15*B15) ->  | V15: =IF(B15>="",0,1) -> 0 | W15: TS2L4-SRV-U | X15: =SRV_A -> 0 | Y15: =SRV_AA -> 0 | Z15: =SRV_AAA -> 0 | AE15: =SUM(X15:AD15) -> 0
B16: =IF(AE16>=1,AE16,"") ->  | G16: =IF(AE16>=1,W16,"") ->  | T16: =IF(B16="","",R16*B16) ->  | V16: =IF(B16>="",0,1) -> 0 | W16: TS2L4-CPU-U | X16: ='Lotto4 DL560 Gen10 1'!$C$30/2*$X$15 -> 0 | Y16: ='Lotto4 DL560 Gen10 2'!$C$30/2*$Y$15 -> 0 | Z16: ='Lotto4 DL560 Gen10 3'!$C$30/2*$Z$15 -> 0 | AE16: =SUM(X16:AD16) -> 0
B17: =IF(AE17>=1,AE17,"") ->  | C17: =IF(AE17=0,"",(VLOOKUP(G17,Codici!B:F,5,FALSE))) ->  | G17: =IF(AE17>=1,W17,"") ->  | J17: =IF(AE17>0,(VLOOKUP(G17,Codici!B:F,4,FALSE)),"") ->  | R17: =IF(AE17>0,(VLOOKUP(G17,Codici!B:F,2,FALSE)),"") ->  | T17: =IF(B17="","",R17*B17) ->  | V17: 0 | W17: TS2L4-RAM32-U | X17: =IF(MEM_A="",0,(MEM_A-4)*$X$15) -> 0 | Y17: =IF(MEM_AA="",0,(MEM_AA-4)*$Y$15) -> 0 | Z17: =IF(MEM_AAA="",0,(MEM_AAA-4)*$Z$15) -> 0 | AE17: 0
C18: =IF(AE18=0,"",(VLOOKUP(G18,Codici!B:F,5,FALSE))) ->  | G18: =IF(AE18>=1,W18,"") ->  | J18: =IF(AE18>0,(VLOOKUP(G18,Codici!B:F,4,FALSE)),"") ->  | R18: =IF(AE18>0,(VLOOKUP(G18,Codici!B:F,2,FALSE)),"") ->  | T18: =IF(B18="","",R18*B18) ->  | V18: 0 | W18: TS2L4-RAM64-U | X18: =IF(MEM_A32="",0,MEM_A32*$X$15) -> 0 | Y18: =IF(MEM_AA32="",0,MEM_AA32*$Y$15) -> 0 | Z18: =IF(MEM_AAA32="",0,MEM_AAA32*$Z$15) -> 0 | AE18: 0
C19: =IF(AE19=0,"",(VLOOKUP(G19,Codici!B:F,5,FALSE))) ->  | J19: =IF(AE19>0,(VLOOKUP(G19,Codici!B:F,4,FALSE)),"") ->  | R19: =IF(AE19>0,(VLOOKUP(G19,Codici!B:F,2,FALSE)),"") ->  | V19: 0 | AE19: 0 | AH19: slot1 | AI19: ='Lotto4 DL560 Gen10 1'!$D$134 ->  | AJ19: ='Lotto4 DL560 Gen10 2'!$D$134 ->  | AK19: ='Lotto4 DL560 Gen10 3'!$D$134 -> 
C20: =IF(AE20=0,"",(VLOOKUP(G20,Codici!B:F,5,FALSE))) ->  | J20: =IF(AE20>0,(VLOOKUP(G20,Codici!B:F,4,FALSE)),"") ->  | R20: =IF(AE20>0,(VLOOKUP(G20,Codici!B:F,2,FALSE)),"") ->  | V20: 0 | W20: TS2L4-LAN1 | X20: =COUNTIF($AI$19:$AI$26,W20)*$X$15 -> 0 | Y20: =COUNTIF($AJ$19:$AJ$26,W20)*$Y$15 -> 0 | Z20: =COUNTIF($AK$19:$AK$26,W20)*$Z$15 -> 0 | AE20: 0 | AH20: slot2 | AI20: ='Lotto4 DL560 Gen10 1'!$D$137 ->  | AJ20: ='Lotto4 DL560 Gen10 2'!$D$137 ->  | AK20: ='Lotto4 DL560 Gen10 3'!$D$137 -> 
C21: =IF(AE21=0,"",(VLOOKUP(G21,Codici!B:F,5,FALSE))) ->  | J21: =IF(AE21>0,(VLOOKUP(G21,Codici!B:F,4,FALSE)),"") ->  | R21: =IF(AE21>0,(VLOOKUP(G21,Codici!B:F,2,FALSE)),"") ->  | V21: 0 | X21: =COUNTIF($AI$19:$AI$26,W21)*$X$15 -> 0 | Y21: =COUNTIF($AJ$19:$AJ$26,W21)*$Y$15 -> 0 | Z21: =COUNTIF($AK$19:$AK$26,W21)*$Z$15 -> 0 | AE21: 0 | AH21: slot3 | AI21: ='Lotto4 DL560 Gen10 1'!$D$140 ->  | AJ21: ='Lotto4 DL560 Gen10 2'!$D$140 ->  | AK21: ='Lotto4 DL560 Gen10 3'!$D$140 -> 
C22: =IF(AE22=0,"",(VLOOKUP(G22,Codici!B:F,5,FALSE))) ->  | J22: =IF(AE22>0,(VLOOKUP(G22,Codici!B:F,4,FALSE)),"") ->  | R22: =IF(AE22>0,(VLOOKUP(G22,Codici!B:F,2,FALSE)),"") ->  | V22: 0 | W22: TS2L4-LAN10 | X22: 0 | Y22: 0 | Z22: 0 | AE22: 0 | AH22: slot4 | AI22: ='Lotto4 DL560 Gen10 1'!$D$143 ->  | AJ22: ='Lotto4 DL560 Gen10 2'!$D$143 ->  | AK22: ='Lotto4 DL560 Gen10 3'!$D$143 -> 
C23: =IF(AE23=0,"",(VLOOKUP(G23,Codici!B:F,5,FALSE))) ->  | J23: =IF(AE23>0,(VLOOKUP(G23,Codici!B:F,4,FALSE)),"") ->  | R23: =IF(AE23>0,(VLOOKUP(G23,Codici!B:F,2,FALSE)),"") ->  | V23: 0 | X23: 0 | Y23: 0 | Z23: 0 | AE23: 0 | AH23: slot5 | AI23: ='Lotto4 DL560 Gen10 1'!$D$146 ->  | AJ23: ='Lotto4 DL560 Gen10 2'!$D$146 ->  | AK23: ='Lotto4 DL560 Gen10 3'!$D$146 -> 
C24: =IF(AE24=0,"",(VLOOKUP(G24,Codici!B:F,5,FALSE))) ->  | J24: =IF(AE24>0,(VLOOKUP(G24,Codici!B:F,4,FALSE)),"") ->  | R24: =IF(AE24>0,(VLOOKUP(G24,Codici!B:F,2,FALSE)),"") ->  | V24: 0 | W24: TS2L4-CNA10 | X24: 0 | Y24: 0 | Z24: 0 | AE24: 0 | AH24: slot6 | AI24: ='Lotto4 DL560 Gen10 1'!$D$149 ->  | AJ24: ='Lotto4 DL560 Gen10 2'!$D$149 ->  | AK24: ='Lotto4 DL560 Gen10 3'!$D$149 -> 
C25: =IF(AE25=0,"",(VLOOKUP(G25,Codici!B:F,5,FALSE))) ->  | J25: =IF(AE25>0,(VLOOKUP(G25,Codici!B:F,4,FALSE)),"") ->  | R25: =IF(AE25>0,(VLOOKUP(G25,Codici!B:F,2,FALSE)),"") ->  | V25: 0 | X25: 0 | Y25: 0 | Z25: 0 | AE25: 0 | AH25: slot7 | AI25: ='Lotto4 DL560 Gen10 1'!$D$152 ->  | AJ25: ='Lotto4 DL560 Gen10 2'!$D$152 ->  | AK25: ='Lotto4 DL560 Gen10 3'!$D$152 -> 
C26: =IF(AE26=0,"",(VLOOKUP(G26,Codici!B:F,5,FALSE))) ->  | J26: =IF(AE26>0,(VLOOKUP(G26,Codici!B:F,4,FALSE)),"") ->  | R26: =IF(AE26>0,(VLOOKUP(G26,Codici!B:F,2,FALSE)),"") ->  | V26: 0 | W26: TS2L4-FC16 | X26: 0 | Y26: 0 | Z26: 0 | AE26: 0 | AH26: slot8 | AI26: ='Lotto4 DL560 Gen10 1'!$D$155 ->  | AJ26: ='Lotto4 DL560 Gen10 2'!$D$155 ->  | AK26: ='Lotto4 DL560 Gen10 3'!$D$155 -> 
C27: =IF(AE27=0,"",(VLOOKUP(G27,Codici!B:F,5,FALSE))) ->  | J27: =IF(AE27>0,(VLOOKUP(G27,Codici!B:F,4,FALSE)),"") ->  | R27: =IF(AE27>0,(VLOOKUP(G27,Codici!B:F,2,FALSE)),"") ->  | V27: 0 | W27: TS2L4-15K300 | X27: =IF('Lotto4 DL560 Gen10 1'!$C$86>=1,('Lotto4 DL560 Gen10 1'!$C$86-2))*$X$15 -> 0 | Y27: =IF('Lotto4 DL560 Gen10 2'!$C$86>=1,('Lotto4 DL560 Gen10 2'!$C$86-2))*$Y$15 -> 0 | Z27: =IF('Lotto4 DL560 Gen10 3'!$C$86>=1,('Lotto4 DL560 Gen10 3'!$C$86-2))*$Z$15 -> 0 | AE27: 0
C28: =IF(AE28=0,"",(VLOOKUP(G28,Codici!B:F,5,FALSE))) ->  | J28: =IF(AE28>0,(VLOOKUP(G28,Codici!B:F,4,FALSE)),"") ->  | R28: =IF(AE28>0,(VLOOKUP(G28,Codici!B:F,2,FALSE)),"") ->  | V28: 0 | W28: TS2L4-10K1200 | X28: ='Lotto4 DL560 Gen10 1'!$C$88*$X$15 -> 0 | Y28: ='Lotto4 DL560 Gen10 2'!$C$88*$Y$15 -> 0 | Z28: ='Lotto4 DL560 Gen10 3'!$C$88*$Z$15 -> 0 | AE28: 0
C29: =IF(AE29=0,"",(VLOOKUP(G29,Codici!B:F,5,FALSE))) ->  | J29: =IF(AE29>0,(VLOOKUP(G29,Codici!B:F,4,FALSE)),"") ->  | R29: =IF(AE29>0,(VLOOKUP(G29,Codici!B:F,2,FALSE)),"") ->  | V29: 0 | W29: TS2L4-SSD480 | X29: ='Lotto4 DL560 Gen10 1'!$C$92*$X$15 -> 0 | Y29: ='Lotto4 DL560 Gen10 2'!$C$92*$Y$15 -> 0 | Z29: ='Lotto4 DL560 Gen10 3'!$C$92*$Z$15 -> 0 | AE29: 0 | AG29: =SUM(X29:Z29) -> 0 | AH29: =SUM(AA29:AC29) -> 0 | AI29: =SUM(AD29:AF29) -> 0 | AJ29: =X29*$X$15 -> 0 | AK29: =Y29*$Y$15 -> 0 | AL29: =Z29*$Z$15 -> 0 | AM29: =AA29*$X$35 -> 0 | AN29: =AB29*$Y$35 -> 0 | AO29: =AC29*$Z$35 -> 0 | AP29: =AD29*$X$75 -> 0 | AQ29: =AE29*$Y$75 -> 0 | AR29: =AF29*$Z$75 -> 0 | AT29: =SUM(AJ29:AS29) -> 0
C30: =IF(AE30=0,"",(VLOOKUP(G30,Codici!B:F,5,FALSE))) ->  | J30: =IF(AE30>0,(VLOOKUP(G30,Codici!B:F,4,FALSE)),"") ->  | R30: =IF(AE30>0,(VLOOKUP(G30,Codici!B:F,2,FALSE)),"") ->  | V30: 0 | W30: TS2L4-SSDR960 | X30: ='Lotto4 DL560 Gen10 1'!$C$94*$X$15 -> 0 | Y30: ='Lotto4 DL560 Gen10 2'!$C$94*$Y$15 -> 0 | Z30: ='Lotto4 DL560 Gen10 3'!$C$94*$Z$15 -> 0 | AE30: 0 | AG30: 0 | AH30: 0 | AI30: =SUM(AD30:AF30) -> 0 | AJ30: 0 | AK30: 0 | AL30: 0 | AM30: 0 | AN30: 0 | AO30: 0 | AP30: =AD30*$X$75 -> 0 | AQ30: =AE30*$Y$75 -> 0 | AR30: =AF30*$Z$75 -> 0 | AT30: =SUM(AJ30:AS30) -> 0
C31: =IF(AE31=0,"",(VLOOKUP(G31,Codici!B:F,5,FALSE))) ->  | J31: =IF(AE31>0,(VLOOKUP(G31,Codici!B:F,4,FALSE)),"") ->  | R31: =IF(AE31>0,(VLOOKUP(G31,Codici!B:F,2,FALSE)),"") ->  | V31: 0 | W31: TS2L4-4Y | X31: =IF('Lotto4 DL560 Gen10 1'!$D$201=W31,('Lotto4 DL560 Gen10 1'!$C$201)*$X$15,0) -> 0 | Y31: =IF('Lotto4 DL560 Gen10 2'!$D$201=W31,('Lotto4 DL560 Gen10 2'!$C$201)*$Y$15,0) -> 0 | Z31: =IF('Lotto4 DL560 Gen10 3'!$D$201=W31,('Lotto4 DL560 Gen10 3'!$C$201)*$Z$15,0) -> 0 | AE31: 0
C32: =IF(AE32=0,"",(VLOOKUP(G32,Codici!B:F,5,FALSE))) ->  | J32: =IF(AE32>0,(VLOOKUP(G32,Codici!B:F,4,FALSE)),"") ->  | R32: =IF(AE32>0,(VLOOKUP(G32,Codici!B:F,2,FALSE)),"") ->  | V32: 0 | W32: TS2L4-5Y | X32: =IF('Lotto4 DL560 Gen10 1'!$D$201=W32,('Lotto4 DL560 Gen10 1'!$C$201)*$X$15,0) -> 0 | Y32: =IF('Lotto4 DL560 Gen10 2'!$D$201=W32,('Lotto4 DL560 Gen10 2'!$C$201)*$Y$15,0) -> 0 | Z32: =IF('Lotto4 DL560 Gen10 3'!$D$201=W32,('Lotto4 DL560 Gen10 3'!$C$201)*$Z$15,0) -> 0 | AE32: 0
C33: =IF(AE33=0,"",(VLOOKUP(G33,Codici!B:F,5,FALSE))) ->  | J33: =IF(AE33>0,(VLOOKUP(G33,Codici!B:F,4,FALSE)),"") ->  | R33: =IF(AE33>0,(VLOOKUP(G33,Codici!B:F,2,FALSE)),"") ->  | V33: 0 | W33: 10L2-SO-HDD | AE33: 0
B34: OPZIONI COMUNI | V34: =IF(SUM(V35:V49)=0,0,1) -> 0 | W34: Comuni | X34: DL560 | Y34: DL560 2 | Z34: DL560 3
B35: =IF(AT35=0,"",AT35) ->  | C35: =IF(AG35=0,"",(VLOOKUP(G35,Codici!B:F,5,FALSE))) ->  | G35: =IF(AT35>0,W35,"") ->  | J35: =IF(AG35>0,(VLOOKUP(G35,Codici!B:F,4,FALSE)),"") ->  | R35: =IF(AG35>0,(VLOOKUP(G35,Codici!B:F,2,FALSE)),"") ->  | T35: =IF(B35="","",R35*B35) ->  | V35: =IF(B35>="",0,1) -> 0 | W35: TS2L4-WIN1 | X35: =IF('Lotto4 DL560 Gen10 1'!$D$46=W35,1*$X$15,0) -> 0 | Y35: =IF('Lotto4 DL560 Gen10 2'!$D$46=W35,1*$Y$15,0) -> 0 | Z35: =IF('Lotto4 DL560 Gen10 3'!$D$46=W35,1*$Z$15,0) -> 0 | AG35: =SUM(X35:Z35) -> 0 | AH35: =SUM(AA35:AC35) -> 0 | AI35: =SUM(AD35:AF35) -> 0 | AT35: =SUM(AG35:AR35) -> 0
C36: =IF(AG36=0,"",(VLOOKUP(G36,Codici!B:F,5,FALSE))) ->  | J36: =IF(AG36>0,(VLOOKUP(G36,Codici!B:F,4,FALSE)),"") ->  | R36: =IF(AG36>0,(VLOOKUP(G36,Codici!B:F,2,FALSE)),"") ->  | V36: 0 | W36: TS2L4-WIN2 | X36: =IF('Lotto4 DL560 Gen10 1'!$D$47=$W$36,'Lotto4 DL560 Gen10 1'!$C$47*$X$15,0) -> 0 | Y36: =IF('Lotto4 DL560 Gen10 2'!$D$47=$W$36,'Lotto4 DL560 Gen10 2'!$C$47*$Y$15,0) -> 0 | Z36: =IF('Lotto4 DL560 Gen10 3'!$D$47=$W$36,'Lotto4 DL560 Gen10 3'!$C$47*$Z$15,0) -> 0 | AG36: 0 | AH36: 0 | AI36: =SUM(AD36:AF36) -> 0 | AT36: =SUM(AG36:AR36) -> 0
C37: =IF(AG37=0,"",(VLOOKUP(G37,Codici!B:F,5,FALSE))) ->  | J37: =IF(AG37>0,(VLOOKUP(G37,Codici!B:F,4,FALSE)),"") ->  | R37: =IF(AG37>0,(VLOOKUP(G37,Codici!B:F,2,FALSE)),"") ->  | V37: 0 | W37: TS2L4-WINDC1 | X37: =IF('Lotto4 DL560 Gen10 1'!$D$46=W37,1*$X$15,0) -> 0 | Y37: =IF('Lotto4 DL560 Gen10 2'!$D$46=W37,1*$Y$15,0) -> 0 | Z37: =IF('Lotto4 DL560 Gen10 3'!$D$46=W37,1*$Z$15,0) -> 0 | AG37: 0 | AH37: 0 | AI37: 0 | AT37: 0
C38: =IF(AG38=0,"",(VLOOKUP(G38,Codici!B:F,5,FALSE))) ->  | J38: =IF(AG38>0,(VLOOKUP(G38,Codici!B:F,4,FALSE)),"") ->  | R38: =IF(AG38>0,(VLOOKUP(G38,Codici!B:F,2,FALSE)),"") ->  | V38: 0 | W38: TS2L4-WINDC2 | X38: =IF('Lotto4 DL560 Gen10 1'!$D$47=$W$38,'Lotto4 DL560 Gen10 1'!$C$47*$X$15,0) -> 0 | Y38: =IF('Lotto4 DL560 Gen10 2'!$D$47=$W$38,'Lotto4 DL560 Gen10 2'!$C$47*$Y$15,0) -> 0 | Z38: =IF('Lotto4 DL560 Gen10 3'!$D$47=$W$38,'Lotto4 DL560 Gen10 3'!$C$47*$Z$15,0) -> 0 | AG38: 0 | AH38: 0 | AI38: 0 | AT38: 0
C39: =IF(AG39=0,"",(VLOOKUP(G39,Codici!B:F,5,FALSE))) ->  | J39: =IF(AG39>0,(VLOOKUP(G39,Codici!B:F,4,FALSE)),"") ->  | R39: =IF(AG39>0,(VLOOKUP(G39,Codici!B:F,2,FALSE)),"") ->  | V39: 0 | W39: TS2L4-LINUX | X39: =IF('Lotto4 DL560 Gen10 1'!$D$46=$W$39,1*$X$15,0) -> 0 | Y39: =IF('Lotto4 DL560 Gen10 2'!$D$46=$W$39,1*$Y$15,0) -> 0 | Z39: =IF('Lotto4 DL560 Gen10 3'!$D$46=$W$39,1*$Z$15,0) -> 0 | AG39: 0 | AH39: 0 | AI39: 0 | AT39: 0
C40: =IF(AG40=0,"",(VLOOKUP(G40,Codici!B:F,5,FALSE))) ->  | J40: =IF(AG40>0,(VLOOKUP(G40,Codici!B:F,4,FALSE)),"") ->  | R40: =IF(AG40>0,(VLOOKUP(G40,Codici!B:F,2,FALSE)),"") ->  | V40: 0 | W40: TS2L4-CALUSER | X40: =IF(($X$35+$X$37)>0,'Lotto4 DL560 Gen10 1'!$C$51*$X$15,0) -> 0 | Y40: =IF(($Y$35+$Y$37)>0,'Lotto4 DL560 Gen10 2'!$C$51*$Y$15,0) -> 0 | Z40: =IF(($Z$35+$Z$37)>0,'Lotto4 DL560 Gen10 3'!$C$51*$Z$15,0) -> 0 | AG40: 0 | AH40: 0 | AI40: 0 | AT40: 0
C41: =IF(AG41=0,"",(VLOOKUP(G41,Codici!B:F,5,FALSE))) ->  | J41: =IF(AG41>0,(VLOOKUP(G41,Codici!B:F,4,FALSE)),"") ->  | R41: =IF(AG41>0,(VLOOKUP(G41,Codici!B:F,2,FALSE)),"") ->  | V41: 0 | W41: TS2L4-CALDEV | X41: =IF(($X$35+$X$37)>0,'Lotto4 DL560 Gen10 1'!$C$53*$X$15,0) -> 0 | Y41: =IF(($Y$35+$Y$37)>0,'Lotto4 DL560 Gen10 2'!$C$53*$Y$15,0) -> 0 | Z41: =IF(($Z$35+$Z$37)>0,'Lotto4 DL560 Gen10 3'!$C$53*$Z$15,0) -> 0 | AG41: 0 | AH41: 0 | AI41: 0 | AT41: 0
C42: =IF(AG42=0,"",(VLOOKUP(G42,Codici!B:F,5,FALSE))) ->  | G42: =IF(AT42>0,W42,"") ->  | J42: =IF(AG42>0,(VLOOKUP(G42,Codici!B:F,4,FALSE)),"") ->  | R42: =IF(AG42>0,(VLOOKUP(G42,Codici!B:F,2,FALSE)),"") ->  | T42: =IF(B42="","",R42*B42) ->  | V42: 0 | W42: TS2L4-WINDC2COR | X42: =IF('Lotto4 DL560 Gen10 1'!$D$47=$W$42,'Lotto4 DL560 Gen10 1'!$C$47*$X$15,0) -> 0 | Y42: =IF('Lotto4 DL560 Gen10 2'!$D$47=$W$42,'Lotto4 DL560 Gen10 2'!$C$47*$Y$15,0) -> 0 | Z42: =IF('Lotto4 DL560 Gen10 3'!$D$47=$W$42,'Lotto4 DL560 Gen10 3'!$C$47*$Z$15,0) -> 0 | AG42: 0 | AT42: 0
C43: =IF(AG43=0,"",(VLOOKUP(G43,Codici!B:F,5,FALSE))) ->  | J43: =IF(AG43>0,(VLOOKUP(G43,Codici!B:F,4,FALSE)),"") ->  | R43: =IF(AG43>0,(VLOOKUP(G43,Codici!B:F,2,FALSE)),"") ->  | V43: 0 | W43: TS2L4-WIN2CORE | X43: =IF('Lotto4 DL560 Gen10 1'!$D$47=Riepilogo!$W$43,'Lotto4 DL560 Gen10 1'!$C$47*$X$15,0) -> 0 | Y43: =IF('Lotto4 DL560 Gen10 2'!$D$47=Riepilogo!$W$43,'Lotto4 DL560 Gen10 2'!$C$47*$Y$15,0) -> 0 | Z43: =IF('Lotto4 DL560 Gen10 3'!$D$47=Riepilogo!$W$43,'Lotto4 DL560 Gen10 3'!$C$47*$Z$15,0) -> 0 | AG43: 0 | AH43: 0 | AI43: 0 | AT43: 0
B44: =IF('RACK, Accessori e Servizi'!J15=0,"",'RACK, Accessori e Servizi'!J15) ->  | C44: =IF(AG44=0,"",(VLOOKUP(G44,Codici!B:F,5,FALSE))) ->  | G44: =IF('RACK, Accessori e Servizi'!J15>0,'RACK, Accessori e Servizi'!K15,"") ->  | J44: =IF(AG44>0,(VLOOKUP(G44,Codici!B:F,4,FALSE)),"") ->  | R44: =IF(AG44>0,(VLOOKUP(G44,Codici!B:F,2,FALSE)),"") ->  | T44: =IF(B44="","",R44*B44) ->  | V44: 0 | W44: TS2L4-RACK | AG44: ='RACK, Accessori e Servizi'!J15 -> 0
B45: =IF('RACK, Accessori e Servizi'!J24=0,"",'RACK, Accessori e Servizi'!J24) ->  | C45: =IF(AG45=0,"",(VLOOKUP(G45,Codici!B:F,5,FALSE))) ->  | G45: =IF('RACK, Accessori e Servizi'!J24>0,'RACK, Accessori e Servizi'!K24,"") ->  | J45: =IF(AG45>0,(VLOOKUP(G45,Codici!B:F,4,FALSE)),"") ->  | R45: =IF(AG45>0,(VLOOKUP(G45,Codici!B:F,2,FALSE)),"") ->  | V45: 0 | W45: TS2L4-GUI | AG45: ='RACK, Accessori e Servizi'!J24 -> 0
B46: =IF('RACK, Accessori e Servizi'!J27=0,"",'RACK, Accessori e Servizi'!J27) ->  | C46: =IF(AG46=0,"",(VLOOKUP(G46,Codici!B:F,5,FALSE))) ->  | G46: =IF('RACK, Accessori e Servizi'!J27>0,'RACK, Accessori e Servizi'!K27,"") ->  | J46: =IF(AG46>0,(VLOOKUP(G46,Codici!B:F,4,FALSE)),"") ->  | R46: =IF(AG46>0,(VLOOKUP(G46,Codici!B:F,2,FALSE)),"") ->  | V46: 0 | W46: TS2L4-KVMIP | AG46: ='RACK, Accessori e Servizi'!J27 -> 0
B47: =IF('RACK, Accessori e Servizi'!J30=0,"",'RACK, Accessori e Servizi'!J30) ->  | C47: =IF(AG47=0,"",(VLOOKUP(G47,Codici!B:F,5,FALSE))) ->  | G47: =IF('RACK, Accessori e Servizi'!J30>0,'RACK, Accessori e Servizi'!K30,"") ->  | J47: =IF(AG47>0,(VLOOKUP(G47,Codici!B:F,4,FALSE)),"") ->  | R47: =IF(AG47>0,(VLOOKUP(G47,Codici!B:F,2,FALSE)),"") ->  | V47: 0 | W47: TS2L4-UPS | AG47: ='RACK, Accessori e Servizi'!J30 -> 0
C48: =IF(AG48=0,"",(VLOOKUP(G48,Codici!B:F,5,FALSE))) ->  | V48: 0
C49: =IF(AG49=0,"",(VLOOKUP(G49,Codici!B:F,5,FALSE))) ->  | V49: 0 | AJ49: Moltiplica x il num server
B50: ULTERIORI OPZIONI 20% | V50: =IF(SUM(V53:V98)=0,0,1) -> 0 | X50: DL560 | Y50: DL560 2 | Z50: DL560 3 | AJ50: DL560 | AK50: DL560 2 | AL50: DL560 3 | AT50: SOMMA
B51: =IF('RACK, Accessori e Servizi'!J33=0,"",'RACK, Accessori e Servizi'!J33) ->  | C51: =IF(AG51=0,"",(VLOOKUP(G51,Codici!B:F,5,FALSE))) ->  | G51: =IF('RACK, Accessori e Servizi'!J33>0,'RACK, Accessori e Servizi'!K33,"") ->  | J51: =IF(AG51>0,(VLOOKUP(G51,Codici!B:F,4,FALSE)),"") ->  | R51: =IF(AG51>0,(VLOOKUP(G51,Codici!B:F,2,FALSE)),"") ->  | T51: =IF(B51="","",R51*B51) ->  | V51: 0 | W51: TS2L4-PDU32A | AG51: ='RACK, Accessori e Servizi'!J33 -> 0
B52: =IF('RACK, Accessori e Servizi'!J36=0,"",'RACK, Accessori e Servizi'!J36) ->  | C52: =IF(AG52=0,"",(VLOOKUP(G52,Codici!B:F,5,FALSE))) ->  | G52: =IF('RACK, Accessori e Servizi'!J36>0,'RACK, Accessori e Servizi'!K36,"") ->  | J52: =IF(AG52>0,(VLOOKUP(G52,Codici!B:F,4,FALSE)),"") ->  | R52: =IF(AG52>0,(VLOOKUP(G52,Codici!B:F,2,FALSE)),"") ->  | T52: =IF(B52="","",R52*B52) ->  | V52: 0 | W52: TS2L4-RACKPDU32 | AG52: ='RACK, Accessori e Servizi'!J36 -> 0
B53: =IF(AT53=0,"",AT53) ->  | C53: =IF(AT53=0,"",(VLOOKUP(G53,Codici!B:F,5,FALSE))) ->  | G53: =IF(AT53>0,W53,"") ->  | J53: =IF(AT53>0,(VLOOKUP(G53,Codici!B:F,4,FALSE)),"") ->  | R53: =IF(AT53>0,(VLOOKUP(G53,Codici!B:F,2,FALSE)),"") ->  | T53: =IF(B53="","",R53*B53) ->  | V53: 0 | W53: TS2L4-3MRJ45 | X53: =IF(X15>=1,'Lotto4 DL560 Gen10 1'!$C$167,0) -> 0 | Y53: =IF(Y15>=1,'Lotto4 DL560 Gen10 2'!$C$167,0) -> 0 | Z53: =IF(Z15>=1,'Lotto4 DL560 Gen10 3'!$C$167,0) -> 0 | AE53: =SUM(X53:AD53) -> 0 | AH53: =SUM(AA53:AC53) -> 0 | AI53: =SUM(AD53:AF53) -> 0 | AJ53: =X53*$X$15 -> 0 | AK53: =Y53*$Y$15 -> 0 | AL53: =Z53*$Z$15 -> 0 | AM53: =AA53*$X$35 -> 0 | AN53: =AB53*$Y$35 -> 0 | AO53: =AC53*$Z$35 -> 0 | AP53: =AD53*$X$75 -> 0 | AQ53: =AE53*$Y$75 -> 0 | AR53: =AF53*$Z$75 -> 0 | AT53: =SUM(AJ53:AL53) -> 0
C54: =IF(AT54=0,"",(VLOOKUP(G54,Codici!B:F,5,FALSE))) ->  | J54: =IF(AT54>0,(VLOOKUP(G54,Codici!B:F,4,FALSE)),"") ->  | R54: =IF(AT54>0,(VLOOKUP(G54,Codici!B:F,2,FALSE)),"") ->  | T54: =IF(B54="","",R54*B54) ->  | V54: 0 | W54: TS2L4-10K1800 | X54: ='Lotto4 DL560 Gen10 1'!$C$90 -> 0 | Y54: ='Lotto4 DL560 Gen10 2'!$C$90 -> 0 | Z54: ='Lotto4 DL560 Gen10 3'!$C$90 -> 0 | AE54: =SUM(X54:AD54) -> 0 | AG54: =SUM(X54:Z54) -> 0 | AH54: =SUM(AA54:AC54) -> 0 | AI54: =SUM(AD54:AF54) -> 0 | AJ54: =X54*$X$15 -> 0 | AK54: =Y54*$Y$15 -> 0 | AL54: =Z54*$Z$15 -> 0 | AM54: =AA54*$X$35 -> 0 | AN54: =AB54*$Y$35 -> 0 | AO54: =AC54*$Z$35 -> 0 | AP54: 0 | AQ54: 0 | AR54: 0 | AT54: =SUM(AJ54:AL54) -> 0
C55: =IF(AT55=0,"",(VLOOKUP(G55,Codici!B:F,5,FALSE))) ->  | J55: =IF(AT55>0,(VLOOKUP(G55,Codici!B:F,4,FALSE)),"") ->  | R55: =IF(AT55>0,(VLOOKUP(G55,Codici!B:F,2,FALSE)),"") ->  | T55: =IF(B55="","",R55*B55) ->  | V55: 0 | W55: TS2L4-SSDR1920 | X55: ='Lotto4 DL560 Gen10 1'!$C$104 -> 0 | Y55: ='Lotto4 DL560 Gen10 2'!$C$104 -> 0 | Z55: ='Lotto4 DL560 Gen10 3'!$C$104 -> 0 | AE55: 0 | AG55: =SUM(X55:Z55) -> 0 | AH55: =SUM(AA55:AC55) -> 0 | AI55: =SUM(AD55:AF55) -> 0 | AJ55: 0 | AK55: 0 | AL55: 0 | AM55: =AA55*$X$35 -> 0 | AN55: =AB55*$Y$35 -> 0 | AO55: =AC55*$Z$35 -> 0 | AP55: 0 | AQ55: 0 | AR55: 0 | AT55: 0
C56: =IF(AT56=0,"",(VLOOKUP(G56,Codici!B:F,5,FALSE))) ->  | J56: =IF(AT56>0,(VLOOKUP(G56,Codici!B:F,4,FALSE)),"") ->  | R56: =IF(AT56>0,(VLOOKUP(G56,Codici!B:F,2,FALSE)),"") ->  | T56: =IF(B56="","",R56*B56) ->  | V56: 0 | W56: TS2L4-3RISER | X56: ='Lotto4 DL560 Gen10 1'!$C$128 -> 0 | Y56: ='Lotto4 DL560 Gen10 2'!$C$128 -> 0 | Z56: ='Lotto4 DL560 Gen10 3'!$C$128 -> 0 | AE56: 0 | AG56: =SUM(X56:Z56) -> 0 | AH56: =SUM(AA56:AC56) -> 0 | AI56: =SUM(AD56:AF56) -> 0 | AJ56: 0 | AK56: 0 | AL56: 0 | AM56: =AA56*$X$35 -> 0 | AN56: =AB56*$Y$35 -> 0 | AO56: =AC56*$Z$35 -> 0 | AP56: 0 | AQ56: 0 | AR56: 0 | AT56: 0
C57: =IF(AT57=0,"",(VLOOKUP(G57,Codici!B:F,5,FALSE))) ->  | J57: =IF(AT57>0,(VLOOKUP(G57,Codici!B:F,4,FALSE)),"") ->  | R57: =IF(AT57>0,(VLOOKUP(G57,Codici!B:F,2,FALSE)),"") ->  | V57: 0 | W57: TS2L4-SASBAY2 | X57: =IF($X$58=1,0,IF('Lotto4 DL560 Gen10 1'!$C$71>=1,1,0)) -> 0 | Y57: =IF($Y$58=1,0,IF('Lotto4 DL560 Gen10 2'!$C$71>=1,1,0)) -> 0 | Z57: =IF($Z$58=1,0,IF('Lotto4 DL560 Gen10 3'!$C$71>=1,1,0)) -> 0 | AE57: 0 | AG57: 0 | AH57: 0 | AI57: 0 | AJ57: 0 | AK57: 0 | AL57: 0 | AM57: 0 | AN57: 0 | AO57: 0 | AP57: 0 | AQ57: 0 | AR57: 0 | AT57: 0
C58: =IF(AT58=0,"",(VLOOKUP(G58,Codici!B:F,5,FALSE))) ->  | J58: =IF(AT58>0,(VLOOKUP(G58,Codici!B:F,4,FALSE)),"") ->  | R58: =IF(AT58>0,(VLOOKUP(G58,Codici!B:F,2,FALSE)),"") ->  | V58: 0 | W58: TS2L4-SASBAY12 | X58: =IF('Lotto4 DL560 Gen10 1'!$C$74>=1,1,0) -> 0 | Y58: =IF('Lotto4 DL560 Gen10 2'!$C$74>=1,1,0) -> 0 | Z58: =IF('Lotto4 DL560 Gen10 3'!$C$74>=1,1,0) -> 0 | AE58: 0 | AG58: 0 | AH58: 0 | AI58: 0 | AJ58: 0 | AK58: 0 | AL58: 0 | AM58: 0 | AN58: 0 | AO58: 0 | AP58: 0 | AQ58: 0 | AR58: 0 | AT58: 0
C59: =IF(AT59=0,"",(VLOOKUP(G59,Codici!B:F,5,FALSE))) ->  | J59: =IF(AT59>0,(VLOOKUP(G59,Codici!B:F,4,FALSE)),"") ->  | R59: =IF(AT59>0,(VLOOKUP(G59,Codici!B:F,2,FALSE)),"") ->  | V59: 0 | W59: TS2L4-530T | X59: =COUNTIF($AI$19:$AI$26,W59) -> 0 | Y59: =COUNTIF($AJ$19:$AJ$26,W59) -> 0 | Z59: =COUNTIF($AK$19:$AK$26,W59) -> 0 | AE59: 0 | AG59: 0 | AH59: 0 | AI59: 0 | AJ59: 0 | AK59: 0 | AL59: 0 | AM59: 0 | AN59: 0 | AO59: 0 | AP59: 0 | AQ59: 0 | AR59: 0 | AT59: 0
C60: =IF(AT60=0,"",(VLOOKUP(G60,Codici!B:F,5,FALSE))) ->  | J60: =IF(AT60>0,(VLOOKUP(G60,Codici!B:F,4,FALSE)),"") ->  | R60: =IF(AT60>0,(VLOOKUP(G60,Codici!B:F,2,FALSE)),"") ->  | V60: 0 | W60: TS2L4-521T | X60: =COUNTIF($AI$19:$AI$26,W60) -> 0 | Y60: =COUNTIF($AJ$19:$AJ$26,W60) -> 0 | Z60: =COUNTIF($AK$19:$AK$26,W60) -> 0 | AE60: 0 | AG60: 0 | AH60: 0 | AI60: 0 | AJ60: 0 | AK60: 0 | AL60: 0 | AM60: 0 | AN60: 0 | AO60: 0 | AP60: 0 | AQ60: 0 | AR60: 0 | AT60: 0
C61: =IF(AT61=0,"",(VLOOKUP(G61,Codici!B:F,5,FALSE))) ->  | J61: =IF(AT61>0,(VLOOKUP(G61,Codici!B:F,4,FALSE)),"") ->  | R61: =IF(AT61>0,(VLOOKUP(G61,Codici!B:F,2,FALSE)),"") ->  | T61: =IF(B61="","",R61*B61) ->  | V61: 0 | W61: TS2L4-536FLR | X61: =IF('Lotto4 DL560 Gen10 1'!$B$131="[TS2L4-536FLR] HPE FlexFabric 10Gb 4-port 536FLR-T Adapter",1,0) -> 0 | Y61: =IF('Lotto4 DL560 Gen10 2'!$B$131="[TS2L4-536FLR] HPE FlexFabric 10Gb 4-port 536FLR-T Adapter",1,0) -> 0 | Z61: =IF('Lotto4 DL560 Gen10 3'!$B$131="[TS2L4-536FLR] HPE FlexFabric 10Gb 4-port 536FLR-T Adapter",1,0) -> 0 | AE61: 0 | AG61: 0 | AH61: 0 | AI61: 0 | AJ61: 0 | AK61: 0 | AL61: 0 | AM61: 0 | AN61: 0 | AO61: 0 | AP61: 0 | AQ61: 0 | AR61: 0 | AT61: 0
C62: =IF(AT62=0,"",(VLOOKUP(G62,Codici!B:F,5,FALSE))) ->  | J62: =IF(AT62>0,(VLOOKUP(G62,Codici!B:F,4,FALSE)),"") ->  | R62: =IF(AT62>0,(VLOOKUP(G62,Codici!B:F,2,FALSE)),"") ->  | T62: =IF(B62="","",R62*B62) ->  | V62: 0 | W62: TS2L4-562SFP | X62: 0 | Y62: 0 | Z62: 0 | AE62: 0 | AG62: 0 | AH62: 0 | AI62: 0 | AJ62: 0 | AK62: 0 | AL62: 0 | AM62: 0 | AN62: 0 | AO62: 0 | AP62: 0 | AQ62: 0 | AR62: 0 | AT62: 0
C63: =IF(AT63=0,"",(VLOOKUP(G63,Codici!B:F,5,FALSE))) ->  | J63: =IF(AT63>0,(VLOOKUP(G63,Codici!B:F,4,FALSE)),"") ->  | R63: =IF(AT63>0,(VLOOKUP(G63,Codici!B:F,2,FALSE)),"") ->  | T63: =IF(B63="","",R63*B63) ->  | V63: 0 | W63: TS2L4-10OTSR | X63: =IF('Lotto4 DL560 Gen10 1'!$C$194>=1,'Lotto4 DL560 Gen10 1'!$C$194,0)*Riepilogo!$X$15 -> 0 | Y63: =IF('Lotto4 DL560 Gen10 2'!$C$194>=1,'Lotto4 DL560 Gen10 2'!$C$194,0)*Riepilogo!$Y$15 -> 0 | Z63: =IF('Lotto4 DL560 Gen10 3'!$C$194>=1,'Lotto4 DL560 Gen10 3'!$C$194,0)*Riepilogo!$Z$15 -> 0 | AE63: 0 | AG63: 0 | AH63: 0 | AI63: 0 | AJ63: =X63 -> 0 | AK63: 0 | AL63: 0 | AM63: 0 | AN63: 0 | AO63: 0 | AP63: 0 | AQ63: 0 | AR63: 0 | AT63: 0
C64: =IF(AT64=0,"",(VLOOKUP(G64,Codici!B:F,5,FALSE))) ->  | J64: =IF(AT64>0,(VLOOKUP(G64,Codici!B:F,4,FALSE)),"") ->  | R64: =IF(AT64>0,(VLOOKUP(G64,Codici!B:F,2,FALSE)),"") ->  | T64: =IF(B64="","",R64*B64) ->  | V64: 0 | W64: TS2L4-10OTLR | X64: =IF('Lotto4 DL560 Gen10 1'!$C$196>=1,'Lotto4 DL560 Gen10 1'!$C$196,0)*Riepilogo!$X$15 -> 0 | Y64: =IF('Lotto4 DL560 Gen10 2'!$C$196>=1,'Lotto4 DL560 Gen10 2'!$C$196,0)*Riepilogo!$Y$15 -> 0 | Z64: =IF('Lotto4 DL560 Gen10 3'!$C$196>=1,'Lotto4 DL560 Gen10 3'!$C$196,0)*Riepilogo!$Z$15 -> 0 | AE64: 0 | AG64: 0 | AH64: 0 | AI64: 0 | AJ64: =X64 -> 0 | AK64: 0 | AL64: 0 | AM64: 0 | AN64: 0 | AO64: 0 | AP64: 0 | AQ64: 0 | AR64: 0 | AT64: 0
C65: =IF(AT65=0,"",(VLOOKUP(G65,Codici!B:F,5,FALSE))) ->  | J65: =IF(AT65>0,(VLOOKUP(G65,Codici!B:F,4,FALSE)),"") ->  | R65: =IF(AT65>0,(VLOOKUP(G65,Codici!B:F,2,FALSE)),"") ->  | T65: =IF(B65="","",R65*B65) ->  | V65: 0 | W65: TS2L4-GPURSRKIT | X65: ='Lotto4 DL560 Gen10 1'!$C$126 -> 0 | Y65: ='Lotto4 DL560 Gen10 2'!$C$126 -> 0 | Z65: ='Lotto4 DL560 Gen10 3'!$C$126 -> 0 | AE65: 0 | AG65: 0 | AH65: 0 | AI65: 0 | AJ65: 0 | AK65: 0 | AL65: 0 | AM65: 0 | AN65: 0 | AO65: 0 | AP65: 0 | AQ65: 0 | AR65: 0 | AT65: 0
C66: =IF(AT66=0,"",(VLOOKUP(G66,Codici!B:F,5,FALSE))) ->  | J66: =IF(AT66>0,(VLOOKUP(G66,Codici!B:F,4,FALSE)),"") ->  | R66: =IF(AT66>0,(VLOOKUP(G66,Codici!B:F,2,FALSE)),"") ->  | T66: =IF(B66="","",R66*B66) ->  | V66: 0 | W66: TS2L4-P2000GPU | X66: =COUNTIF($AI$19:$AI$26,W66) -> 0 | Y66: =COUNTIF($AJ$19:$AJ$26,W66) -> 0 | Z66: =COUNTIF($AK$19:$AK$26,W66) -> 0 | AE66: 0 | AG66: 0 | AH66: 0 | AI66: 0 | AJ66: 0 | AK66: 0 | AL66: 0 | AM66: 0 | AN66: 0 | AO66: 0 | AP66: 0 | AQ66: 0 | AR66: 0 | AT66: 0
C67: =IF(AT67=0,"",(VLOOKUP(G67,Codici!B:F,5,FALSE))) ->  | J67: =IF(AT67>0,(VLOOKUP(G67,Codici!B:F,4,FALSE)),"") ->  | R67: =IF(AT67>0,(VLOOKUP(G67,Codici!B:F,2,FALSE)),"") ->  | V67: 0 | W67: TS2L4-841QSFP28 | X67: 0 | Y67: =COUNTIF($AJ$19:$AJ$26,W67) -> 0 | Z67: =COUNTIF($AK$19:$AK$26,W67) -> 0 | AE67: 0 | AG67: 0 | AH67: 0 | AI67: 0 | AJ67: 0 | AK67: 0 | AL67: 0 | AM67: 0 | AN67: 0 | AO67: 0 | AP67: 0 | AQ67: 0 | AR67: 0 | AT67: 0
C68: =IF(AT68=0,"",(VLOOKUP(G68,Codici!B:F,5,FALSE))) ->  | J68: =IF(AT68>0,(VLOOKUP(G68,Codici!B:F,4,FALSE)),"") ->  | R68: =IF(AT68>0,(VLOOKUP(G68,Codici!B:F,2,FALSE)),"") ->  | V68: 0 | W68: TS2L4-OP101 | X68: 0 | Y68: 0 | Z68: 0 | AE68: 0 | AG68: 0 | AH68: 0 | AI68: 0 | AJ68: 0 | AK68: 0 | AL68: 0 | AM68: 0 | AN68: 0 | AO68: 0 | AP68: 0 | AQ68: 0 | AR68: 0 | AT68: 0
C69: =IF(AT69=0,"",(VLOOKUP(G69,Codici!B:F,5,FALSE))) ->  | J69: =IF(AT69>0,(VLOOKUP(G69,Codici!B:F,4,FALSE)),"") ->  | R69: =IF(AT69>0,(VLOOKUP(G69,Codici!B:F,2,FALSE)),"") ->  | V69: 0 | W69: TS2L4-547FLR | X69: =IF('Lotto4 DL560 Gen10 1'!$B$131="[TS2L4-547FLR] HPE InfiniBand FDR/Ethernet 40/50Gb 2-port 547FLR-QSFP Adapter",1,0) -> 0 | Y69: =IF('Lotto4 DL560 Gen10 2'!$B$131="[TS2L4-547FLR] HPE InfiniBand FDR/Ethernet 40/50Gb 2-port 547FLR-QSFP Adapter",1,0) -> 0 | Z69: =IF('Lotto4 DL560 Gen10 3'!$B$131="[TS2L4-547FLR] HPE InfiniBand FDR/Ethernet 40/50Gb 2-port 547FLR-QSFP Adapter",1,0) -> 0 | AE69: 0 | AG69: 0 | AH69: 0 | AI69: 0 | AJ69: 0 | AK69: 0 | AL69: 0 | AM69: 0 | AN69: 0 | AO69: 0 | AP69: 0 | AQ69: 0 | AR69: 0 | AT69: 0
B70: =IF(AT70=0,"",AT70) ->  | C70: =IF(AT70=0,"",(VLOOKUP(G70,Codici!B:F,5,FALSE))) ->  | G70: =IF(AT70>0,W70,"") ->  | J70: =IF(AT70>0,(VLOOKUP(G70,Codici!B:F,4,FALSE)),"") ->  | R70: =IF(AT70>0,(VLOOKUP(G70,Codici!B:F,2,FALSE)),"") ->  | T70: =IF(B70="","",R70*B70) ->  | V70: 0 | W70: TS2L4-E208EP | X70: =COUNTIF($AI$19:$AI$26,W70) -> 0 | Y70: =COUNTIF($AJ$19:$AJ$26,W70) -> 0 | Z70: =COUNTIF($AK$19:$AK$26,W70) -> 0 | AE70: =SUM(X70:AD70) -> 0 | AG70: =SUM(X70:Z70) -> 0 | AH70: =SUM(AA70:AC70) -> 0 | AI70: =SUM(AD70:AF70) -> 0 | AJ70: =X70*$X$15 -> 0 | AK70: =Y70*$Y$15 -> 0 | AL70: =Z70*$Z$15 -> 0 | AM70: =AA70*$X$35 -> 0 | AN70: =AB70*$Y$35 -> 0 | AO70: =AC70*$Z$35 -> 0 | AP70: 0 | AQ70: 0 | AR70: 0 | AT70: =SUM(AJ70:AL70) -> 0
C71: =IF(AT71=0,"",(VLOOKUP(G71,Codici!B:F,5,FALSE))) ->  | J71: =IF(AT71>0,(VLOOKUP(G71,Codici!B:F,4,FALSE)),"") ->  | R71: =IF(AT71>0,(VLOOKUP(G71,Codici!B:F,2,FALSE)),"") ->  | V71: 0 | W71: TS2L4-VMWSTD1P5Y | X71: =IF('Lotto4 DL560 Gen10 1'!$D$56=Riepilogo!$W$71,'Lotto4 DL560 Gen10 1'!$C$56,0) -> 0 | Y71: =IF('Lotto4 DL560 Gen10 2'!$D$56=Riepilogo!$W$71,'Lotto4 DL560 Gen10 2'!$C$56,0) -> 0 | Z71: =IF('Lotto4 DL560 Gen10 3'!$D$56=Riepilogo!$W$71,'Lotto4 DL560 Gen10 3'!$C$56,0) -> 0 | AE71: 0 | AG71: 0 | AH71: 0 | AI71: 0 | AJ71: 0 | AK71: 0 | AL71: 0 | AM71: 0 | AN71: 0 | AO71: 0 | AP71: 0 | AQ71: 0 | AR71: 0 | AT71: 0
C72: =IF(AT72=0,"",(VLOOKUP(G72,Codici!B:F,5,FALSE))) ->  | J72: =IF(AT72>0,(VLOOKUP(G72,Codici!B:F,4,FALSE)),"") ->  | R72: =IF(AT72>0,(VLOOKUP(G72,Codici!B:F,2,FALSE)),"") ->  | V72: 0 | W72: TS2L4-VMWEP1P5Y | X72: =IF('Lotto4 DL560 Gen10 1'!$D$56=Riepilogo!$W$72,'Lotto4 DL560 Gen10 1'!$C$56,0) -> 0 | Y72: =IF('Lotto4 DL560 Gen10 2'!$D$56=Riepilogo!$W$72,'Lotto4 DL560 Gen10 2'!$C$56,0) -> 0 | Z72: =IF('Lotto4 DL560 Gen10 3'!$D$56=Riepilogo!$W$72,'Lotto4 DL560 Gen10 3'!$C$56,0) -> 0 | AE72: 0 | AG72: 0 | AH72: 0 | AI72: 0 | AJ72: 0 | AK72: 0 | AL72: 0 | AM72: 0 | AN72: 0 | AO72: 0 | AP72: 0 | AQ72: 0 | AR72: 0 | AT72: 0
C73: =IF(AT73=0,"",(VLOOKUP(G73,Codici!B:F,5,FALSE))) ->  | J73: =IF(AT73>0,(VLOOKUP(G73,Codici!B:F,4,FALSE)),"") ->  | R73: =IF(AT73>0,(VLOOKUP(G73,Codici!B:F,2,FALSE)),"") ->  | V73: 0 | W73: TS2L4-VMWSTD1P3Y | X73: =IF('Lotto4 DL560 Gen10 1'!$D$56=Riepilogo!$W$73,'Lotto4 DL560 Gen10 1'!$C$56,0) -> 0 | Y73: =IF('Lotto4 DL560 Gen10 2'!$D$56=Riepilogo!$W$73,'Lotto4 DL560 Gen10 2'!$C$56,0) -> 0 | Z73: =IF('Lotto4 DL560 Gen10 3'!$D$56=Riepilogo!$W$73,'Lotto4 DL560 Gen10 3'!$C$56,0) -> 0 | AE73: 0 | AH73: 0 | AI73: 0 | AJ73: 0 | AK73: 0 | AL73: 0 | AM73: 0 | AN73: 0 | AO73: 0 | AP73: 0 | AQ73: 0 | AR73: 0 | AT73: 0
C74: =IF(AT74=0,"",(VLOOKUP(G74,Codici!B:F,5,FALSE))) ->  | G74: =IF(AT74>0,W74,"") ->  | J74: =IF(AT74>0,(VLOOKUP(G74,Codici!B:F,4,FALSE)),"") ->  | R74: =IF(AT74>0,(VLOOKUP(G74,Codici!B:F,2,FALSE)),"") ->  | T74: =IF(B74="","",R74*B74) ->  | V74: 0 | W74: TS2L4-VMWEP1P3Y | X74: =IF('Lotto4 DL560 Gen10 1'!$D$56=Riepilogo!$W$74,'Lotto4 DL560 Gen10 1'!$C$56,0) -> 0 | Y74: =IF('Lotto4 DL560 Gen10 2'!$D$56=Riepilogo!$W$74,'Lotto4 DL560 Gen10 2'!$C$56,0) -> 0 | Z74: =IF('Lotto4 DL560 Gen10 3'!$D$56=Riepilogo!$W$74,'Lotto4 DL560 Gen10 3'!$C$56,0) -> 0 | AE74: 0 | AG74: =SUM(X74:Z74) -> 0 | AH74: =SUM(AA74:AC74) -> 0 | AI74: =SUM(AD74:AF74) -> 0 | AJ74: 0 | AK74: 0 | AL74: =Z74*$Z$15 -> 0 | AM74: =AA74*$X$35 -> 0 | AN74: =AB74*$Y$35 -> 0 | AO74: =AC74*$Z$35 -> 0 | AP74: 0 | AQ74: 0 | AR74: 0 | AT74: 0
C75: =IF(AT75=0,"",(VLOOKUP(G75,Codici!B:F,5,FALSE))) ->  | G75: =IF(AT75>0,W75,"") ->  | J75: =IF(AT75>0,(VLOOKUP(G75,Codici!B:F,4,FALSE)),"") ->  | R75: =IF(AT75>0,(VLOOKUP(G75,Codici!B:F,2,FALSE)),"") ->  | T75: =IF(B75="","",R75*B75) ->  | V75: 0 | W75: TS2L4-VMWKIT6P3Y | X75: =IF('Lotto4 DL560 Gen10 1'!$D$58=Riepilogo!$W$75,'Lotto4 DL560 Gen10 1'!$C$58,0) -> 0 | AE75: 0 | AG75: 0 | AH75: 0 | AI75: 0 | AJ75: 0 | AK75: 0 | AL75: =Z75*$Z$15 -> 0 | AM75: 0 | AN75: 0 | AO75: 0 | AP75: 0 | AQ75: 0 | AR75: 0 | AT75: 0
C76: =IF(AT76=0,"",(VLOOKUP(G76,Codici!B:F,5,FALSE))) ->  | J76: =IF(AT76>0,(VLOOKUP(G76,Codici!B:F,4,FALSE)),"") ->  | R76: =IF(AT76>0,(VLOOKUP(G76,Codici!B:F,2,FALSE)),"") ->  | V76: 0 | W76: TS2L4-VMWKIT6P5Y | X76: =IF('Lotto4 DL560 Gen10 1'!$D$58=Riepilogo!$W$76,'Lotto4 DL560 Gen10 1'!$C$58,0) -> 0 | AE76: 0 | AG76: 0 | AH76: 0 | AI76: 0 | AJ76: 0 | AK76: 0 | AL76: 0 | AM76: 0 | AN76: 0 | AO76: 0 | AP76: =AD76*$X$75 -> 0 | AQ76: =AE76*$Y$75 -> 0 | AR76: 0 | AT76: 0
C77: =IF(AT77=0,"",(VLOOKUP(G77,Codici!B:F,5,FALSE))) ->  | J77: =IF(AT77>0,(VLOOKUP(G77,Codici!B:F,4,FALSE)),"") ->  | R77: =IF(AT77>0,(VLOOKUP(G77,Codici!B:F,2,FALSE)),"") ->  | T77: =IF(B77="","",R77*B77) ->  | V77: 0 | W77: TS2L4-VMWVCSTD3Y | X77: =IF('Lotto4 DL560 Gen10 1'!$D$60=Riepilogo!$W$77,'Lotto4 DL560 Gen10 1'!$C$60,0) -> 0 | AE77: 0 | AG77: 0 | AH77: 0 | AI77: 0 | AJ77: 0 | AK77: 0 | AL77: 0 | AM77: 0 | AN77: 0 | AO77: 0 | AP77: 0 | AQ77: 0 | AR77: 0 | AT77: 0
C78: =IF(AT78=0,"",(VLOOKUP(G78,Codici!B:F,5,FALSE))) ->  | J78: =IF(AT78>0,(VLOOKUP(G78,Codici!B:F,4,FALSE)),"") ->  | R78: =IF(AT78>0,(VLOOKUP(G78,Codici!B:F,2,FALSE)),"") ->  | T78: =IF(B78="","",R78*B78) ->  | V78: 0 | W78: TS2L4-VMWVCSTD5Y | X78: =IF('Lotto4 DL560 Gen10 1'!$D$60=Riepilogo!$W$78,'Lotto4 DL560 Gen10 1'!$C$60,0) -> 0 | AE78: 0 | AG78: 0 | AH78: 0 | AI78: 0 | AJ78: 0 | AK78: 0 | AL78: 0 | AM78: 0 | AN78: 0 | AO78: 0 | AP78: 0 | AQ78: 0 | AR78: 0 | AT78: 0
C79: =IF(AT79=0,"",(VLOOKUP(G79,Codici!B:F,5,FALSE))) ->  | J79: =IF(AT79>0,(VLOOKUP(G79,Codici!B:F,4,FALSE)),"") ->  | R79: =IF(AT79>0,(VLOOKUP(G79,Codici!B:F,2,FALSE)),"") ->  | T79: =IF(B79="","",R79*B79) ->  | V79: 0 | W79: TS2L4-OV3YILO | X79: =IF('Lotto4 DL560 Gen10 1'!$C$66=0,0,1) -> 0 | Y79: =IF('Lotto4 DL560 Gen10 2'!$C$66=0,0,1) -> 0 | Z79: =IF('Lotto4 DL560 Gen10 3'!$C$66=0,0,1) -> 0 | AE79: 0 | AG79: 0 | AH79: 0 | AI79: 0 | AJ79: 0 | AK79: 0 | AL79: 0 | AM79: 0 | AN79: 0 | AO79: 0 | AP79: =AD79*$X$75 -> 0 | AQ79: =AE79*$Y$75 -> 0 | AR79: 0 | AT79: 0
C80: =IF(AT80=0,"",(VLOOKUP(G80,Codici!B:F,5,FALSE))) ->  | J80: =IF(AT80>0,(VLOOKUP(G80,Codici!B:F,4,FALSE)),"") ->  | R80: =IF(AT80>0,(VLOOKUP(G80,Codici!B:F,2,FALSE)),"") ->  | T80: =IF(B80="","",R80*B80) ->  | V80: 0 | W80: TS2L4-DACQSFPM2 | X80: =IF('Lotto4 DL560 Gen10 1'!$C$179>=1,'Lotto4 DL560 Gen10 1'!$C$179,0)*Riepilogo!$X$15 -> 0 | Y80: =IF('Lotto4 DL560 Gen10 2'!$C$179>=1,'Lotto4 DL560 Gen10 2'!$C$179,0)*Riepilogo!$Y$15 -> 0 | Z80: =IF('Lotto4 DL560 Gen10 3'!$C$179>=1,'Lotto4 DL560 Gen10 3'!$C$179,0)*Riepilogo!$Z$15 -> 0 | AE80: 0 | AG80: 0 | AJ80: =X80 -> 0 | AK80: 0 | AL80: 0 | AT80: 0
C81: =IF(AT81=0,"",(VLOOKUP(G81,Codici!B:F,5,FALSE))) ->  | J81: =IF(AT81>0,(VLOOKUP(G81,Codici!B:F,4,FALSE)),"") ->  | R81: =IF(AT81>0,(VLOOKUP(G81,Codici!B:F,2,FALSE)),"") ->  | T81: =IF(B81="","",R81*B81) ->  | V81: 0 | W81: TS2L4-DAC100M2 | X81: =IF('Lotto4 DL560 Gen10 1'!$C$182>=1,'Lotto4 DL560 Gen10 1'!$C$182,0)*Riepilogo!$X$15 -> 0 | Y81: =IF('Lotto4 DL560 Gen10 2'!$C$182>=1,'Lotto4 DL560 Gen10 2'!$C$182,0)*Riepilogo!$Y$15 -> 0 | Z81: =IF('Lotto4 DL560 Gen10 3'!$C$182>=1,'Lotto4 DL560 Gen10 3'!$C$182,0)*Riepilogo!$Z$15 -> 0 | AE81: 0 | AG81: =SUM(X81:Z81) -> 0 | AJ81: 0 | AK81: 0 | AL81: 0 | AT81: 0
C82: =IF(AT82=0,"",(VLOOKUP(G82,Codici!B:F,5,FALSE))) ->  | J82: =IF(AT82>0,(VLOOKUP(G82,Codici!B:F,4,FALSE)),"") ->  | R82: =IF(AT82>0,(VLOOKUP(G82,Codici!B:F,2,FALSE)),"") ->  | V82: 0 | W82: TS2L4-DAC100M3 | X82: =IF('Lotto4 DL560 Gen10 1'!$C$184>=1,'Lotto4 DL560 Gen10 1'!$C$184,0)*Riepilogo!$X$15 -> 0 | Y82: =IF('Lotto4 DL560 Gen10 2'!$C$184>=1,'Lotto4 DL560 Gen10 2'!$C$184,0)*Riepilogo!$Y$15 -> 0 | Z82: =IF('Lotto4 DL560 Gen10 3'!$C$184>=1,'Lotto4 DL560 Gen10 3'!$C$184,0)*Riepilogo!$Z$15 -> 0 | AE82: 0 | AG82: 0 | AJ82: 0 | AK82: 0 | AL82: 0 | AT82: 0
C83: =IF(AT83=0,"",(VLOOKUP(G83,Codici!B:F,5,FALSE))) ->  | J83: =IF(AT83>0,(VLOOKUP(G83,Codici!B:F,4,FALSE)),"") ->  | R83: =IF(AT83>0,(VLOOKUP(G83,Codici!B:F,2,FALSE)),"") ->  | V83: 0 | W83: TS2L4-DACAOCM3 | X83: =IF('Lotto4 DL560 Gen10 1'!$C$187>=1,'Lotto4 DL560 Gen10 1'!$C$187,0)*Riepilogo!$X$15 -> 0 | Y83: =IF('Lotto4 DL560 Gen10 2'!$C$187>=1,'Lotto4 DL560 Gen10 2'!$C$187,0)*Riepilogo!$Y$15 -> 0 | Z83: =IF('Lotto4 DL560 Gen10 3'!$C$187>=1,'Lotto4 DL560 Gen10 3'!$C$187,0)*Riepilogo!$Z$15 -> 0 | AE83: 0 | AG83: 0 | AJ83: 0 | AK83: 0 | AL83: 0 | AT83: 0
C84: =IF(AT84=0,"",(VLOOKUP(G84,Codici!B:F,5,FALSE))) ->  | J84: =IF(AT84>0,(VLOOKUP(G84,Codici!B:F,4,FALSE)),"") ->  | R84: =IF(AT84>0,(VLOOKUP(G84,Codici!B:F,2,FALSE)),"") ->  | V84: 0 | W84: TS2L4-DACAOCM5 | X84: =IF('Lotto4 DL560 Gen10 1'!$C$189>=1,'Lotto4 DL560 Gen10 1'!$C$189,0)*Riepilogo!$X$15 -> 0 | Y84: =IF('Lotto4 DL560 Gen10 2'!$C$189>=1,'Lotto4 DL560 Gen10 2'!$C$189,0)*Riepilogo!$Y$15 -> 0 | Z84: =IF('Lotto4 DL560 Gen10 3'!$C$189>=1,'Lotto4 DL560 Gen10 3'!$C$189,0)*Riepilogo!$Z$15 -> 0 | AE84: 0 | AG84: 0 | AJ84: 0 | AK84: 0 | AL84: 0 | AT84: 0
C85: =IF(AT85=0,"",(VLOOKUP(G85,Codici!B:F,5,FALSE))) ->  | J85: =IF(AT85>0,(VLOOKUP(G85,Codici!B:F,4,FALSE)),"") ->  | R85: =IF(AT85>0,(VLOOKUP(G85,Codici!B:F,2,FALSE)),"") ->  | V85: 0 | W85: TS2L4-DACAOCM7 | X85: =IF('Lotto4 DL560 Gen10 1'!$C$191>=1,'Lotto4 DL560 Gen10 1'!$C$191,0)*Riepilogo!$X$15 -> 0 | Y85: =IF('Lotto4 DL560 Gen10 2'!$C$191>=1,'Lotto4 DL560 Gen10 2'!$C$191,0)*Riepilogo!$Y$15 -> 0 | Z85: =IF('Lotto4 DL560 Gen10 3'!$C$191>=1,'Lotto4 DL560 Gen10 3'!$C$191,0)*Riepilogo!$Z$15 -> 0 | AE85: 0 | AG85: 0 | AJ85: 0 | AK85: 0 | AL85: 0 | AT85: 0
C86: =IF(AT86=0,"",(VLOOKUP(G86,Codici!B:F,5,FALSE))) ->  | G86: =IF(AT86>0,W86,"") ->  | J86: =IF(AT86>0,(VLOOKUP(G86,Codici!B:F,4,FALSE)),"") ->  | R86: =IF(AT86>0,(VLOOKUP(G86,Codici!B:F,2,FALSE)),"") ->  | T86: =IF(B86="","",R86*B86) ->  | V86: 0 | W86: TS2L4-VSANSTD3Y | X86: =IF('Lotto4 DL560 Gen10 1'!$D$62=Riepilogo!$W$86,'Lotto4 DL560 Gen10 1'!$C$62,0) -> 0 | Y86: =IF('Lotto4 DL560 Gen10 2'!$D$62=Riepilogo!$W$86,'Lotto4 DL560 Gen10 2'!$C$62,0) -> 0 | Z86: =IF('Lotto4 DL560 Gen10 3'!$D$62=Riepilogo!$W$86,'Lotto4 DL560 Gen10 3'!$C$62,0) -> 0 | AE86: 0 | AG86: 0 | AJ86: =X86*$X$15 -> 0 | AK86: =Y86*$Y$15 -> 0 | AL86: =Z86*$Z$15 -> 0 | AT86: 0
C87: =IF(AT87=0,"",(VLOOKUP(G87,Codici!B:F,5,FALSE))) ->  | J87: =IF(AT87>0,(VLOOKUP(G87,Codici!B:F,4,FALSE)),"") ->  | R87: =IF(AT87>0,(VLOOKUP(G87,Codici!B:F,2,FALSE)),"") ->  | V87: 0 | W87: TS2L4-VSANADV3Y | X87: =IF('Lotto4 DL560 Gen10 1'!$D$62=Riepilogo!$W$87,'Lotto4 DL560 Gen10 1'!$C$62,0) -> 0 | Y87: =IF('Lotto4 DL560 Gen10 2'!$D$62=Riepilogo!$W$87,'Lotto4 DL560 Gen10 2'!$C$62,0) -> 0 | Z87: =IF('Lotto4 DL560 Gen10 3'!$D$62=Riepilogo!$W$87,'Lotto4 DL560 Gen10 3'!$C$62,0) -> 0 | AE87: 0 | AG87: 0 | AJ87: 0 | AK87: 0 | AL87: 0 | AT87: 0
C88: =IF(AT88=0,"",(VLOOKUP(G88,Codici!B:F,5,FALSE))) ->  | J88: =IF(AT88>0,(VLOOKUP(G88,Codici!B:F,4,FALSE)),"") ->  | R88: =IF(AT88>0,(VLOOKUP(G88,Codici!B:F,2,FALSE)),"") ->  | V88: 0 | W88: TS2L4-SSD400MU | X88: ='Lotto4 DL560 Gen10 1'!$C$96 -> 0 | Y88: ='Lotto4 DL560 Gen10 2'!$C$96 -> 0 | Z88: ='Lotto4 DL560 Gen10 3'!$C$96 -> 0 | AE88: 0 | AG88: 0 | AJ88: 0 | AK88: 0 | AL88: 0 | AT88: 0
C89: =IF(AT89=0,"",(VLOOKUP(G89,Codici!B:F,5,FALSE))) ->  | J89: =IF(AT89>0,(VLOOKUP(G89,Codici!B:F,4,FALSE)),"") ->  | R89: =IF(AT89>0,(VLOOKUP(G89,Codici!B:F,2,FALSE)),"") ->  | V89: 0 | W89: TS2L4-SSD400WIB | X89: ='Lotto4 DL560 Gen10 1'!$C$98 -> 0 | Y89: ='Lotto4 DL560 Gen10 2'!$C$98 -> 0 | Z89: ='Lotto4 DL560 Gen10 3'!$C$98 -> 0 | AE89: 0 | AG89: 0 | AJ89: 0 | AK89: 0 | AL89: 0 | AT89: 0
C90: =IF(AT90=0,"",(VLOOKUP(G90,Codici!B:F,5,FALSE))) ->  | J90: =IF(AT90>0,(VLOOKUP(G90,Codici!B:F,4,FALSE)),"") ->  | R90: =IF(AT90>0,(VLOOKUP(G90,Codici!B:F,2,FALSE)),"") ->  | V90: 0 | W90: TS2L4-SSD800MU | X90: ='Lotto4 DL560 Gen10 1'!$C$100 -> 0 | Y90: ='Lotto4 DL560 Gen10 2'!$C$100 -> 0 | Z90: ='Lotto4 DL560 Gen10 3'!$C$100 -> 0 | AE90: 0 | AG90: 0 | AJ90: 0 | AK90: 0 | AL90: 0 | AT90: 0
C91: =IF(AT91=0,"",(VLOOKUP(G91,Codici!B:F,5,FALSE))) ->  | J91: =IF(AT91>0,(VLOOKUP(G91,Codici!B:F,4,FALSE)),"") ->  | R91: =IF(AT91>0,(VLOOKUP(G91,Codici!B:F,2,FALSE)),"") ->  | V91: 0 | W91: TS2L4-SSD960MU | X91: ='Lotto4 DL560 Gen10 1'!$C$102 -> 0 | Y91: ='Lotto4 DL560 Gen10 2'!$C$102 -> 0 | Z91: ='Lotto4 DL560 Gen10 3'!$C$102 -> 0 | AE91: 0 | AG91: 0 | AJ91: 0 | AK91: 0 | AL91: 0 | AT91: 0
C92: =IF(AT92=0,"",(VLOOKUP(G92,Codici!B:F,5,FALSE))) ->  | J92: =IF(AT92>0,(VLOOKUP(G92,Codici!B:F,4,FALSE)),"") ->  | R92: =IF(AT92>0,(VLOOKUP(G92,Codici!B:F,2,FALSE)),"") ->  | V92: 0 | W92: TS2L4-DUAL32GB | X92: =IF('Lotto4 DL560 Gen10 1'!$C$115=0,0,1) -> 0 | Y92: =IF('Lotto4 DL560 Gen10 2'!$C$115=0,0,1) -> 0 | Z92: =IF('Lotto4 DL560 Gen10 3'!$C$115=0,0,1) -> 0 | AE92: 0 | AG92: 0 | AJ92: 0 | AK92: 0 | AL92: 0 | AT92: 0
B93: =IF(AT93=0,"",AT93) ->  | C93: =IF(AT93=0,"",(VLOOKUP(G93,Codici!B:F,5,FALSE))) ->  | G93: =IF(AT93>0,W93,"") ->  | J93: =IF(AT93>0,(VLOOKUP(G93,Codici!B:F,4,FALSE)),"") ->  | R93: =IF(AT93>0,(VLOOKUP(G93,Codici!B:F,2,FALSE)),"") ->  | T93: =IF(B93="","",R93*B93) ->  | V93: =IF(B93>="",0,1) -> 0 | W93: TS2L4-640SFP28 | X93: =COUNTIF($AI$19:$AI$26,W93) -> 0 | Y93: =COUNTIF($AJ$19:$AJ$26,W93) -> 0 | Z93: =COUNTIF($AK$19:$AK$26,W93) -> 0 | AE93: =SUM(X93:AD93) -> 0 | AG93: =SUM(X93:Z93) -> 0 | AH93: =SUM(AA93:AC93) -> 0 | AI93: =SUM(AD93:AF93) -> 0 | AJ93: 0 | AK93: 0 | AL93: 0 | AM93: =AA93*$X$35 -> 0 | AN93: =AB93*$Y$35 -> 0 | AO93: =AC93*$Z$35 -> 0 | AP93: =AD93*$X$75 -> 0 | AQ93: =AE93*$Y$75 -> 0 | AR93: =AF93*$Z$75 -> 0 | AT93: =SUM(AJ93:AL93) -> 0
C94: =IF(AT94=0,"",(VLOOKUP(G94,Codici!B:F,5,FALSE))) ->  | J94: =IF(AT94>0,(VLOOKUP(G94,Codici!B:F,4,FALSE)),"") ->  | R94: =IF(AT94>0,(VLOOKUP(G94,Codici!B:F,2,FALSE)),"") ->  | V94: 0 | W94: TS2L4-DAC3SFP28 | X94: =IF('Lotto4 DL560 Gen10 1'!$C$176>=1,'Lotto4 DL560 Gen10 1'!$C$176,0)*Riepilogo!$X$15 -> 0 | Y94: =IF('Lotto4 DL560 Gen10 2'!$C$178>=1,'Lotto4 DL560 Gen10 2'!$C$178,0)*Riepilogo!$Y$15 -> 0 | Z94: =IF('Lotto4 DL560 Gen10 3'!$C$178>=1,'Lotto4 DL560 Gen10 3'!$C$178,0)*Riepilogo!$Z$15 -> 0 | AE94: =SUM(X94:AD94) -> 0 | AG94: =SUM(X94:Z94) -> 0 | AJ94: =X94 -> 0 | AK94: 0 | AL94: 0 | AT94: =SUM(AJ94:AL94) -> 0
C95: =IF(AT95=0,"",(VLOOKUP(G95,Codici!B:F,5,FALSE))) ->  | J95: =IF(AT95>0,(VLOOKUP(G95,Codici!B:F,4,FALSE)),"") ->  | R95: =IF(AT95>0,(VLOOKUP(G95,Codici!B:F,2,FALSE)),"") ->  | V95: 0 | W95: TS2L4-SFP28SR | X95: =IF('Lotto4 DL560 Gen10 1'!$C$198>=1,'Lotto4 DL560 Gen10 1'!$C$198,0)*Riepilogo!$X$15 -> 0 | Y95: =IF('Lotto4 DL560 Gen10 2'!$C$202>=1,'Lotto4 DL560 Gen10 2'!$C$202,0)*Riepilogo!$Y$15 -> 0 | Z95: =IF('Lotto4 DL560 Gen10 3'!$C$202>=1,'Lotto4 DL560 Gen10 3'!$C$202,0)*Riepilogo!$Z$15 -> 0 | AE95: 0 | AG95: 0 | AJ95: 0 | AK95: 0 | AL95: 0 | AT95: 0
C96: =IF(AT96=0,"",(VLOOKUP(G96,Codici!B:F,5,FALSE))) ->  | J96: =IF(AT96>0,(VLOOKUP(G96,Codici!B:F,4,FALSE)),"") ->  | R96: =IF(AT96>0,(VLOOKUP(G96,Codici!B:F,2,FALSE)),"") ->  | V96: 0 | W96: TS2L4-DACX240M3 | X96: =IF('Lotto4 DL560 Gen10 1'!$C$170>=1,'Lotto4 DL560 Gen10 1'!$C$170,0)*Riepilogo!$X$15 -> 0 | Y96: =IF('Lotto4 DL560 Gen10 2'!$C$170>=1,'Lotto4 DL560 Gen10 2'!$C$170,0)*Riepilogo!$Y$15 -> 0 | Z96: =IF('Lotto4 DL560 Gen10 3'!$C$170>=1,'Lotto4 DL560 Gen10 3'!$C$170,0)*Riepilogo!$Z$15 -> 0 | AE96: 0 | AG96: 0 | AJ96: =X96 -> 0 | AK96: =Y96*$Y$15 -> 0 | AL96: =Z96*$Z$15 -> 0 | AT96: 0
C97: =IF(AT97=0,"",(VLOOKUP(G97,Codici!B:F,5,FALSE))) ->  | J97: =IF(AT97>0,(VLOOKUP(G97,Codici!B:F,4,FALSE)),"") ->  | R97: =IF(AT97>0,(VLOOKUP(G97,Codici!B:F,2,FALSE)),"") ->  | V97: 0 | W97: TS2L4-DACX240M5 | X97: =IF('Lotto4 DL560 Gen10 1'!$C$172>=1,'Lotto4 DL560 Gen10 1'!$C$172,0)*Riepilogo!$X$15 -> 0 | Y97: =IF('Lotto4 DL560 Gen10 2'!$C$172>=1,'Lotto4 DL560 Gen10 2'!$C$172,0)*Riepilogo!$Y$15 -> 0 | Z97: =IF('Lotto4 DL560 Gen10 3'!$C$172>=1,'Lotto4 DL560 Gen10 3'!$C$172,0)*Riepilogo!$Z$15 -> 0 | AE97: 0 | AG97: 0 | AJ97: 0 | AK97: 0 | AL97: 0 | AT97: 0
C98: =IF(AT98=0,"",(VLOOKUP(G98,Codici!B:F,5,FALSE))) ->  | J98: =IF(AT98>0,(VLOOKUP(G98,Codici!B:F,4,FALSE)),"") ->  | R98: =IF(AT98>0,(VLOOKUP(G98,Codici!B:F,2,FALSE)),"") ->  | V98: 0 | W98: TS2L4-DACX240M7 | X98: =IF('Lotto4 DL560 Gen10 1'!$C$174>=1,'Lotto4 DL560 Gen10 1'!$C$174,0)*Riepilogo!$X$15 -> 0 | Y98: =IF('Lotto4 DL560 Gen10 2'!$C$174>=1,'Lotto4 DL560 Gen10 2'!$C$174,0)*Riepilogo!$Y$15 -> 0 | Z98: =IF('Lotto4 DL560 Gen10 3'!$C$174>=1,'Lotto4 DL560 Gen10 3'!$C$174,0)*Riepilogo!$Z$15 -> 0 | AE98: 0 | AG98: 0 | AJ98: 0 | AK98: 0 | AL98: 0 | AT98: 0
B99: TOTALE PRODOTTI CONVENZIONE (I.V.A. Esclusa) | R99: =SUM(T15:U49) -> 0 | V99: 1
B100: TOTALE ULTERIORI OPZIONI (I.V.A. Esclusa) | R100: =SUM(T51:U98) -> 0 | V100: =IF(R100>0,1,0) -> 0
B101: TOTALE (I.V.A. Esclusa) | R101: =R100+R99 -> 0 | V101: 1
B102: I.V.A. | R102: =R101*22% -> 0 | V102: 1
B103: TOTALE ORDINE | R103: =SUM(R101:U102) -> 0 | V103: 1
V104: 1
V105: 1
V106: 1
D107: =IF(G6>0,"DETTAGLIO CONFIGURAZIONI SERVER LOTTO 4 ","") ->  | V107: 1
V108: 1
V109: 1
V110: =IF($B$15>="",0,1) -> 0
B111: Proliant DL560 Gen10 Conf.1 | E111: =SRV_A -> 0 | F111: Server | I111: Proliant DL560 Gen10 Conf.2 | L111: =SRV_AA -> 0 | M111: Server | P111: Proliant DL560 Gen10 Conf.3 | S111: =SRV_AAA -> 0 | T111: Server | V111: =IF($B$15>="",0,1) -> 0
V112: =IF($B$15>="",0,1) -> 0
B113: =IF(SRV_A>0,"1","-") -> - | C113: =IF(B113="-","-",CONCATENATE(MID($C$15,1,21)," - ",$G$15)) -> - | I113: =IF(SRV_AA>0,"1","-") -> - | J113: =IF(I113="-","-",CONCATENATE(MID($C$15,1,21)," - ",$G$15)) -> - | P113: =IF(SRV_AAA>0,"1","-") -> - | Q113: =IF(P113="-","-",CONCATENATE(MID($C$15,1,21)," - ",$G$15)) -> - | V113: =IF($B$15>="",0,1) -> 0
B114: =IF(X16=0,"-",X16/$E$111) -> - | C114: =IF(B114="-","-",CONCATENATE(MID($C$16,1,21)," - ",$G$16)) -> - | I114: =IF(Y16=0,"-",Y16/$L$111) -> - | J114: =IF(I114="-","-",CONCATENATE(MID(C16,1,21)," - ",G16)) -> - | P114: =IF(Z16=0,"-",Z16/$S$111) -> - | Q114: =IF(P114="-","-",CONCATENATE(MID(C16,1,21)," - ",G16)) -> - | V114: =Z114 -> 0 | W114: =IF(B114="-",0,B114) -> 0 | X114: =IF(I114="-",0,I114) -> 0 | Y114: =IF(P114="-",0,P114) -> 0 | Z114: =IF(X114+W114+Y114>0,1,0) -> 0
B115: - | C115: =IF(B115="-","-",CONCATENATE(MID($C$17,1,21)," - ",$G$17)) -> - | I115: - | J115: - | P115: - | Q115: - | V115: =Z115 -> 0 | W115: =IF(B115="-",0,B115) -> 0 | X115: =IF(I115="-",0,I115) -> 0 | Y115: =IF(P115="-",0,P115) -> 0 | Z115: =IF(X115+W115+Y115>0,1,0) -> 0
B116: - | C116: =IF(B116="-","-",CONCATENATE(MID($C$18,1,21)," - ",$G$18)) -> - | I116: - | J116: - | P116: - | Q116: - | V116: 0 | W116: 0 | X116: 0 | Y116: 0 | Z116: 0
B117: - | C117: =IF(B117="-","-",CONCATENATE(MID(C19,1,21)," - ",G19)) -> - | I117: - | J117: - | P117: - | Q117: - | V117: 0 | W117: 0 | X117: 0 | Y117: 0 | Z117: 0
B118: - | C118: - | I118: - | J118: - | P118: - | Q118: - | V118: 0 | W118: 0 | X118: 0 | Y118: 0 | Z118: 0
B119: - | C119: - | I119: - | J119: - | P119: - | Q119: - | V119: 0 | W119: 0 | X119: 0 | Y119: 0 | Z119: 0
B120: - | C120: - | I120: - | J120: - | P120: - | Q120: - | V120: 0 | W120: 0 | X120: 0 | Y120: 0 | Z120: 0
B121: - | C121: - | I121: - | J121: - | P121: - | Q121: - | V121: 0 | W121: 0 | X121: 0 | Y121: 0 | Z121: 0
B122: - | C122: - | I122: - | J122: - | P122: - | Q122: - | V122: 0 | W122: 0 | X122: 0 | Y122: 0 | Z122: 0
B123: - | C123: - | I123: - | J123: - | P123: - | Q123: - | V123: 0 | W123: 0 | X123: 0 | Y123: 0 | Z123: 0
B124: - | C124: - | I124: - | J124: - | P124: - | Q124: - | V124: 0 | W124: 0 | X124: 0 | Y124: 0 | Z124: 0
B125: - | C125: - | I125: - | J125: - | P125: - | Q125: - | V125: 0 | W125: 0 | X125: 0 | Y125: 0 | Z125: 0
B126: - | C126: - | I126: - | J126: - | P126: - | Q126: - | V126: 0 | W126: 0 | X126: 0 | Y126: 0 | Z126: 0
B127: - | C127: - | I127: - | J127: - | P127: - | Q127: - | V127: 0 | W127: 0 | X127: 0 | Y127: 0 | Z127: 0
B128: - | C128: - | I128: - | J128: - | P128: - | Q128: - | V128: 0 | W128: 0 | X128: 0 | Y128: 0 | Z128: 0
B129: - | C129: - | I129: - | J129: - | P129: - | Q129: - | V129: 0 | W129: 0 | X129: 0 | Y129: 0 | Z129: 0
B130: - | C130: - | I130: - | J130: - | P130: - | Q130: - | V130: 0 | W130: 0 | X130: 0 | Y130: 0 | Z130: 0
B131: - | C131: - | I131: - | J131: - | P131: - | Q131: - | V131: 0 | W131: 0 | X131: 0 | Y131: 0 | Z131: 0
B132: =IF(X35=0,"-",X35/$E$111) -> - | C132: =IF(B132="-","-",CONCATENATE(MID(C35,1,21)," - ",G35)) -> - | I132: =IF(Y35=0,"-",Y35/$L$111) -> - | J132: =IF(I132="-","-",CONCATENATE(MID(C35,1,21)," - ",G35)) -> - | P132: =IF(Z35=0,"-",Z35/$S$111) -> - | Q132: =IF(P132="-","-",CONCATENATE(MID(C35,1,21)," - ",G35)) -> - | V132: 0 | W132: 0 | X132: 0 | Y132: 0 | Z132: 0
B133: - | C133: - | I133: - | J133: - | P133: - | Q133: - | V133: 0 | W133: 0 | X133: 0 | Y133: 0 | Z133: 0
B134: - | C134: - | I134: - | J134: - | P134: - | Q134: - | V134: 0 | W134: 0 | X134: 0 | Y134: 0 | Z134: 0
B135: - | C135: - | I135: - | J135: - | P135: - | Q135: - | V135: 0 | W135: 0 | X135: 0 | Y135: =IF(P135="-",0,P135) -> 0 | Z135: 0
B136: - | C136: - | I136: - | J136: - | P136: - | Q136: - | V136: 0 | W136: 0 | X136: 0 | Y136: =IF(P136="-",0,P136) -> 0 | Z136: 0
B137: - | C137: - | I137: - | J137: - | P137: - | Q137: - | V137: =Z137 -> 0 | W137: =IF(B137="-",0,B137) -> 0 | X137: =IF(I137="-",0,I137) -> 0 | Y137: =IF(P137="-",0,P137) -> 0 | Z137: =IF(X137+W137+Y137>0,1,0) -> 0
B138: - | C138: - | I138: - | J138: - | P138: - | Q138: - | V138: 0 | W138: 0 | X138: 0 | Y138: 0 | Z138: 0
B139: - | C139: - | I139: - | J139: - | P139: - | Q139: - | V139: 0 | W139: 0 | X139: 0 | Y139: 0 | Z139: 0
B140: - | C140: - | I140: - | J140: - | P140: - | Q140: - | V140: 0 | W140: 0 | X140: 0 | Y140: 0 | Z140: 0
B141: =IF(X53=0,"-",X53) -> - | C141: =IF(B141="-","-",CONCATENATE(MID(C53,1,21)," - ",G53)) -> - | I141: =IF(Y53=0,"-",Y53) -> - | J141: =IF(I141="-","-",CONCATENATE(MID(C53,1,24)," - ",G53)) -> - | P141: =IF(Z53=0,"-",Z53) -> - | Q141: =IF(P141="-","-",CONCATENATE(MID(C53,1,24)," - ",G53)) -> - | V141: 0 | W141: 0 | X141: 0 | Y141: 0 | Z141: 0
B142: =IF(X54=0,"-",X54) -> - | C142: =IF(B142="-","-",CONCATENATE(MID(C54,1,21)," - ",G54)) -> - | I142: =IF(Y54=0,"-",Y54) -> - | J142: =IF(I142="-","-",CONCATENATE(MID(C54,1,24)," - ",G54)) -> - | P142: =IF(Z54=0,"-",Z54) -> - | Q142: =IF(P142="-","-",CONCATENATE(MID(C54,1,24)," - ",G54)) -> - | V142: 0 | W142: 0 | X142: 0 | Y142: 0 | Z142: 0
B143: - | C143: - | I143: - | J143: - | P143: - | Q143: - | V143: =Z143 -> 0 | W143: =IF(B143="-",0,B143) -> 0 | X143: =IF(I143="-",0,I143) -> 0 | Y143: =IF(P143="-",0,P143) -> 0 | Z143: =IF(X143+W143+Y143>0,1,0) -> 0
B144: - | C144: - | I144: - | J144: - | P144: - | Q144: - | V144: =Z144 -> 0 | W144: =IF(B144="-",0,B144) -> 0 | X144: =IF(I144="-",0,I144) -> 0 | Y144: =IF(P144="-",0,P144) -> 0 | Z144: =IF(X144+W144+Y144>0,1,0) -> 0
B145: - | C145: - | I145: - | J145: - | P145: - | Q145: - | V145: =Z145 -> 0 | W145: =IF(B145="-",0,B145) -> 0 | X145: =IF(I145="-",0,I145) -> 0 | Y145: =IF(P145="-",0,P145) -> 0 | Z145: =IF(X145+W145+Y145>0,1,0) -> 0
B146: - | C146: - | I146: - | J146: - | P146: - | Q146: - | V146: 0 | W146: 0 | X146: 0 | Y146: 0 | Z146: 0
B147: - | C147: - | I147: - | J147: - | P147: - | Q147: - | V147: 0 | W147: 0 | X147: 0 | Y147: 0 | Z147: 0
B148: - | C148: - | I148: - | J148: - | P148: - | Q148: - | V148: 0 | W148: 0 | X148: 0 | Y148: 0 | Z148: 0
B149: - | C149: - | I149: - | J149: - | P149: - | Q149: - | V149: 0 | W149: 0 | X149: 0 | Y149: 0 | Z149: 0
B150: - | C150: - | I150: - | J150: - | P150: - | Q150: - | V150: 0 | W150: 0 | X150: 0 | Y150: 0 | Z150: 0
B151: - | C151: - | I151: - | J151: - | P151: - | Q151: - | V151: 0 | W151: 0 | X151: 0 | Y151: 0 | Z151: 0
B152: - | C152: - | I152: - | J152: - | P152: - | Q152: - | V152: 0 | W152: 0 | X152: 0 | Y152: 0 | Z152: 0
B153: - | C153: - | I153: - | J153: - | P153: - | Q153: - | V153: 0 | W153: 0 | X153: 0 | Y153: 0 | Z153: 0
B154: - | C154: - | I154: - | J154: - | P154: - | Q154: - | V154: 0 | W154: 0 | X154: 0 | Y154: 0 | Z154: 0
B155: - | C155: - | I155: - | J155: - | P155: - | Q155: - | V155: 0 | W155: 0 | X155: 0 | Y155: 0 | Z155: 0
B156: - | C156: - | I156: - | J156: - | P156: - | Q156: - | V156: 0 | W156: 0 | X156: 0 | Y156: 0 | Z156: 0
B157: - | C157: - | I157: - | J157: - | P157: - | Q157: - | V157: 0 | W157: =IF(B157="-",0,B157) -> 0 | X157: =IF(I157="-",0,I157) -> 0 | Y157: =IF(P157="-",0,P157) -> 0 | Z157: =IF(X157+W157+Y157>0,1,0) -> 0
B158: - | C158: - | I158: - | J158: - | P158: - | Q158: - | V158: 0 | W158: 0 | X158: 0 | Y158: 0 | Z158: 0
B159: - | C159: - | I159: - | J159: - | P159: - | Q159: - | V159: 0 | W159: 0 | X159: 0 | Y159: 0 | Z159: 0
B160: - | C160: - | I160: - | J160: - | P160: - | Q160: - | V160: 0 | W160: 0 | X160: 0 | Y160: 0 | Z160: 0
B161: - | C161: - | I161: - | J161: - | P161: - | Q161: - | V161: 0 | W161: 0 | X161: 0 | Y161: 0 | Z161: 0
B162: - | C162: - | I162: - | J162: - | P162: - | Q162: - | V162: 0 | W162: 0 | X162: 0 | Y162: 0 | Z162: 0
B163: - | C163: - | I163: - | J163: - | P163: - | Q163: - | V163: 0 | W163: 0 | X163: 0 | Y163: 0 | Z163: 0
B164: - | C164: - | I164: - | J164: - | P164: - | Q164: - | V164: 0 | W164: 0 | X164: 0 | Y164: 0 | Z164: 0
B165: - | C165: - | I165: - | J165: - | P165: - | Q165: - | V165: 0 | W165: 0 | X165: 0 | Y165: 0 | Z165: 0
B166: - | C166: - | I166: - | J166: - | P166: - | Q166: - | V166: 0 | W166: 0 | X166: 0 | Y166: 0 | Z166: 0
B167: - | C167: - | I167: - | J167: - | P167: - | Q167: - | V167: 0 | W167: 0 | X167: 0 | Y167: 0 | Z167: 0
B168: - | C168: - | I168: - | J168: - | P168: - | Q168: - | V168: 0 | W168: 0 | X168: 0 | Y168: 0 | Z168: 0
B169: - | C169: - | I169: - | J169: - | P169: - | Q169: - | V169: 0 | W169: 0 | X169: 0 | Y169: 0 | Z169: 0
B170: - | C170: - | I170: - | J170: - | P170: - | Q170: - | V170: 0 | W170: 0 | X170: 0 | Y170: 0 | Z170: 0
B171: - | C171: - | I171: - | J171: - | P171: - | Q171: - | V171: 0 | W171: 0 | X171: 0 | Y171: 0 | Z171: 0
B172: - | C172: - | I172: - | J172: - | P172: - | Q172: - | V172: 0 | W172: 0 | X172: 0 | Y172: 0 | Z172: 0
B173: - | C173: - | I173: - | J173: - | P173: - | Q173: - | V173: 0 | W173: =IF(B173="-",0,B173) -> 0 | X173: =IF(I173="-",0,I173) -> 0 | Y173: =IF(P173="-",0,P173) -> 0 | Z173: =IF(X173+W173+Y173>0,1,0) -> 0
B174: - | C174: - | I174: - | J174: - | P174: - | Q174: - | V174: 0 | W174: 0 | X174: 0 | Y174: 0 | Z174: 0
B175: - | C175: - | I175: - | J175: - | P175: - | Q175: - | V175: 0 | W175: 0 | X175: 0 | Y175: 0 | Z175: 0
B176: - | C176: - | I176: - | J176: - | P176: - | Q176: - | V176: 0 | W176: 0 | X176: 0 | Y176: 0 | Z176: 0
B177: - | C177: - | I177: - | J177: - | P177: - | Q177: - | V177: 0 | W177: 0 | X177: 0 | Y177: 0 | Z177: 0
B178: - | C178: - | I178: - | J178: - | P178: - | Q178: - | V178: 0 | W178: 0 | X178: 0 | Y178: 0 | Z178: 0
B179: - | C179: - | I179: - | J179: - | P179: - | Q179: - | V179: =Z179 -> 0 | W179: 0 | X179: 0 | Y179: 0 | Z179: 0
B180: - | C180: - | I180: - | J180: - | P180: - | Q180: - | V180: 0 | W180: =IF(B180="-",0,B180) -> 0 | X180: =IF(I180="-",0,I180) -> 0 | Y180: =IF(P180="-",0,P180) -> 0 | Z180: =IF(X180+W180+Y180>0,1,0) -> 0
B181: - | C181: - | I181: - | J181: - | P181: - | Q181: - | V181: 0 | W181: 0 | X181: 0 | Y181: 0 | Z181: 0
B182: - | C182: - | I182: - | J182: - | P182: - | Q182: - | V182: =Z182 -> 0 | W182: =IF(B182="-",0,B182) -> 0 | X182: =IF(I182="-",0,I182) -> 0 | Y182: =IF(P182="-",0,P182) -> 0 | Z182: =IF(X182+W182+Y182>0,1,0) -> 0
B183: - | C183: - | I183: - | J183: - | P183: - | Q183: - | V183: 0 | W183: 0 | X183: 0 | Y183: 0 | Z183: 0
B184: - | C184: - | I184: - | J184: - | P184: - | Q184: - | V184: 0 | W184: 0 | X184: 0 | Y184: 0 | Z184: 0
B185: - | C185: - | I185: - | J185: - | P185: - | Q185: - | V185: 0 | W185: 0 | X185: 0 | Y185: 0 | Z185: 0
B186: - | C186: - | I186: - | J186: - | P186: - | Q186: - | V186: 0 | W186: 0 | X186: 0 | Y186: 0 | Z186: 0
V187: =IF($B$15>="",0,1) -> 0
B188: Configurazione RAID | I188: Configurazione RAID | P188: Configurazione RAID | V188: 0
V189: 0
B190: ='Lotto4 DL560 Gen10 1'!B109 -> Specificare la configurazione RAID per l'installazione del Sistema Operativo, se richiesto. e/o inserire eventuali note. | I190: ='Lotto4 DL560 Gen10 2'!B109 -> Specificare la configurazione RAID per l'installazione del Sistema Operativo, se richiesto. e/o inserire eventuali note. | K190: =IF(#REF!=0,"",#REF!) ->  | P190: ='Lotto4 DL560 Gen10 3'!B109 -> Specificare la configurazione RAID per l'installazione del Sistema Operativo, se richiesto. e/o inserire eventuali note. | R190: =IF(#REF!=0,"",#REF!) ->  | V190: 0
V191: 0
I192: =IF(#REF!=0,"","Hot spare HDD 300 GB") ->  | M192: =IF(#REF!=0,"",#REF!) ->  | P192: =IF(#REF!=0,"","Hot spare HDD 300 GB") ->  | T192: =IF(#REF!=0,"",#REF!) ->  | V192: 0
V193: 0
V194: 0
I195: =IF(#REF!=0,"","HDD 1000 GB") ->  | K195: =IF(#REF!=0,"",#REF!) ->  | P195: =IF(#REF!=0,"","HDD 1000 GB") ->  | R195: =IF(#REF!=0,"",#REF!) ->  | V195: 0
V196: 0
I197: =IF(#REF!=0,"","Hot spare HDD 1000 GB") ->  | M197: =IF(#REF!=0,"",#REF!) ->  | P197: =IF(#REF!=0,"","Hot spare HDD 1000 GB") ->  | T197: =IF(#REF!=0,"",#REF!) ->  | V197: 0
V198: 0
V199: 0
I200: Note RAID | P200: Note RAID | V200: 0
... 18 more rows

Sheet Codici (hidden)
A1: CODICE CONVERGE | B1: CODICE CONVENZIONE | C1: Prezzo vendita da Converge a CONSIP tot. | D1: Qty Bundle | E1: Description | F1: CODICE CONVERGE
A2: TS2L4-SRV-U | B2: TS2L4-SRV-U | C2: 4628 | D2: 1 | E2: HPE ProLiant DL560 Gen10 Server BASE (2CPU Intel Xeon E5-Gold 5218) | F2: TS2L4-SRV-U
D3: 1 | E3: Manutenzione Server Base - via Day 1 contract
D4: 1 | E4: HPE Mobile USB DVDRW Drive
A6: TS2L4-CPU-U | B6: TS2L4-CPU-U | C6: 1961 | D6: 2 | E6: Intel Xeon-Gold 5218 (2.3GHz/16-core/125W) Processor Kit | F6: TS2L4-CPU-U
D7: 1 | E7: HPE DL5x0 Gen10 CPU Mezzanine Board Kit
A9: TS2H-RAM16-U | B9: TS2L4-RAM16-U | C9: 136 | D9: 1 | E9: HPE 16GB 1Rx4 PC4-2933 Smart Kit | F9: TS2H-RAM16-U
A10: TS2H-RAM32-U | B10: TS2L4-RAM32-U | C10: 397 | D10: 1 | E10: HPE 32GB 2Rx4 PC4-2933 Smart Kit | F10: TS2H-RAM32-U
A11: TS2H-RAM64-U | B11: TS2L4-RAM64-U | C11: 705 | D11: 1 | E11: HPE 64GB 4Rx4 PC4-2933 Smart Kit | F11: TS2H-RAM64-U
A13: TS2H-15K300 | B13: TS2L4-15K300 | C13: 135 | D13: 1 | E13: HPE 300GB SAS 15K SFF SC DS HDD | F13: TS2H-15K300
A14: TS2H-10K1200 | B14: TS2L4-10K1200 | C14: 146 | D14: 1 | E14: HPE 1.2TB SAS 10K SFF SC DS HDD | F14: TS2H-10K1200
A15: TS2H-SSD480 | B15: TS2L4-SSD480 | C15: 399 | D15: 1 | E15: HPE 480GB SAS 12G SFF SC DS SSD | F15: TS2H-SSD480
A16: TS2H-SSDR960 | B16: TS2L4-SSDR960 | C16: 664 | D16: 1 | E16: HPE 960GB SAS RI SFF SC DS SSD | F16: TS2H-SSDR960
A18: TS2H-LAN1 | B18: TS2L4-LAN1 | C18: 32 | D18: 1 | E18: HPE Ethernet 1Gb 2P 332T Adptr | F18: TS2H-LAN1
A19: TS2H-LAN10 | B19: TS2L4-LAN10 | C19: 357 | D19: 1 | E19: HPE Ethernet 10Gb 2P 530SFP+ Adptr | F19: TS2H-LAN10
D20: 2 | E20: HPE BLc 10G SFP+ SR Transceiver
A21: TS2H-CNA10 | B21: TS2L4-CNA10 | C21: 723 | D21: 1 | E21: HPE CN1100R 2P Converged Network Adapter | F21: TS2H-CNA10
D22: 2 | E22: HPE BLc 10G SFP+ SR Transceiver
A23: TS2H-FC16 | B23: TS2L4-FC16 | C23: 356 | D23: 1 | E23: HPE SN1100Q 16Gb 2p FC HBA | F23: TS2H-FC16
A25: TS2H-4Y | B25: TS2L4-4Y | C25: 300 | D25: 1 | E25: Estensione della manutenzione in garanzia per ulteriori 12 mesi | F25: TS2H-4Y
D26: 1 | E26: Onsite Labor CRU, 1Year
A27: TS2H-5Y | B27: TS2L4-5Y | C27: 600 | D27: 1 | E27: Estensione della manutenzione in garanzia per ulteriori 24 mesi | F27: TS2H-5Y
D28: 2 | E28: Onsite Labor CRU, 1Year
A30: TS2H-WIN1 | B30: TS2L4-WIN1 | C30: 551 | D30: 1 | E30: Microsoft Windows Server 2019 Standard Edition ROK 16 Core | F30: TS2H-WIN1
A31: TS2H-WIN2 | B31: TS2L4-WIN2 | C31: 551 | D31: 1 | E31: Microsoft Windows Server 2019 Standard Edition Additional License 16 Core | F31: TS2H-WIN2
A32: TS2H-CALDEV | B32: TS2L4-CALDEV | C32: 21 | D32: 1 | E32: 1-pack of Windows Server 2019 Device CALs | F32: TS2H-CALDEV
A33: TS2H-CALUSER | B33: TS2L4-CALUSER | C33: 21 | D33: 1 | E33: 1-pack of Windows Server 2019 User CALs | F33: TS2H-CALUSER
A34: TS2H-WIN2CORE | B34: TS2L4-WIN2CORE | C34: 54 | D34: 1 | E34: Microsoft Windows Server 2019 Standard Edition Additional License 2 Core | F34: TS2H-WIN2CORE
A35: TS2H-WINDC1 | B35: TS2L4-WINDC1 | C35: 2159 | D35: 1 | E35: Microsoft Windows Server 2019 Datacenter Edition ROK 16 Core | F35: TS2H-WINDC1
A36: TS2H-WINDC2 | B36: TS2L4-WINDC2 | C36: 2159 | D36: 1 | E36: Microsoft Windows Server 2019 Datacenter Edition Additional License 16 Core | F36: TS2H-WINDC2
A37: TS2H-WINDC2COR | B37: TS2L4-WINDC2COR | C37: 399 | D37: 1 | E37: Microsoft Windows Server 2019 Datacenter Edition Additional License 2 Core | F37: TS2H-WINDC2COR
A38: TS2-LINUX | B38: TS2L4-LINUX | C38: 49 | D38: 1 | E38: CentOS 7.x | F38: TS2-LINUX
A40: TS2-UPS | B40: TS2L4-UPS | C40: 387 | D40: 1 | E40: UPS MSR 3000VA + staffe | F40: TS2-UPS
C41: =B41*#REF! ->  | D41: 1 | E41: Kit 2 Guide universali per UPS
A42: TS2-GUI | B42: TS2L4-GUI | C42: 448 | D42: 1 | E42: Console KVM GUI da rack | F42: TS2-GUI
A43: TS2-RACK | B43: TS2L4-RACK | C43: 504 | D43: 1 | E43: Armadio Rack 42U | F43: TS2-RACK
A44: TS2-KVMIP | B44: TS2L4-KVMIP | C44: 495 | D44: 1 | E44: KVM Switch IP per GUI 16P con cavi | F44: TS2-KVMIP
A46: TS2-3MRJ45 | B46: TS2L4-3MRJ45 | C46: 2 | D46: 1 | E46: Cavo Rete UTP cat. 5e 3 metri A20 | F46: TS2-3MRJ45
A47: TS2H-10K1800 | B47: TS2L4-10K1800 | C47: 190 | D47: 1 | E47: HPE 1.8TB SAS 10K SFF HDD A20 | F47: TS2H-10K1800
A48: TS2H-SSDR1920 | B48: TS2L4-SSDR1920 | C48: 1313 | D48: 1 | E48: HPE 1.92TB SAS 12G RI SFF SSD A20 | F48: TS2H-SSDR1920
A49: TS2H-3RISER | B49: TS2L4-3RISER | C49: 285 | D49: 1 | E49: HPE DL560 Gen10 x8/x8 Tertiary Riser Kit | F49: TS2H-3RISER
A50: TS2H-SASBAY2 | B50: TS2L4-SASBAY2 | C50: 770 | D50: 1 | E50: HPE DL560 Gen10 8SFF HDD Bay2 Kit | F50: TS2H-SASBAY2
D51: 1 | E51: HPE DL5x0 Gen10 12Gb SAS Expander
A52: TS2H-SASBAY12 | B52: TS2L4-SASBAY12 | C52: 1030 | D52: 1 | E52: HPE DL560 Gen10 8SFF HDD Bay1 Kit | F52: TS2H-SASBAY12
D53: 1 | E53: HPE DL560 Gen10 8SFF HDD Bay2 Kit
D54: 1 | E54: HPE DL5x0 Gen10 12Gb SAS Expander
A55: TS2H-530T | B55: TS2L4-530T | C55: 298 | D55: 1 | E55: HPE Ethernet 10Gb 2-port 530T Adapter | F55: TS2H-530T
A56: TS2H-521T | B56: TS2L4-521T | C56: 298 | D56: 1 | E56: HPE Ethernet 10Gb 2-port 521T Adapter | F56: TS2H-521T
A57: TS2H-536FLR | B57: TS2L4-536FLR | C57: 610 | D57: 1 | E57: HPE FlexFabric 10Gb 4-port 536FLR-T Adapter | F57: TS2H-536FLR
A58: TS2H-562SFP | B58: TS2L4-562SFP | C58: 380 | D58: 1 | E58: HPE Ethernet 10Gb 2-port 562SFP+ Adapter | F58: TS2H-562SFP
A59: TS2H-10OTSR | B59: TS2L4-10OTSR | C59: 230 | D59: 1 | E59: HPE 10Gb SFP+ SR Transceiver | F59: TS2H-10OTSR
A60: TS2H-10OTLR | B60: TS2L4-10OTLR | C60: 481 | D60: 1 | E60: HPE 10G SFP+ LR Transceiver | F60: TS2H-10OTLR
A61: TS2H-GPURSRKIT | B61: TS2L4-GPURSRKIT | C61: 87 | D61: 1 | E61: HPE DL Gen10 x16 x16 GPU Rsr Kit | F61: TS2H-GPURSRKIT
A62: TS2H-P2000GPU | B62: TS2L4-P2000GPU | C62: 690 | D62: 1 | E62: HPE NVIDIA Quadro P2000 GPU Module | F62: TS2H-P2000GPU
A63: TS2H-841QSFP28 | B63: TS2L4-841QSFP28 | C63: 2699 | D63: 1 | E63: HPE InfiniBand EDR 100Gb 1-port 841QSFP28 Adapter | F63: TS2H-841QSFP28
A64: TS2H-OP101 | B64: TS2L4-OP101 | C64: 554 | D64: 1 | E64: HPE 100Gb 1-port OP101 QSFP28 x16 PCIe Gen3 with Intel Omni-Path Architecture Adapter | F64: TS2H-OP101
A65: TS2H-547FLR | B65: TS2L4-547FLR | C65: 461 | D65: 1 | E65: HPE InfiniBand FDR/Ethernet 40/50Gb 2-port 547FLR-QSFP Adapter | F65: TS2H-547FLR
A66: TS2H-VMWSTD1P5Y | B66: TS2L4-VMWSTD1P5Y | C66: 1933 | D66: 1 | E66: VMware vSphere Standard 1 Processor 5yr Software | F66: TS2H-VMWSTD1P5Y
A67: TS2H-VMWEP1P5Y | B67: TS2L4-VMWEP1P5Y | C67: 5889 | D67: 1 | E67: VMware vSphere Enterprise Plus 1 Processor 5yr Software | F67: TS2H-VMWEP1P5Y
A68: TS2H-VMWSTD1P3Y | B68: TS2L4-VMWSTD1P3Y | C68: 1506 | D68: 1 | E68: VMware vSphere Standard 1 Processor 3yr Software | F68: TS2H-VMWSTD1P3Y
A69: TS2H-VMWEP1P3Y | B69: TS2L4-VMWEP1P3Y | C69: 4734 | D69: 1 | E69: VMware vSphere Enterprise Plus 1 Processor 3yr Software | F69: TS2H-VMWEP1P3Y
A70: TS2H-VMWKIT6P3Y | B70: TS2L4-VMWKIT6P3Y | C70: 5052 | D70: 1 | E70: VMware vSphere Essentials Plus Kit 6 Processor 3yr | F70: TS2H-VMWKIT6P3Y
A71: TS2H-VMWKIT6P5Y | B71: TS2L4-VMWKIT6P5Y | C71: 6284 | D71: 1 | E71: VMware vSphere Essentials Plus Kit 6 Processor 5yr | F71: TS2H-VMWKIT6P5Y
A72: TS2H-VMWVCSTD3Y | B72: TS2L4-VMWVCSTD3Y | C72: 8240 | D72: 1 | E72: VMware vCenter Server Standard for vSphere 3yr SW | F72: TS2H-VMWVCSTD3Y
A73: TS2H-VMWVCSTD5Y | B73: TS2L4-VMWVCSTD5Y | C73: 10251 | D73: 1 | E73: VMware vCenter Server Standard for vSphere 5yr SW | F73: TS2H-VMWVCSTD5Y
A74: TS2H-OV3YILO | B74: TS2L4-OV3YILO | C74: 480 | D74: 1 | E74: HPE OneView 3yr 24x7 Supp Phys 1 Svr Lic | F74: TS2H-OV3YILO
A75: TS2H-DACQSFPM2 | B75: TS2L4-DACQSFPM2 | C75: 147 | D75: 1 | E75: HPE 2M IB FDR QSFP Copper Cable | F75: TS2H-DACQSFPM2
A76: TS2H-DAC100M2 | B76: TS2L4-DAC100M2 | C76: 117 | D76: 1 | E76: HPE 2M 100Gb QSFP28 OPA Copper Cable | F76: TS2H-DAC100M2
A77: TS2H-DAC100M3 | B77: TS2L4-DAC100M3 | C77: 147 | D77: 1 | E77: HPE 3M 100Gb QSFP28 OPA Copper Cable | F77: TS2H-DAC100M3
A78: TS2H-DACAOCM3 | B78: TS2L4-DACAOCM3 | C78: 612 | D78: 1 | E78: HPE 3M 100Gb QSFP28 OPA Optical PC2 Cbl | F78: TS2H-DACAOCM3
A79: TS2H-DACAOCM5 | B79: TS2L4-DACAOCM5 | C79: 619 | D79: 1 | E79: HPE 5M 100Gb QSFP28 OPA Optical PC2 Cbl | F79: TS2H-DACAOCM5
A80: TS2H-DACAOCM7 | B80: TS2L4-DACAOCM7 | C80: 627 | D80: 1 | E80: HPE 7M 100Gb QSFP28 OPA Optical PC2 Cbl | F80: TS2H-DACAOCM7
A81: TS2H-DACX240M3 | B81: TS2L4-DACX240M3 | C81: 81 | D81: 1 | E81: HPE X240 10G SFP+ SFP+ 3m DAC Cable | F81: TS2H-DACX240M3
A82: TS2H-DACX240M5 | B82: TS2L4-DACX240M5 | C82: 95 | D82: 1 | E82: HPE X240 10G SFP+ SFP+ 5m DAC Cable | F82: TS2H-DACX240M5
A83: TS2H-DACX240M7 | B83: TS2L4-DACX240M7 | C83: 106 | D83: 1 | E83: HPE X240 10G SFP+ SFP+ 7m DAC Cable | F83: TS2H-DACX240M7
A84: TS2H-VSANSTD3Y | B84: TS2L4-VSANSTD3Y | C84: 3611 | D84: 1 | E84: VMware vSAN Standard OEM 1 Processor 3yr Software A20 | F84: TS2H-VSANSTD3Y
A85: TS2H-VSANADV3Y | B85: TS2L4-VSANADV3Y | C85: 5543 | D85: 1 | E85: VMware vSAN Advanced OEM 1 Processor 3yr Software A20 | F85: TS2H-VSANADV3Y
A86: TS2H-SSD400MU | B86: TS2L4-SSD400MU | C86: 622 | D86: 1 | E86: HPE 400GB SAS 12G Mixed Use SFF (2.5in) SC DS SSD | F86: TS2H-SSD400MU
A87: TS2H-SSD400WIB | B87: TS2L4-SSD400WIB | C87: 959 | D87: 1 | E87: HPE 400GB SAS 12G Write Intensive SFF (2.5in) SC DS SSD | F87: TS2H-SSD400WIB
A88: TS2H-SSD800MU | B88: TS2L4-SSD800MU | C88: 980 | D88: 1 | E88: HPE 800GB SAS 12G Mixed Use SFF (2.5in) SC DS SSD | F88: TS2H-SSD800MU
A89: TS2H-DAC3SFP28 | B89: TS2L4-DAC3SFP28 | C89: 134 | D89: 1 | E89: HPE 25Gb SFP28 to SFP28 3m Direct Attach Cable | F89: TS2H-DAC3SFP28
A90: TS2H-SFP28SR | B90: TS2L4-SFP28SR | C90: 887 | D90: 1 | E90: HPE 25Gb SFP28 SR 100m Transceiver | F90: TS2H-SFP28SR
A91: TS2H-DUAL32GB | B91: TS2L4-DUAL32GB | C91: 306 | D91: 1 | E91: HPE 32GB Dual microSD USB Flash Drive | F91: TS2H-DUAL32GB
A92: TS2H-640SFP28 | B92: TS2L4-640SFP28 | C92: 467 | E92: HPE Ethernet 10/25Gb 2-port 640SFP28 Adapter | F92: TS2H-640SFP28
A93: TS2H-SSD960MU | B93: TS2L4-SSD960MU | C93: 864 | D93: 1 | E93: HPE 960GB SAS 12G Mixed Use SC 3yr Wty Value SAS DS SSD | F93: TS2H-SSD960MU
A94: TS2H-DUAL8GB | B94: TS2L4-DUAL8GB | C94: 149 | D94: 1 | E94: HPE 8GB Dual microSD USB Flash Drive | F94: TS2H-DUAL8GB
A95: TS2H-E208EP | B95: TS2L4-E208EP | C95: 218 | D95: 1 | E95: HPE Smart Array E208e-p SR Gen10 | F95: TS2H-E208EP
A96: TS2H-PDU32A | B96: TS2L4-PDU32A | C96: 436 | D96: 1 | E96: Coppia di PDU Vertical 1Ph-32A-18xC13-6xC19 - 0U Base + Kit di montaggio | F96: TS2H-PDU32A
A97: TS2H-RACKPDU32 | B97: TS2L4-RACKPDU32 | C97: 2200 | D97: 1 | E97: Armadio Rack 42U profonità 120cm con coppia di PDU 32A monofase | F97: TS2H-RACKPDU32

Sheet Operating System (hidden)
A1: Operating System
A2: DL560
A3: No Operating System | B3: ="" ->  | C3: ="" ->  | D3: ="" ->  | E3: ="" ->  | F3: ="" ->  | G3: None | H3: ="" ->  | I3: ="" ->  | J3: ="" ->  | K3: ="" ->  | L3: 0 | M3: None | N3: ="" ->  | O3: ="" ->  | P3: ="" ->  | Q3: ="" ->  | R3: 0 | S3: ="" ->  | T3: 0 | U3: ="" ->  | V3: ="" ->  | W3: ="" ->  | X3: 0 | Y3: ="" ->  | Z3: 0 | AA3: ="" ->  | AB3: ="" ->  | AC3: ="" ->  | AD3: 0
A4: Microsoft Windows Server 2019 Standard Edition ROK 16 Core | B4: 1 | C4: TS2L4-WIN1 | D4: TS2L4-WIN1 | E4: P00487-B21 | F4: 551 | G4: 1-pack of Windows Server 2019 User CALs | I4: TS2L4-CALUSER | J4: TS2L4-CALUSER | K4: 871175-A21 | L4: 21 | M4: 1-pack of Windows Server 2019 Device CALs | O4: TS2L4-CALDEV | P4: TS2L4-CALDEV | Q4: 871176-A21 | R4: 21 | S4: Microsoft Windows Server 2019 Standard Edition Additional License 16 Core | T4: 1 | U4: TS2L4-WIN2 | V4: TS2L4-WIN2 | W4: 871157-A21 | X4: 551 | Y4: ="" ->  | Z4: 0 | AA4: ="" ->  | AB4: ="" ->  | AC4: ="" ->  | AD4: 0
A5: Microsoft Windows Server 2019 Datacenter Edition ROK 16 Core | B5: 1 | C5: TS2L4-WINDC1 | D5: TS2L4-WINDC1 | E5: P00488-B21 | F5: 2159 | G5: 1-pack of Windows Server 2019 User CALs | I5: TS2L4-CALUSER | J5: TS2L4-CALUSER | K5: 871175-A21 | L5: 21 | M5: 1-pack of Windows Server 2019 Device CALs | O5: TS2L4-CALDEV | P5: TS2L4-CALDEV | Q5: 871176-A21 | R5: 21 | S5: Microsoft Windows Server 2019 Datacenter Edition Additional License 16 Core | T5: 1 | U5: TS2L4-WINDC2 | V5: TS2L4-WINDC2 | W5: 871166-A21 | X5: 2159 | Y5: ="" ->  | Z5: 0 | AA5: ="" ->  | AB5: ="" ->  | AC5: ="" ->  | AD5: 0
A6: CentOS 7.0 | B6: 1 | C6: TS2L4-LINUX | D6: TS2L4-LINUX | F6: 49 | G6: None | H6: ="" ->  | I6: ="" ->  | J6: ="" ->  | K6: ="" ->  | L6: 0 | M6: None | N6: ="" ->  | O6: ="" ->  | P6: ="" ->  | Q6: ="" ->  | R6: 0 | S6: ="" ->  | T6: 0 | U6: ="" ->  | V6: ="" ->  | W6: ="" ->  | X6: 0 | Y6: ="" ->  | Z6: 0 | AA6: ="" ->  | AB6: ="" ->  | AC6: ="" ->  | AD6: 0
A8: DL560 2CPU
A9: No Operating System | B9: ="" ->  | C9: ="" ->  | D9: ="" ->  | E9: ="" ->  | F9: ="" ->  | G9: None | H9: ="" ->  | I9: ="" ->  | J9: ="" ->  | K9: ="" ->  | L9: 0 | M9: None | N9: ="" ->  | O9: ="" ->  | P9: ="" ->  | Q9: ="" ->  | R9: 0 | S9: ="" ->  | T9: 0 | U9: ="" ->  | V9: ="" ->  | W9: ="" ->  | X9: 0 | Y9: ="" ->  | Z9: 0 | AA9: ="" ->  | AB9: ="" ->  | AC9: ="" ->  | AD9: 0
A10: Microsoft Windows Server 2019 Standard Edition ROK 16 Core | B10: 1 | C10: TS2L4-WIN1 | D10: TS2L4-WIN1 | E10: P00487-B21 | F10: 551 | G10: 1-pack of Windows Server 2019 User CALs | I10: TS2L4-CALUSER | J10: TS2L4-CALUSER | K10: 871175-A21 | L10: 21 | M10: 1-pack of Windows Server 2019 Device CALs | O10: TS2L4-CALDEV | P10: TS2L4-CALDEV | Q10: 871176-A21 | R10: 21 | S10: Microsoft Windows Server 2019 Standard Edition Additional License 16 Core | T10: 3 | U10: TS2L4-WIN2 | V10: TS2L4-WIN2 | W10: 871157-A21 | X10: 551 | Y10: ="" ->  | Z10: 0 | AA10: ="" ->  | AB10: ="" ->  | AC10: ="" ->  | AD10: 0
A11: Microsoft Windows Server 2019 Datacenter Edition ROK 16 Core | B11: 1 | C11: TS2L4-WINDC1 | D11: TS2L4-WINDC1 | E11: P00488-B21 | F11: 2159 | G11: 1-pack of Windows Server 2019 User CALs | I11: TS2L4-CALUSER | J11: TS2L4-CALUSER | K11: 871175-A21 | L11: 21 | M11: 1-pack of Windows Server 2019 Device CALs | O11: TS2L4-CALDEV | P11: TS2L4-CALDEV | Q11: 871176-A21 | R11: 21 | S11: Microsoft Windows Server 2019 Datacenter Edition Additional License 16 Core | T11: 3 | U11: TS2L4-WINDC2 | V11: TS2L4-WINDC2 | W11: 871166-A21 | X11: 2159 | Y11: ="" ->  | Z11: 0 | AA11: ="" ->  | AB11: ="" ->  | AC11: ="" ->  | AD11: 0
A12: CentOS 7.0 | B12: 1 | C12: TS2L4-LINUX | D12: TS2L4-LINUX | F12: 49 | G12: None | H12: ="" ->  | I12: ="" ->  | J12: ="" ->  | K12: ="" ->  | L12: 0 | M12: None | N12: ="" ->  | O12: ="" ->  | P12: ="" ->  | Q12: ="" ->  | R12: 0 | S12: ="" ->  | T12: 0 | U12: ="" ->  | V12: ="" ->  | W12: ="" ->  | X12: 0 | Y12: ="" ->  | Z12: 0 | AA12: ="" ->  | AB12: ="" ->  | AC12: ="" ->  | AD12: 0
A15: DL580 ALTERNATIVO
A16: No Operating System | B16: ="" ->  | C16: ="" ->  | D16: ="" ->  | E16: ="" ->  | F16: ="" ->  | G16: None | H16: ="" ->  | I16: ="" ->  | J16: ="" ->  | K16: ="" ->  | L16: 0 | M16: None | N16: ="" ->  | O16: ="" ->  | P16: ="" ->  | Q16: ="" ->  | R16: 0 | S16: ="" ->  | T16: 0 | U16: ="" ->  | V16: ="" ->  | W16: ="" ->  | X16: 0 | Y16: ="" ->  | Z16: 0 | AA16: ="" ->  | AB16: ="" ->  | AC16: ="" ->  | AD16: 0
A17: Microsoft Windows Server 2019 Standard Edition ROK 16 Core | B17: 1 | C17: TS2L4-WIN1 | D17: TS2L4-WIN1 | E17: 871148-B21 | F17: 556 | G17: 1-pack of Windows Server 2019 User CALs | I17: TS2L4-CALUSER | J17: TS2L4-CALUSER | K17: 871175-A21 | L17: 22 | M17: 1-pack of Windows Server 2019 Device CALs | O17: TS2L4-CALDEV | P17: TS2L4-CALDEV | Q17: 871176-A21 | R17: 22 | S17: Microsoft Windows Server 2019 Standard Edition Additional License 2 Core | T17: 4 | U17: TS2L4-WIN2CORE | V17: TS2L4-WIN2CORE | W17: 871159-A21 | X17: 56 | Y17: ="" ->  | Z17: 0 | AA17: ="" ->  | AB17: ="" ->  | AC17: ="" ->  | AD17: 0
A18: Microsoft Windows Server 2019 Datacenter Edition ROK 16 Core | B18: 1 | C18: TS2L4-WINDC1 | D18: TS2L4-WINDC1 | E18: 871153-B21 | F18: 2174 | G18: 1-pack of Windows Server 2019 User CALs | I18: TS2L4-CALUSER | J18: TS2L4-CALUSER | K18: 871175-A21 | L18: 22 | M18: 1-pack of Windows Server 2019 Device CALs | O18: TS2L4-CALDEV | P18: TS2L4-CALDEV | Q18: 871176-A21 | R18: 22 | S18: Microsoft Windows Server 2019 Datacenter Edition Additional License 16 Core | T18: 1 | U18: TS2L4-WINDC2 | V18: TS2L4-WINDC2 | W18: 871166-A21 | X18: 2105 | Y18: ="" ->  | Z18: 0 | AA18: ="" ->  | AB18: ="" ->  | AC18: ="" ->  | AD18: 0
A19: CentOS 7.0 | B19: 1 | C19: TS2L4-LINUX | D19: TS2L4-LINUX | F19: 50 | G19: None | H19: ="" ->  | I19: ="" ->  | J19: ="" ->  | K19: ="" ->  | L19: 0 | M19: None | N19: ="" ->  | O19: ="" ->  | P19: ="" ->  | Q19: ="" ->  | R19: 0 | S19: ="" ->  | T19: 0 | U19: ="" ->  | V19: ="" ->  | W19: ="" ->  | X19: 0 | Y19: ="" ->  | Z19: 0 | AA19: ="" ->  | AB19: ="" ->  | AC19: ="" ->  | AD19: 0
A21: DL580 ALTERNATIVO 2CPU
A22: No Operating System | B22: ="" ->  | C22: ="" ->  | D22: ="" ->  | E22: ="" ->  | F22: ="" ->  | G22: None | H22: ="" ->  | I22: ="" ->  | J22: ="" ->  | K22: ="" ->  | L22: 0 | M22: None | N22: ="" ->  | O22: ="" ->  | P22: ="" ->  | Q22: ="" ->  | R22: 0 | S22: ="" ->  | T22: 0 | U22: ="" ->  | V22: ="" ->  | W22: ="" ->  | X22: 0 | Y22: ="" ->  | Z22: 0 | AA22: ="" ->  | AB22: ="" ->  | AC22: ="" ->  | AD22: 0
A23: Microsoft Windows Server 2019 Standard Edition ROK 16 Core | B23: 1 | C23: TS2L4-WIN1 | D23: TS2L4-WIN1 | E23: 871148-B21 | F23: 556 | G23: 1-pack of Windows Server 2019 User CALs | I23: TS2L4-CALUSER | J23: TS2L4-CALUSER | K23: 871175-A21 | L23: 22 | M23: 1-pack of Windows Server 2019 Device CALs | O23: TS2L4-CALDEV | P23: TS2L4-CALDEV | Q23: 871176-A21 | R23: 22 | S23: Microsoft Windows Server 2019 Standard Edition Additional License 16 Core | T23: 2 | U23: TS2L4-WIN2 | V23: TS2L4-WIN2 | W23: 871157-A21 | X23: 526 | Y23: ="" ->  | Z23: 0 | AA23: ="" ->  | AB23: ="" ->  | AC23: ="" ->  | AD23: 0
A24: Microsoft Windows Server 2019 Datacenter Edition ROK 16 Core | B24: 1 | C24: TS2L4-WINDC1 | D24: TS2L4-WINDC1 | E24: 871153-B21 | F24: 2174 | G24: 1-pack of Windows Server 2019 User CALs | I24: TS2L4-CALUSER | J24: TS2L4-CALUSER | K24: 871175-A21 | L24: 22 | M24: 1-pack of Windows Server 2019 Device CALs | O24: TS2L4-CALDEV | P24: TS2L4-CALDEV | Q24: 871176-A21 | R24: 22 | S24: Microsoft Windows Server 2019 Datacenter Edition Additional License 16 Core | T24: 2 | U24: TS2L4-WINDC2 | V24: TS2L4-WINDC2 | W24: 871166-A21 | X24: 2105 | Y24: ="" ->  | Z24: 0 | AA24: ="" ->  | AB24: ="" ->  | AC24: ="" ->  | AD24: 0
A25: CentOS 7.0 | B25: 1 | C25: TS2L4-LINUX | D25: TS2L4-LINUX | F25: 50 | G25: None | H25: ="" ->  | I25: ="" ->  | J25: ="" ->  | K25: ="" ->  | L25: 0 | M25: None | N25: ="" ->  | O25: ="" ->  | P25: ="" ->  | Q25: ="" ->  | R25: 0 | S25: ="" ->  | T25: 0 | U25: ="" ->  | V25: ="" ->  | W25: ="" ->  | X25: 0 | Y25: ="" ->  | Z25: 0 | AA25: ="" ->  | AB25: ="" ->  | AC25: ="" ->  | AD25: 0
A27: Dl580 PREST
A28: No Operating System | B28: ="" ->  | C28: ="" ->  | D28: ="" ->  | E28: ="" ->  | F28: ="" ->  | G28: None | H28: ="" ->  | I28: ="" ->  | J28: ="" ->  | K28: ="" ->  | L28: 0 | M28: None | N28: ="" ->  | O28: ="" ->  | P28: ="" ->  | Q28: ="" ->  | R28: 0 | S28: ="" ->  | T28: 0 | U28: ="" ->  | V28: ="" ->  | W28: ="" ->  | X28: 0 | Y28: ="" ->  | Z28: 0 | AA28: ="" ->  | AB28: ="" ->  | AC28: ="" ->  | AD28: 0
A29: Microsoft Windows Server 2019 Standard Edition ROK 16 Core | B29: 1 | C29: TS2L4-WIN1 | D29: TS2L4-WIN1 | E29: 871148-B21 | F29: 556 | G29: 1-pack of Windows Server 2019 User CALs | I29: TS2L4-CALUSER | J29: TS2L4-CALUSER | K29: 871175-A21 | L29: 22 | M29: 1-pack of Windows Server 2019 Device CALs | O29: TS2L4-CALDEV | P29: TS2L4-CALDEV | Q29: 871176-A21 | R29: 22 | S29: Microsoft Windows Server 2019 Standard Edition Additional License 16 Core | T29: 1 | U29: TS2L4-WIN2 | V29: 2+Y23:AD23 | W29: 871157-A21 | X29: 526 | Y29: Microsoft Windows Server 2019 Standard Edition Additional License 2 Core | Z29: 2 | AA29: TS1L2-WIN2CORE | AB29: TS1L2-WIN2CORE | AC29: 871159-A21 | AD29: 56
A30: Microsoft Windows Server 2019 Datacenter Edition ROK 16 Core | B30: 1 | C30: TS2L4-WINDC1 | D30: TS2L4-WINDC1 | E30: 871153-B21 | F30: 2174 | G30: 1-pack of Windows Server 2019 User CALs | I30: TS2L4-CALUSER | J30: TS2L4-CALUSER | K30: 871175-A21 | L30: 22 | M30: 1-pack of Windows Server 2019 Device CALs | O30: TS2L4-CALDEV | P30: TS2L4-CALDEV | Q30: 871176-A21 | R30: 22 | S30: Microsoft Windows Server 2019 Datacenter Edition Additional License 16 Core | T30: 1 | U30: TS2L4-WINDC2 | V30: TS2L4-WINDC2 | W30: 871166-A21 | X30: 2105 | Y30: Microsoft Windows Server 2019 Datacenter Edition Additional License 2 Core | Z30: 2 | AA30: S2-871168-A21 | AB30: S2-871168-A21 | AC30: ="" ->  | AD30: 530
A31: CentOS 7.0 | B31: 1 | C31: TS2L4-LINUX | D31: TS2L4-LINUX | F31: 50 | G31: None | H31: ="" ->  | I31: ="" ->  | J31: ="" ->  | K31: ="" ->  | L31: 0 | M31: None | N31: ="" ->  | O31: ="" ->  | P31: ="" ->  | Q31: ="" ->  | R31: 0 | S31: ="" ->  | T31: 0 | U31: ="" ->  | V31: ="" ->  | W31: ="" ->  | X31: 0 | Y31: ="" ->  | Z31: 0 | AA31: ="" ->  | AB31: ="" ->  | AC31: ="" ->  | AD31: 0
A32: Dl580 PREST 2CPU
A33: No Operating System | B33: ="" ->  | C33: ="" ->  | D33: ="" ->  | E33: ="" ->  | F33: ="" ->  | G33: None | H33: ="" ->  | I33: ="" ->  | J33: ="" ->  | K33: ="" ->  | L33: 0 | M33: None | N33: ="" ->  | O33: ="" ->  | P33: ="" ->  | Q33: ="" ->  | R33: 0 | S33: ="" ->  | T33: 0 | U33: ="" ->  | V33: ="" ->  | W33: ="" ->  | X33: 0 | Y33: ="" ->  | Z33: 0 | AA33: ="" ->  | AB33: ="" ->  | AC33: ="" ->  | AD33: 0
A34: Microsoft Windows Server 2019 Standard Edition ROK 16 Core | B34: 1 | C34: TS2L4-WIN1 | D34: TS2L4-WIN1 | E34: 871148-B21 | F34: 556 | G34: 1-pack of Windows Server 2019 User CALs | I34: TS2L4-CALUSER | J34: TS2L4-CALUSER | K34: 871175-A21 | L34: 22 | M34: 1-pack of Windows Server 2019 Device CALs | O34: TS2L4-CALDEV | P34: TS2L4-CALDEV | Q34: 871176-A21 | R34: 22 | S34: Microsoft Windows Server 2019 Standard Edition Additional License 16 Core | T34: 4 | U34: TS2L4-WIN2 | V34: TS2L4-WIN2 | W34: 871157-A21 | X34: 526 | Y34: Microsoft Windows Server 2019 Standard Edition Additional License 2 Core | Z34: 4 | AA34: TS1L2-WIN2CORE | AB34: TS1L2-WIN2CORE | AC34: 871159-A21 | AD34: 56
A35: Microsoft Windows Server 2019 Datacenter Edition ROK 16 Core | B35: 1 | C35: TS2L4-WINDC1 | D35: TS2L4-WINDC1 | E35: 871153-B21 | F35: 2174 | G35: 1-pack of Windows Server 2019 User CALs | I35: TS2L4-CALUSER | J35: TS2L4-CALUSER | K35: 871175-A21 | L35: 22 | M35: 1-pack of Windows Server 2019 Device CALs | O35: TS2L4-CALDEV | P35: TS2L4-CALDEV | Q35: 871176-A21 | R35: 22 | S35: Microsoft Windows Server 2019 Datacenter Edition Additional License 16 Core | T35: 4 | U35: TS2L4-WINDC2 | V35: TS2L4-WINDC2 | W35: 871166-A21 | X35: 2105 | Y35: ="" ->  | Z35: 0 | AA35: ="" ->  | AB35: ="" ->  | AC35: ="" ->  | AD35: 0
A36: CentOS 7.0 | B36: 1 | C36: TS2L4-LINUX | D36: TS2L4-LINUX | F36: 50 | G36: None | H36: ="" ->  | I36: ="" ->  | J36: ="" ->  | K36: ="" ->  | L36: 0 | M36: None | N36: ="" ->  | O36: ="" ->  | P36: ="" ->  | Q36: ="" ->  | R36: 0 | S36: ="" ->  | T36: 0 | U36: ="" ->  | V36: ="" ->  | W36: ="" ->  | X36: 0 | Y36: ="" ->  | Z36: 0 | AA36: ="" ->  | AB36: ="" ->  | AC36: ="" ->  | AD36: 0
A41: Microsoft Windows Server 2019 Standard Edition ROK 16 Core | C41: TS2L4-WIN1 | D41: TS2L4-WIN1 | E41: 871148-B21 | F41: 551 | G41: 1-pack of Windows Server 2019 User CALs | I41: TS2L4-CALUSER | J41: TS2L4-CALUSER | K41: 871175-A21 | L41: 22 | M41: 1-pack of Windows Server 2019 Device CALs | O41: TS2L4-CALDEV | P41: TS2L4-CALDEV | Q41: 871176-A21 | R41: 22
A42: Microsoft Windows Server 2019 Standard Edition Additional License 16 Core | C42: TS2L4-WIN2 | D42: TS2L4-WIN2 | E42: 871157-A21 | F42: 551
A43: Microsoft Windows Server 2019 Standard Edition Additional License 2 Core | C43: TS2L4-WIN2CORE | D43: TS2L4-WIN2CORE | E43: 871159-A21 | F43: 54
A45: Microsoft Windows Server 2019 Datacenter Edition ROK 16 Core | C45: TS2L4-WINDC1 | D45: TS2L4-WINDC1 | E45: 871153-B21 | F45: 2159 | G45: 1-pack of Windows Server 2019 User CALs | I45: TS2L4-CALUSER | J45: TS2L4-CALUSER | K45: 871175-A21 | L45: 22 | M45: 1-pack of Windows Server 2019 Device CALs | O45: TS2L4-CALDEV | P45: TS2L4-CALDEV | Q45: 871176-A21 | R45: 22
A46: Microsoft Windows Server 2019 Datacenter Edition Additional License 16 Core | C46: TS2L4-WINDC2 | D46: TS2L4-WINDC2 | E46: 871166-A21 | F46: 2159
A48: CentOS 7.0 | C48: TS2L4-LINUX | D48: TS2L4-LINUX | F48: 49
A52: None | B52: ="" ->  | C52: ="" ->  | D52: ="" ->  | E52: ="" ->  | F52: 0
A53: VMware vSphere Standard 1 Processor 3yr Software | B53: 1 | C53: TS2L4-VMWSTD1P3Y | D53: TS2L4-VMWSTD1P3Y | E53: BD711A | F53: 1506
A54: VMware vSphere Enterprise Plus 1 Processor 3yr Software | B54: 1 | C54: TS2L4-VMWEP1P3Y | D54: TS2L4-VMWEP1P3Y | E54: BD715A | F54: 4734
A55: VMware vSphere Standard 1 Processor 5yr Software | B55: 1 | C55: TS2L4-VMWSTD1P5Y | D55: TS2L4-VMWSTD1P5Y | E55: BD512A | F55: 1933
A56: VMware vSphere Enterprise Plus 1 Processor 5yr Software | B56: 1 | C56: TS2L4-VMWEP1P5Y | D56: TS2L4-VMWEP1P5Y | E56: BD514A | F56: 5889
A57: None | B57: 0 | C57: ="" ->  | D57: ="" ->  | E57: ="" ->  | F57: 0
A58: VMware vSphere Essentials Plus Kit 6 Processor 3yr | B58: 1 | C58: TS2L4-VMWKIT6P3Y | D58: TS2L4-VMWKIT6P3Y | E58: F6M49A | F58: 5052
A59: VMware vSphere Essentials Plus Kit 6 Processor 5yr | B59: 1 | C59: TS2L4-VMWKIT6P5Y | D59: TS2L4-VMWKIT6P5Y | E59: F6M50A | F59: 6284
A60: None | B60: 0 | C60: ="" ->  | D60: ="" ->  | E60: ="" ->  | F60: 0
A61: VMware vCenter Server Standard for vSphere 3yr SW | B61: 1 | C61: TS2L4-VMWVCSTD3Y | D61: TS2L4-VMWVCSTD3Y | E61: P9U41A | F61: 8240
A62: VMware vCenter Server Standard for vSphere 5yr SW | B62: 1 | C62: TS2L4-VMWVCSTD5Y | D62: TS2L4-VMWVCSTD5Y | E62: P9U42A | F62: 10251
A65: None | B65: 0 | C65: ="" ->  | D65: ="" ->  | E65: ="" ->  | F65: 0
A66: VMware vSAN Standard OEM 1 Processor 3yr Software A20 | B66: 1 | C66: TS2L4-VSANSTD3Y | D66: TS2L4-VSANSTD3Y | E66: G4Y18AAE | F66: 3611
A67: VMware vSAN Advanced OEM 1 Processor 3yr Software A20 | B67: 1 | C67: TS2L4-VSANADV3Y | D67: TS2L4-VSANADV3Y | E67: P9H45AAE | F67: 5543
A69: None | B69: 0 | C69: ="" ->  | D69: ="" ->  | E69: ="" ->  | F69: 0
A70: HPE 32GB Dual microSD USB Flash Drive | B70: 1 | C70: TS2L4-DUAL32GB | D70: TS2L4-DUAL32GB | F70: 306
A73: _SavePDFon
A74: _SavePDFoff

Sheet PCI (hidden)
A2: HDD Bay2 | C2: 0 | D2: ="" ->  | E2: ="" ->  | F2: ="" ->  | G2: 0
C3: 1 | D3: TS2L4-SASBAY2 | E3: 872235-B21 | F3: ="" ->  | G3: 770
A4: HDD Bay1 | C4: 0 | D4: ="" ->  | E4: ="" ->  | F4: ="" ->  | G4: 0
C5: 1 | D5: TS2L4-SASBAY1 | E5: 872233-B21 ; 873444-B21 | F5: ="" ->  | G5: 1030
A7: Secondary Riser | C7: 0 | D7: ="" ->  | E7: ="" ->  | F7: ="" ->  | G7: 0
C8: 1 | D8: S2-870548-B21 | E8: 870548-B21 | F8: ="" ->  | G8: 109
A9: Secondary Riser (for GPU) | C9: 0 | D9: ="" ->  | E9: ="" ->  | F9: ="" ->  | G9: 0
C10: 1 | D10: TS2L4-GPURSRKIT | E10: 826704-B21 | F10: ="" ->  | G10: 87
A11: Tertiary riser | C11: 0 | D11: ="" ->  | E11: ="" ->  | F11: ="" ->  | G11: 0
C12: 1 | D12: TS2L4-3RISER | E12: 872253-B21 | F12: ="" ->  | G12: 285
A13: 9-slot Sec Riser | C13: 0 | D13: ="" ->  | E13: ="" ->  | F13: ="" ->  | G13: 0
C14: 1 | D14: S2-9SlotRiser | E14: 872340 830272 | F14: ="" ->  | G14: 671
A15: Additional Card for PCIe Slot 1
A16: DL560
A17: None | H17: 0
A18: [TS2L4-LAN1] HPE Ethernet 1Gb 2-port 332T Adapter | B18: 1 | C18: TS2L4-LAN1 | D18: TS2L4-LAN1 | E18: 615732-B21 | F18: 32 | H18: 0
A19: [TS2L4-LAN10] HPE Ethernet 10Gb 2-port 530SFP Adapter | B19: 1 | C19: TS2L4-LAN10 | D19: TS2L4-LAN10 | E19: 652503-B21 | F19: 357 | G19: HPE BLc 10G SFP+ SR Transceiver | H19: 2 | J19: 455883-B21
A20: [TS2L4-CNA10] HPE CN1100R 2P Converged Network Adapter | B20: 1 | C20: TS2L4-CNA10 | D20: TS2L4-CNA10 | E20: QW990A | F20: 723 | G20: HPE BLc 10G SFP+ SR Transceiver | H20: 2 | J20: 455883-B21
A21: [TS2L4-FC16] HPE StoreFabric SN1100Q 16Gb Dual Port Fibre Channel HBA | B21: 1 | C21: TS2L4-FC16 | D21: TS2L4-FC16 | E21: P9D94A | F21: 356 | H21: 0
A22: ="" ->  | B22: ="" ->  | C22: ="" ->  | D22: ="" ->  | E22: ="" ->  | F22: ="" ->  | G22: ="" ->  | H22: ="" ->  | I22: ="" ->  | J22: ="" -> 
A23: :._.:.:*~*:._.:*~*:._.:*~*:._.: Componenti 20% .:*~*:._.:*~*:._.:*~*:._.:*~*:._.: | B23: ="" ->  | C23: ="" ->  | D23: ="" ->  | E23: ="" ->  | F23: ="" ->  | G23: ="" ->  | H23: ="" ->  | I23: ="" ->  | J23: ="" -> 
A24: [TS2L4-530T] HPE Ethernet 10Gb 2-port 530T Adapter | B24: 1 | C24: TS2L4-530T | D24: TS2H-530T | E24: 656596-B21 | I24: 298 | J24: ="" -> 
A25: [TS2L4-521T] HPE Ethernet 10Gb 2-port 521T Adapter | B25: 1 | C25: TS2L4-521T | D25: TS2H-521T | E25: 867707-B21 | I25: 298 | J25: ="" -> 
A26: [TS2L4-640SFP28] HPE Ethernet 10/25Gb 2-port 640SFP28 Adapter | B26: 1 | C26: TS2L4-640SFP28 | D26: TS2L4-640SFP28 | I26: 467
A27: [TS2L4-562SFP] HPE Ethernet 10Gb 2-port 562SFP+ Adapter | B27: 1 | C27: TS2L4-562SFP | D27: TS2H-562SFP | E27: 727055-B21 | I27: 380 | J27: ="" -> 
A28: [TS2L4-841QSFP28] HPE InfiniBand EDR 100Gb 1-port 841QSFP28 Adapter | B28: 1 | C28: TS2L4-841QSFP28 | D28: TS2H-841QSFP28 | E28: 872725-B21 | I28: 2699 | J28: ="" -> 
A29: [TS2L4-OP101] HPE 100Gb 1-port OP101 QSFP28 x16 PCIe Gen3 with Intel Omni-Path Architecture Adapter | B29: 1 | C29: TS2L4-OP101 | D29: TS2H-OP101 | E29: 829335-B21 | I29: 554 | J29: ="" -> 
A30: HPE DL5x0 Gen10 12Gb SAS Expander Card Kit with Cables | B30: 1 | C30: TS2L4-SASBAY1 | D30: TS2L4-SASBAY1 | E30: 873444-B21
A31: Additional Card for PCIe Slot 2/3
A32: DL560
A33: None | H33: 0
A34: [TS2L4-LAN1] HPE Ethernet 1Gb 2-port 332T Adapter | B34: 1 | C34: TS2L4-LAN1 | D34: TS2L4-LAN1 | E34: 615732-B21 | F34: 32 | H34: 0
A35: [TS2L4-LAN10] HPE Ethernet 10Gb 2-port 530SFP Adapter | B35: 1 | C35: TS2L4-LAN10 | D35: TS2L4-LAN10 | E35: 652503-B21 | F35: 357 | G35: HPE BLc 10G SFP+ SR Transceiver | H35: 2 | J35: 455883-B21
A36: [TS2L4-CNA10] HPE CN1100R 2P Converged Network Adapter | B36: 1 | C36: TS2L4-CNA10 | D36: TS2L4-CNA10 | E36: QW990A | F36: 723 | G36: HPE BLc 10G SFP+ SR Transceiver | H36: 2 | J36: 455883-B21
A37: [TS2L4-FC16] HPE StoreFabric SN1100Q 16Gb Dual Port Fibre Channel HBA | B37: 1 | C37: TS2L4-FC16 | D37: TS2L4-FC16 | E37: P9D94A | F37: 356 | H37: 0
A38: ="" ->  | B38: ="" ->  | C38: ="" ->  | D38: ="" ->  | E38: ="" ->  | F38: ="" ->  | G38: ="" ->  | H38: ="" ->  | I38: ="" ->  | J38: ="" -> 
A39: :._.:.:*~*:._.:*~*:._.:*~*:._.: Componenti 20% .:*~*:._.:*~*:._.:*~*:._.:*~*:._.: | B39: ="" ->  | C39: ="" ->  | D39: ="" ->  | E39: ="" ->  | F39: ="" ->  | G39: ="" ->  | H39: ="" ->  | I39: ="" ->  | J39: ="" -> 
A40: [TS2L4-530T] HPE Ethernet 10Gb 2-port 530T Adapter | B40: 1 | C40: TS2L4-530T | D40: TS2H-530T | E40: 656596-B21 | I40: 298 | J40: ="" -> 
A41: [TS2L4-521T] HPE Ethernet 10Gb 2-port 521T Adapter | B41: 1 | C41: TS2L4-521T | D41: TS2H-521T | E41: 867707-B21 | I41: 298 | J41: ="" -> 
A42: [TS2L4-640SFP28] HPE Ethernet 10/25Gb 2-port 640SFP28 Adapter | B42: 1 | C42: TS2L4-640SFP28 | D42: TS2L4-640SFP28 | I42: 467
A43: [TS2L4-562SFP] HPE Ethernet 10Gb 2-port 562SFP+ Adapter | B43: 1 | C43: TS2L4-562SFP | D43: TS2H-562SFP | E43: 727055-B21 | I43: 380 | J43: ="" -> 
A44: [TS2L4-E208EP] HPE Smart Array E208e-p SR Gen10 | B44: 1 | C44: TS2L4-E208EP | D44: TS2L4-E208EP | I44: 218
A45: [TS2L4-841QSFP28] HPE InfiniBand EDR 100Gb 1-port 841QSFP28 Adapter | B45: 1 | C45: TS2L4-841QSFP28 | D45: TS2H-841QSFP28 | E45: 872725-B21 | I45: 2699 | J45: ="" -> 
A46: [TS2L4-OP101] HPE 100Gb 1-port OP101 QSFP28 x16 PCIe Gen3 with Intel Omni-Path Architecture Adapter | B46: 1 | C46: TS2L4-OP101 | D46: TS2H-OP101 | E46: 829335-B21 | I46: 554 | J46: ="" -> 
A48: Additional Card for PCIe Slot 3
A49: DL560
A50: None | H50: 0
A51: [TS2L4-LAN1] HPE Ethernet 1Gb 2-port 332T Adapter | B51: 1 | C51: TS2L4-LAN1 | D51: TS2L4-LAN1 | E51: 615732-B21 | F51: 32 | H51: 0
A52: [TS2L4-LAN10] HPE Ethernet 10Gb 2-port 530SFP Adapter | B52: 1 | C52: TS2L4-LAN10 | D52: TS2L4-LAN10 | E52: 652503-B21 | F52: 357 | G52: HPE BLc 10G SFP+ SR Transceiver | H52: 2 | J52: 455883-B21
A53: [TS2L4-CNA10] HPE CN1100R 2P Converged Network Adapter | B53: 1 | C53: TS2L4-CNA10 | D53: TS2L4-CNA10 | E53: QW990A | F53: 723 | G53: HPE BLc 10G SFP+ SR Transceiver | H53: 2 | J53: 455883-B21
A54: [TS2L4-FC16] HPE StoreFabric SN1100Q 16Gb Dual Port Fibre Channel HBA | B54: 1 | C54: TS2L4-FC16 | D54: TS2L4-FC16 | E54: P9D94A | F54: 356 | H54: 0
A55: :._.:.:*~*:._.:*~*:._.:*~*:._.: Componenti 20% .:*~*:._.:*~*:._.:*~*:._.:*~*:._.: | B55: ="" ->  | C55: ="" ->  | D55: ="" ->  | E55: ="" ->  | F55: ="" ->  | G55: ="" ->  | H55: ="" ->  | I55: ="" ->  | J55: ="" -> 
A56: [TS2L4-530T] HPE Ethernet 10Gb 2-port 530T Adapter | B56: 1 | C56: TS2L4-530T | D56: TS2L4-530T | E56: 656596-B21 | I56: 298
A57: [TS2L4-521T] HPE Ethernet 10Gb 2-port 521T Adapter | B57: 1 | C57: TS2L4-521T | D57: TS2L4-521T | E57: 867707-B21 | I57: 298
A58: [TS2L4-640SFP28] HPE Ethernet 10/25Gb 2-port 640SFP28 Adapter | B58: 1 | C58: TS2L4-640SFP28 | D58: TS2L4-640SFP28 | I58: 467
A59: [TS2L4-562SFP] HPE Ethernet 10Gb 2-port 562SFP+ Adapter | B59: 1 | C59: TS2L4-562SFP | D59: TS2L4-562SFP | E59: 727055-B21 | I59: 380
A60: [TS2L4-E208EP] HPE Smart Array E208e-p SR Gen10 | B60: 1 | C60: TS2L4-E208EP | D60: TS2L4-E208EP | I60: 218
A61: [TS2L4-841QSFP28] HPE InfiniBand EDR 100Gb 1-port 841QSFP28 Adapter | B61: 1 | C61: TS2L4-841QSFP28 | D61: TS2L4-841QSFP28 | E61: 872725-B21 | I61: 481
A63: Additional Card for PCIe Slot 4/5/6
A64: DL560
A65: None | H65: 0
A66: [TS2L4-LAN1] HPE Ethernet 1Gb 2-port 332T Adapter | B66: 1 | C66: TS2L4-LAN1 | D66: TS2L4-LAN1 | E66: 615732-B21 | F66: 32 | H66: 0
A67: [TS2L4-LAN10] HPE Ethernet 10Gb 2-port 530SFP Adapter | B67: 1 | C67: TS2L4-LAN10 | D67: TS2L4-LAN10 | E67: 652503-B21 | F67: 357 | G67: HPE BLc 10G SFP+ SR Transceiver | H67: 2 | J67: 455883-B21
A68: [TS2L4-CNA10] HPE CN1100R 2P Converged Network Adapter | B68: 1 | C68: TS2L4-CNA10 | D68: TS2L4-CNA10 | E68: QW990A | F68: 723 | G68: HPE BLc 10G SFP+ SR Transceiver | H68: 2 | J68: 455883-B21
A69: [TS2L4-FC16] HPE StoreFabric SN1100Q 16Gb Dual Port Fibre Channel HBA | B69: 1 | C69: TS2L4-FC16 | D69: TS2L4-FC16 | E69: P9D94A | F69: 356 | H69: 0
A70: :._.:.:*~*:._.:*~*:._.:*~*:._.: Componenti 20% .:*~*:._.:*~*:._.:*~*:._.:*~*:._.: | B70: ="" ->  | C70: ="" ->  | D70: ="" ->  | E70: ="" ->  | F70: ="" ->  | G70: ="" ->  | H70: ="" ->  | I70: ="" ->  | J70: ="" -> 
A71: [TS2L4-530T] HPE Ethernet 10Gb 2-port 530T Adapter | B71: 1 | C71: TS2L4-530T | D71: TS2L4-530T | E71: 656596-B21 | I71: 298
A72: [TS2L4-521T] HPE Ethernet 10Gb 2-port 521T Adapter | B72: 1 | C72: TS2L4-521T | D72: TS2L4-521T | E72: 867707-B21 | I72: 298
A73: [TS2L4-640SFP28] HPE Ethernet 10/25Gb 2-port 640SFP28 Adapter | B73: 1 | C73: TS2L4-640SFP28 | D73: TS2L4-640SFP28 | I73: 467
A74: [TS2L4-562SFP] HPE Ethernet 10Gb 2-port 562SFP+ Adapter | B74: 1 | C74: TS2L4-562SFP | D74: TS2L4-562SFP | E74: 727055-B21 | I74: 380
A75: [TS2L4-841QSFP28] HPE InfiniBand EDR 100Gb 1-port 841QSFP28 Adapter | B75: 1 | C75: TS2L4-841QSFP28 | D75: TS2L4-841QSFP28 | E75: 872725-B21 | I75: 481
A77: Additional Card for PCIe Slot 5
A78: DL560
A79: None | H79: 0
A80: [TS2L4-LAN1] HPE Ethernet 1Gb 2-port 332T Adapter | B80: 1 | C80: TS2L4-LAN1 | D80: TS2L4-LAN1 | E80: 615732-B21 | F80: 32 | H80: 0
A81: [TS2L4-LAN10] HPE Ethernet 10Gb 2-port 530SFP Adapter | B81: 1 | C81: TS2L4-LAN10 | D81: TS2L4-LAN10 | E81: 652503-B21 | F81: 377 | G81: HPE BLc 10G SFP+ SR Transceiver | H81: 2 | J81: 455883-B21
A82: [TS2L4-CNA10] HPE CN1100R 2P Converged Network Adapter | B82: 1 | C82: TS2L4-CNA10 | D82: TS2L4-CNA10 | E82: QW990A | F82: 723 | G82: HPE BLc 10G SFP+ SR Transceiver | H82: 2 | J82: 455883-B21
A83: [TS2L4-FC16] HPE StoreFabric SN1100Q 16Gb Dual Port Fibre Channel HBA | B83: 1 | C83: TS2L4-FC16 | D83: TS2L4-FC16 | E83: P9D94A | F83: 356 | H83: 0
A84: ="" ->  | B84: ="" ->  | C84: ="" ->  | D84: ="" ->  | E84: ="" ->  | F84: ="" ->  | G84: ="" ->  | H84: ="" ->  | I84: ="" ->  | J84: ="" -> 
A85: :._.:.:*~*:._.:*~*:._.:*~*:._.: Componenti 20% .:*~*:._.:*~*:._.:*~*:._.:*~*:._.: | B85: ="" ->  | C85: ="" ->  | D85: ="" ->  | E85: ="" ->  | F85: ="" ->  | G85: ="" ->  | H85: ="" ->  | I85: ="" ->  | J85: ="" -> 
A86: [TS2L4-P2000GPU] HPE NVIDIA Quadro P2000 GPU Module | B86: 1 | C86: TS2L4-P2000GPU | D86: TS2H-P2000GPU | E86: Q0V77A | I86: 690
A87: [TS2L4-530T] HPE Ethernet 10Gb 2-port 530T Adapter | B87: 1 | C87: TS2L4-530T | D87: TS2H-530T | E87: 656596-B21 | I87: 298 | J87: ="" -> 
A88: [TS2L4-521T] HPE Ethernet 10Gb 2-port 521T Adapter | B88: 1 | C88: TS2L4-521T | D88: TS2H-521T | E88: 867707-B21 | I88: 298 | J88: ="" -> 
A89: [TS2L4-640SFP28] HPE Ethernet 10/25Gb 2-port 640SFP28 Adapter | B89: 1 | C89: TS2L4-640SFP28 | D89: TS2L4-640SFP28 | I89: 467
A90: [TS2L4-562SFP] HPE Ethernet 10Gb 2-port 562SFP+ Adapter | B90: 1 | C90: TS2L4-562SFP | D90: TS2H-562SFP | E90: 727055-B21 | I90: 380 | J90: ="" -> 
A91: [TS2L4-841QSFP28] HPE InfiniBand EDR 100Gb 1-port 841QSFP28 Adapter | B91: 1 | C91: TS2L4-841QSFP28 | D91: TS2H-841QSFP28 | E91: 872725-B21 | I91: 2699 | J91: ="" -> 
A92: [TS2L4-OP101] HPE 100Gb 1-port OP101 QSFP28 x16 PCIe Gen3 with Intel Omni-Path Architecture Adapter | B92: 1 | C92: TS2L4-OP101 | D92: TS2H-OP101 | E92: 829335-B21 | I92: 554 | J92: ="" -> 
A93: Additional Card for PCIe Slot 6
A94: DL560
A95: None | H95: 0
A96: [TS2L4-LAN1] HPE Ethernet 1Gb 2-port 332T Adapter | B96: 1 | C96: TS2L4-LAN1 | D96: TS2L4-LAN1 | E96: 615732-B21 | F96: 32 | H96: 0
A97: [TS2L4-LAN10] HPE Ethernet 10Gb 2-port 530SFP Adapter | B97: 1 | C97: TS2L4-LAN10 | D97: TS2L4-LAN10 | E97: 652503-B21 | F97: 357 | G97: HPE BLc 10G SFP+ SR Transceiver | H97: 2 | J97: 455883-B21
A98: [TS2L4-CNA10] HPE CN1100R 2P Converged Network Adapter | B98: 1 | C98: TS2L4-CNA10 | D98: TS2L4-CNA10 | E98: QW990A | F98: 723 | G98: HPE BLc 10G SFP+ SR Transceiver | H98: 2 | J98: 455883-B21
A99: [TS2L4-FC16] HPE StoreFabric SN1100Q 16Gb Dual Port Fibre Channel HBA | B99: 1 | C99: TS2L4-FC16 | D99: TS2L4-FC16 | E99: P9D94A | F99: 356 | H99: 0
A100: :._.:.:*~*:._.:*~*:._.:*~*:._.: Componenti 20% .:*~*:._.:*~*:._.:*~*:._.:*~*:._.: | B100: ="" ->  | C100: ="" ->  | D100: ="" ->  | E100: ="" ->  | F100: ="" ->  | G100: ="" ->  | H100: ="" ->  | I100: ="" ->  | J100: ="" -> 
A101: [TS2L4-530T] HPE Ethernet 10Gb 2-port 530T Adapter | B101: 1 | C101: TS2L4-530T | D101: TS2L4-530T | E101: 656596-B21 | I101: 298
A102: [TS2L4-521T] HPE Ethernet 10Gb 2-port 521T Adapter | B102: 1 | C102: TS2L4-521T | D102: TS2L4-521T | E102: 867707-B21 | I102: 298
A103: [TS2L4-640SFP28] HPE Ethernet 10/25Gb 2-port 640SFP28 Adapter | B103: 1 | C103: TS2L4-640SFP28 | D103: TS2L4-640SFP28 | I103: 467
A104: [TS2L4-536FLR] HPE FlexFabric 10Gb 4-port 536FLR-T Adapter | B104: 1 | C104: TS2L4-536FLR | D104: TS2L4-536FLR | E104: 764302-B21 | I104: 610
A105: [TS2L4-562SFP] HPE Ethernet 10Gb 2-port 562SFP+ Adapter | B105: 1 | C105: TS2L4-562SFP | D105: TS2L4-562SFP | E105: 727055-B21 | I105: 380
A106: [TS2L4-841QSFP28] HPE InfiniBand EDR 100Gb 1-port 841QSFP28 Adapter | B106: 1 | C106: TS2L4-841QSFP28 | D106: TS2L4-841QSFP28 | E106: 872725-B21 | I106: 481
A108: Additional Card for PCIe Slot 7/8
A109: DL560
A110: None | H110: 0
A111: [TS2L4-LAN1] HPE Ethernet 1Gb 2-port 332T Adapter | B111: 1 | C111: TS2L4-LAN1 | D111: TS2L4-LAN1 | E111: 615732-B21 | F111: 32 | H111: 0
A112: [TS2L4-LAN10] HPE Ethernet 10Gb 2-port 530SFP Adapter | B112: 1 | C112: TS2L4-LAN10 | D112: TS2L4-LAN10 | E112: 652503-B21 | F112: 357 | G112: HPE BLc 10G SFP+ SR Transceiver | H112: 2 | J112: 455883-B21
A113: [TS2L4-CNA10] HPE CN1100R 2P Converged Network Adapter | B113: 1 | C113: TS2L4-CNA10 | D113: TS2L4-CNA10 | E113: QW990A | F113: 723 | G113: HPE BLc 10G SFP+ SR Transceiver | H113: 2 | J113: 455883-B21
A114: [TS2L4-FC16] HPE StoreFabric SN1100Q 16Gb Dual Port Fibre Channel HBA | B114: 1 | C114: TS2L4-FC16 | D114: TS2L4-FC16 | E114: P9D94A | F114: 356 | H114: 0
A115: :._.:.:*~*:._.:*~*:._.:*~*:._.: Componenti 20% .:*~*:._.:*~*:._.:*~*:._.:*~*:._.: | B115: ="" ->  | C115: ="" ->  | D115: ="" ->  | E115: ="" ->  | F115: ="" ->  | G115: ="" ->  | H115: ="" ->  | I115: ="" ->  | J115: ="" -> 
A116: [TS2L4-530T] HPE Ethernet 10Gb 2-port 530T Adapter | B116: 1 | C116: TS2L4-530T | D116: TS2L4-530T | E116: 656596-B21 | I116: 298
A117: [TS2L4-521T] HPE Ethernet 10Gb 2-port 521T Adapter | B117: 1 | C117: TS2L4-521T | D117: TS2L4-521T | E117: 867707-B21 | I117: 298
A118: [TS2L4-640SFP28] HPE Ethernet 10/25Gb 2-port 640SFP28 Adapter | B118: 1 | C118: TS2L4-640SFP28 | D118: TS2L4-640SFP28 | I118: 467
A119: [TS2L4-562SFP] HPE Ethernet 10Gb 2-port 562SFP+ Adapter | B119: 1 | C119: TS2L4-562SFP | D119: TS2L4-562SFP | E119: 727055-B21 | I119: 380
A120: [TS2L4-841QSFP28] HPE InfiniBand EDR 100Gb 1-port 841QSFP28 Adapter | B120: 1 | C120: TS2L4-841QSFP28 | D120: TS2L4-841QSFP28 | E120: 872725-B21 | I120: 481
A123: Additional Card for PCIe Slot 9 OCCUPATO
A124: DL580
A125: None | H125: 0
A126: HPE Ethernet 1Gb 2P 332T Adptr | B126: 1 | C126: 10L2-LAN1GB | D126: S10L1-DL560-LAN1 | E126: 615732-B21 | F126: 35 | H126: 0
A127: HPE Ethernet 10Gb 2P 530SFP+ Adptr | B127: 1 | C127: 10L2-LAN10GB | D127: S10L1-DL560-LAN10 | E127: 652503-B21 | F127: 716 | G127: HPE BLc 10G SFP+ SR Transceiver | H127: 2 | J127: 455883-B21
A128: HPE StoreFabric CN1200E 10Gb CNA | B128: 1 | C128: 10L2-CNA10 | D128: S10L1-DL560-CNA10 | E128: E7Y06A | F128: 778 | G128: HPE BLc 10G SFP+ SR Transceiver | H128: 2 | J128: 455883-B21
A129: HPE 82Q 8Gb Dual Port PCI-e FC HBA | B129: 1 | C129: 10L2-FC | D129: S10L1-DL560-FC | E129: AJ764A | F129: 889 | H129: 0
A131: Additional Card for PCIe Slot 8 | L131: 1671 | M131: =L131/100 -> 16.71 | N131: =M131*25 -> 417.75 | O131: =N131+L131 -> 2088.75 | P131: 2100
A132: DL580
A133: None | H133: 0
A134: HPE Ethernet 1Gb 2-port 332T Adapter | B134: 1 | C134: TS2L4-1GB | D134: TS2L4-1GB | E134: 615732-B21 | F134: 29 | H134: 0
A135: HPE Ethernet 10Gb 2-port 530SFP Adapter | B135: 1 | C135: TS2L4-10GB | D135: TS2L4-10GB | E135: 652503-B21 | F135: 259 | G135: HPE BLc 10G SFP+ SR Transceiver | H135: 2 | J135: 455883-B21
A136: HPE StoreFabric CN1200E 10Gb Converged Network Adapter | B136: 1 | C136: TS2L4-CNA | D136: TS2L4-CNA | E136: E7Y06A | F136: 720 | G136: HPE BLc 10G SFP+ SR Transceiver | H136: 2 | J136: 455883-B21
A137: HPE Ethernet 10Gb 2P 530T Adapter | B137: 1 | C137: TS1-656596 | D137: TS1-656596 | E137: 656596-B21 | I137: 298
A138: HPE Ethernet 10Gb 2-port 521T Adapter | B138: 1 | C138: TS1-867707 | D138: TS1-867707 | E138: 867707-B21 | I138: 298
A139: HPE 82Q 8Gb 2-port PCIe Fibre Channel Host Bus Adapter | B139: 1 | C139: TS2L4-FC | D139: TS2L4-FC | E139: AJ764A | F139: 356 | H139: 0
A140: HPE StoreFabric SN1100Q 16Gb Dual Port Fibre Channel Host Bus Adapter | B140: 1 | C140: S2-P9D94A | D140: S2-P9D94A | E140: P9D94A | F140: 0 | H140: 0 | I140: 584
A142: Additional Card for PCIe Slot 7
A143: DL580
A144: None | H144: 0
A145: HPE Ethernet 1Gb 2-port 332T Adapter | B145: 1 | C145: TS2L4-1GB | D145: TS2L4-1GB-ALT | E145: 615732-B21 | F145: 29 | H145: 0
A146: HPE Ethernet 10Gb 2-port 530SFP Adapter | B146: 1 | C146: TS2L4-10GB | D146: TS2L4-10GB-ALT | E146: 652503-B21 | F146: 259 | G146: HPE BLc 10G SFP+ SR Transceiver | H146: 2 | J146: 455883-B21
A147: HPE StoreFabric CN1200E 10Gb Converged Network Adapter | B147: 1 | C147: TS2L4-CNA | D147: TS2L4-CNA-ALT | E147: E7Y06A | F147: 720 | G147: HPE BLc 10G SFP+ SR Transceiver | H147: 2 | J147: 455883-B21
A148: HPE Ethernet 10Gb 2P 530T Adapter | B148: 1 | C148: TS1-656596 | D148: TS1-656596 | E148: 656596-B21 | I148: 298
A149: HPE Ethernet 10Gb 2-port 521T Adapter | B149: 1 | C149: TS1-867707 | D149: TS1-867707 | E149: 867707-B21 | I149: 298
A150: HPE 82Q 8Gb 2-port PCIe Fibre Channel Host Bus Adapter | B150: 1 | C150: TS2L4-FC | D150: TS2L4-FC | E150: AJ764A | F150: 356 | H150: 0
A151: HPE StoreFabric SN1100Q 16Gb Dual Port Fibre Channel Host Bus Adapter | B151: 1 | C151: S2-P9D94A | D151: S2-P9D94A-ALT | E151: P9D94A | F151: 0 | H151: 0 | I151: 584
A153: Additional Card for PCIe Slot 6
A154: DL580 Slot 48HDD
A155: None | H155: 0
A156: HPE Ethernet 1Gb 2-port 332T Adapter | B156: 1 | C156: TS2L4-1GB | D156: TS2L4-1GB-ALT | E156: 615732-B21 | F156: 29 | H156: 0
A157: HPE DL580 Gen10 12G 24-port SAS Expander | B157: 1 | E157: 881101-B21
A158: HPE Smart Array P408i-p SR Gen10 Ctrlr | B158: 1 | E158: 830824-B21
A159: HPE Ethernet 10Gb 2-port 530SFP Adapter | B159: 1 | C159: TS2L4-10GB | D159: TS2L4-10GB-ALT | E159: 652503-B21 | F159: 259 | G159: HPE BLc 10G SFP+ SR Transceiver | H159: 2 | J159: 455883-B21
A160: HPE StoreFabric CN1200E 10Gb Converged Network Adapter | B160: 1 | C160: TS2L4-CNA | D160: TS2L4-CNA-ALT | E160: E7Y06A | F160: 720 | G160: HPE BLc 10G SFP+ SR Transceiver | H160: 2 | J160: 455883-B21
A161: HPE Ethernet 10Gb 2P 530T Adapter | B161: 1 | C161: TS1-656596 | D161: TS1-656596 | E161: 656596-B21 | I161: 298
A162: HPE Ethernet 10Gb 2-port 521T Adapter | B162: 1 | C162: TS1-867707 | D162: TS1-867707 | E162: 867707-B21 | I162: 298
A163: HPE 82Q 8Gb 2-port PCIe Fibre Channel Host Bus Adapter | B163: 1 | C163: TS2L4-FC | D163: TS2L4-FC | E163: AJ764A | F163: 356 | H163: 0
A164: HPE StoreFabric SN1100Q 16Gb Dual Port Fibre Channel Host Bus Adapter | B164: 1 | C164: S2-P9D94A | D164: S2-P9D94A-ALT | E164: P9D94A | F164: 0 | H164: 0 | I164: 584
A166: Additional Card for PCIe Slot 5
A167: DL580
A168: None | H168: 0
A169: HPE Ethernet 1Gb 2-port 332T Adapter | B169: 1 | C169: TS2L4-1GB | D169: TS2L4-1GB | E169: 615732-B21 | F169: 29 | H169: 0
A170: HPE Ethernet 10Gb 2-port 530SFP Adapter | B170: 1 | C170: TS2L4-10GB | D170: TS2L4-10GB | E170: 652503-B21 | F170: 259 | G170: HPE BLc 10G SFP+ SR Transceiver | H170: 2 | J170: 455883-B21
A171: HPE StoreFabric CN1200E 10Gb Converged Network Adapter | B171: 1 | C171: TS2L4-CNA | D171: TS2L4-CNA | E171: E7Y06A | F171: 720 | G171: HPE BLc 10G SFP+ SR Transceiver | H171: 2 | J171: 455883-B21
A172: HPE Ethernet 10Gb 2P 530T Adapter | B172: 1 | C172: TS1-656596 | D172: TS1-656596 | E172: 656596-B21 | I172: 298
A173: HPE Ethernet 10Gb 2-port 521T Adapter | B173: 1 | C173: TS1-867707 | D173: TS1-867707 | E173: 867707-B21 | I173: 298
A174: HPE 82Q 8Gb 2-port PCIe Fibre Channel Host Bus Adapter | B174: 1 | C174: TS2L4-FC | D174: TS2L4-FC | E174: AJ764A | F174: 356 | H174: 0
A175: HPE StoreFabric SN1100Q 16Gb Dual Port Fibre Channel Host Bus Adapter | B175: 1 | C175: S2-P9D94A | D175: S2-P9D94A | E175: P9D94A | F175: 0 | H175: 0 | I175: 584
A177: Additional Card for PCIe Slot 4
A178: DL580
A179: None | H179: 0
A180: HPE Ethernet 1Gb 2-port 332T Adapter | B180: 1 | C180: TS2L4-1GB | D180: TS2L4-1GB | E180: 615732-B21 | F180: 29 | H180: 0
A181: HPE Ethernet 10Gb 2-port 530SFP Adapter | B181: 1 | C181: TS2L4-10GB | D181: TS2L4-10GB | E181: 652503-B21 | F181: 259 | G181: HPE BLc 10G SFP+ SR Transceiver | H181: 2 | J181: 455883-B21
A182: HPE StoreFabric CN1200E 10Gb Converged Network Adapter | B182: 1 | C182: TS2L4-CNA | D182: TS2L4-CNA | E182: E7Y06A | F182: 720 | G182: HPE BLc 10G SFP+ SR Transceiver | H182: 2 | J182: 455883-B21
A183: HPE Ethernet 10Gb 2P 530T Adapter | B183: 1 | C183: TS1-656596 | D183: TS1-656596 | E183: 656596-B21 | I183: 298
A184: HPE Ethernet 10Gb 2-port 521T Adapter | B184: 1 | C184: TS1-867707 | D184: TS1-867707 | E184: 867707-B21 | I184: 298
A185: HPE 82Q 8Gb 2-port PCIe Fibre Channel Host Bus Adapter | B185: 1 | C185: TS2L4-FC | D185: TS2L4-FC | E185: AJ764A | F185: 356 | H185: 0
A186: HPE StoreFabric SN1100Q 16Gb Dual Port Fibre Channel Host Bus Adapter | B186: 1 | C186: S2-P9D94A | D186: S2-P9D94A | E186: P9D94A | F186: 0 | H186: 0 | I186: 584
A187: NVIDIA Tesla V100 PCIe 16GB Module | B187: 1 | C187: TS1-Q2N68A | D187: TS1-Q2N68A | E187: Q2N68A | I187: 10583
A188: NVIDIA Tesla P40 24GB Module | B188: 1 | C188: TS1-Q0V80A | D188: TS1-Q0V80A | E188: Q0V80A | I188: 7552
A189: NVIDIA Quadro P6000 GPU Module | B189: 1 | C189: TS1-Q0V76A | D189: TS1-Q0V76A | E189: Q0V76A | F189: 0 | H189: 0 | I189: 5310
A191: Additional Card for PCIe Slot 3
A192: DL580
A193: None | H193: 0
A194: HPE Ethernet 1Gb 2-port 332T Adapter | B194: 1 | C194: TS2L4-1GB | D194: TS2L4-1GB-ALT | E194: 615732-B21 | F194: 29 | H194: 0
A195: HPE Ethernet 10Gb 2-port 530SFP Adapter | B195: 1 | C195: TS2L4-10GB | D195: TS2L4-10GB-ALT | E195: 652503-B21 | F195: 259 | G195: HPE BLc 10G SFP+ SR Transceiver | H195: 2 | J195: 455883-B21
A196: HPE StoreFabric CN1200E 10Gb Converged Network Adapter | B196: 1 | C196: TS2L4-CNA | D196: TS2L4-CNA-ALT | E196: E7Y06A | F196: 720 | G196: HPE BLc 10G SFP+ SR Transceiver | H196: 2 | J196: 455883-B21
A197: HPE Ethernet 10Gb 2P 530T Adapter | B197: 1 | C197: TS1-656596 | D197: TS1-656596 | E197: 656596-B21 | I197: 298
A198: HPE Ethernet 10Gb 2-port 521T Adapter | B198: 1 | C198: TS1-867707 | D198: TS1-867707 | E198: 867707-B21 | I198: 298
A199: HPE 82Q 8Gb 2-port PCIe Fibre Channel Host Bus Adapter | B199: 1 | C199: TS2L4-FC | D199: TS2L4-FC | E199: AJ764A | F199: 356 | H199: 0
A200: HPE StoreFabric SN1100Q 16Gb Dual Port Fibre Channel Host Bus Adapter | B200: 1 | C200: S2-P9D94A | D200: S2-P9D94A-ALT | E200: P9D94A | F200: 0 | H200: 0 | I200: 584
A202: Additional Card for PCIe Slot 2
A203: DL580
A204: None | H204: 0
A205: HPE Ethernet 1Gb 2-port 332T Adapter | B205: 1 | C205: TS2L4-1GB | D205: TS2L4-1GB-ALT | E205: 615732-B21 | F205: 29 | H205: 0
A206: HPE Ethernet 10Gb 2-port 530SFP Adapter | B206: 1 | C206: TS2L4-10GB | D206: TS2L4-10GB-ALT | E206: 652503-B21 | F206: 259 | G206: HPE BLc 10G SFP+ SR Transceiver | H206: 2 | J206: 455883-B21
A207: HPE StoreFabric CN1200E 10Gb Converged Network Adapter | B207: 1 | C207: TS2L4-CNA | D207: TS2L4-CNA-ALT | E207: E7Y06A | F207: 720 | G207: HPE BLc 10G SFP+ SR Transceiver | H207: 2 | J207: 455883-B21
A208: HPE Ethernet 10Gb 2P 530T Adapter | B208: 1 | C208: TS1-656596 | D208: TS1-656596 | E208: 656596-B21 | I208: 298
A209: HPE Ethernet 10Gb 2-port 521T Adapter | B209: 1 | C209: TS1-867707 | D209: TS1-867707 | E209: 867707-B21 | I209: 298
A210: HPE 82Q 8Gb 2-port PCIe Fibre Channel Host Bus Adapter | B210: 1 | C210: TS2L4-FC | D210: TS2L4-FC | E210: AJ764A | F210: 356 | H210: 0
A211: HPE StoreFabric SN1100Q 16Gb Dual Port Fibre Channel Host Bus Adapter | B211: 1 | C211: S2-P9D94A | D211: S2-P9D94A-ALT | E211: P9D94A | F211: 0 | H211: 0 | I211: 584
A213: Additional Card for PCIe Slot 1
A214: DL580
A215: None | H215: 0
A216: HPE Ethernet 1Gb 2-port 332T Adapter | B216: 1 | C216: TS2L4-1GB | D216: TS2L4-1GB-ALT | E216: 615732-B21 | F216: 29 | H216: 0
... 79 more rows

Sheet Processor (hidden)
A1: Additional Processor
A2: Server DL560 | C2: CPU-A
A3: No Additional Processor | B3: 0 | C3: ="" ->  | E3: ="" ->  | F3: ="" ->  | G3: ="" ->  | H3: ="" -> 
A4: Intel Xeon-Gold 5218 (2.3GHz/16-core/125W) Processor Kit | B4: 2 | C4: TS2L4-CPU-U | D4: TS2L4-CPU-U | E4: P02978-L21 | F4: ProLiant HPE DL5x0 Gen10 CPU Mezzanine Board Kit | G4: 1 | H4: 872222-B21 | L4: 1961
A6: Server DL580 | C6: CPU-B
A7: No Additional Processor | B7: 0 | C7: ="" ->  | E7: ="" ->  | F7: ="" ->  | G7: ="" ->  | H7: ="" ->  | L7: ="" -> 
A8: HPE DL580 Gen10 Intel® Xeon-Gold 5118 (2.3GHz/12-core/105W) FIO Processor Kit | B8: 2 | C8: TS1L2-CPU-ALT-U | D8: TS1L2-CPU-ALT-U | E8: 878126-L21 | F8: ProLiant HPE DL5x0 Gen10 CPU Mezzanine Board Kit | G8: 1 | H8: 872222-B21 | L8: 2584
A10: Server DL580 Prestazionale
A11: No Additional Processor | B11: 0 | C11: ="" ->  | F11: ="" ->  | G11: ="" ->  | H11: ="" ->  | L11: ="" -> 
A12: HPE DL580 Gen10 Intel® Xeon-Gold 6140M (2.3GHz/18-core/140W) FIO Processor Kit | B12: 2 | C12: TS1L2-CPU-580-U | D12: TS1L2-CPU-580-U | E12: 878138-L21 | F12: ProLiant HPE DL5x0 Gen10 CPU Mezzanine Board Kit | G12: 1 | H12: 872222-B21 | L12: 5056
A19: HPE OneView Advanced standalone licenses
A20: None | B20: 0 | C20: ="" ->  | D20: ="" ->  | E20: ="" ->  | F20: 0 | G20: ="" ->  | H20: ="" ->  | I20: ="" ->  | J20: ="" ->  | K20: ="" ->  | L20: ="" -> 
A21: HPE OneView Advanced with iLO Advanced incl 3yr 24x7 Supp Phys 1 Svr Lic | B21: 1 | C21: TS2L4-OV3YILO | D21: TS2L4-OV3YILO | E21: E5Y34A | F21: 480

Sheet Memory (hidden)
B1: Total Memory
B3: HPE 16GB (1x16GB) Dual Rank x4 DDR4-2400 Registered Memory Kit | C3: 1 | D3: TS2L4-16GB-2400 | E3: TS2L4-16GB-580 | F3: 836220-B21 | G3: 172 | H3: DL580 Gen9
B4: HP 32GB (1x32GB) Dual Rank x4 DDR4-2400 Registered Memory Kit | C4: 1 | D4: TS2L4-32GB-2400 | E4: TS2L4-32GB-580 | F4: 805351-B21 | G4: 344 | H4: DL580 Gen9
B5: HPE 64GB (1x64GB) Quad Rank x4 DDR4-2400 Load Reduced Memory Kit | C5: 1 | D5: TS2L4-64GB-2400 | E5: TS2L4-64GB-580 | F5: 805358-B21 | G5: 750 | H5: DL580 Gen9
B6: HPE 16GB 1Rx4 PC4-2933 Smart Kit | C6: 1 | D6: TS2L4-RAM16 | E6: TS2L4-RAM16 | F6: 815098-B21 | G6: 136
B7: HPE 32GB 2Rx4 PC4-2933 Smart Kit | C7: 1 | D7: TS2L4-RAM32-U | E7: TS2L4-RAM32-U | F7: 815100-B21 | G7: 397 | H7: =G7*4 -> 1588
B8: HPE 64GB 4Rx4 PC4-2933 Smart Kit | C8: 1 | D8: TS2L4-RAM64-U | E8: TS2L4-RAM64-U | F8: 815101-B21 | G8: 705
A11: 2CPU | B11: MEMORY A
A12: .:*~*:._.:*~*:._.:*~*:._.:Moduli da 32GB.:*~*:._.:*~*:._.:*~*:._.: | B12: =$B$7 -> HPE 32GB 2Rx4 PC4-2933 Smart Kit | C12: 4 | D12: ="" ->  | E12: TS2L4-RAM32-U | F12: 815100-B21 | G12: 0 | H12: =$B$7 -> HPE 32GB 2Rx4 PC4-2933 Smart Kit | I12: 4 | J12: =$F$7 -> 815100-B21 | K12: ="" ->  | L12: ="" ->  | M12: ="" ->  | N12: ="" ->  | O12: ="" ->  | P12: ="" -> 
A13: 128 (DIMM 32GB) | B13: HPE 32GB 2Rx4 PC4-2933 Smart Kit | C13: 4 | D13: ="" ->  | E13: TS2L4-RAM32-U | F13: 815100-B21 | G13: 0 | H13: HPE 32GB 2Rx4 PC4-2933 Smart Kit | I13: 4 | J13: 815100-B21 | K13: ="" ->  | L13: ="" ->  | M13: ="" ->  | N13: ="" ->  | O13: ="" ->  | P13: ="" -> 
A14: 192 (DIMM 32GB) | B14: HPE 32GB 2Rx4 PC4-2933 Smart Kit | C14: 6 | D14: TS2L4-RAM32-U | E14: TS2L4-RAM32-U | F14: 815100-B21 | G14: =($G$7*C14)-$H$7 -> 794 | H14: HPE 32GB 2Rx4 PC4-2933 Smart Kit | I14: 4 | J14: 815100-B21 | K14: ="" ->  | L14: ="" ->  | M14: ="" ->  | N14: ="" ->  | O14: ="" ->  | P14: ="" -> 
A15: 256 (DIMM 32GB) | B15: HPE 32GB 2Rx4 PC4-2933 Smart Kit | C15: 8 | D15: TS2L4-RAM32-U | E15: TS2L4-RAM32-U | F15: 815100-B21 | G15: =($G$7*C15)-$H$7 -> 1588 | H15: HPE 32GB 2Rx4 PC4-2933 Smart Kit | I15: 4 | J15: 815100-B21 | K15: ="" ->  | L15: ="" ->  | M15: ="" ->  | N15: ="" ->  | O15: ="" ->  | P15: ="" -> 
A16: 384 (DIMM 32GB) | B16: HPE 32GB 2Rx4 PC4-2933 Smart Kit | C16: 12 | D16: TS2L4-RAM32-U | E16: TS2L4-RAM32-U | F16: 815100-B21 | G16: 3176 | H16: HPE 32GB 2Rx4 PC4-2933 Smart Kit | I16: 4 | J16: 815100-B21 | K16: ="" ->  | L16: ="" ->  | M16: ="" ->  | N16: ="" ->  | O16: ="" ->  | P16: ="" -> 
A17: 512 (DIMM 32GB) | B17: HPE 32GB 2Rx4 PC4-2933 Smart Kit | C17: 16 | D17: TS2L4-RAM32-U | E17: TS2L4-RAM32-U | F17: 815100-B21 | G17: 4764 | H17: HPE 32GB 2Rx4 PC4-2933 Smart Kit | I17: 4 | J17: 815100-B21 | K17: ="" ->  | L17: ="" ->  | M17: ="" ->  | N17: ="" ->  | O17: ="" ->  | P17: ="" -> 
A18: 768 (DIMM 32GB) | B18: HPE 32GB 2Rx4 PC4-2933 Smart Kit | C18: 24 | D18: TS2L4-RAM32-U | E18: TS2L4-RAM32-U | F18: 815100-B21 | G18: 7940 | H18: HPE 32GB 2Rx4 PC4-2933 Smart Kit | I18: 4 | J18: 815100-B21 | K18: ="" ->  | L18: ="" ->  | M18: ="" ->  | N18: ="" ->  | O18: ="" ->  | P18: ="" -> 
A19: .:*~*:._.:*~*:._.:*~*:._.:Moduli da 64GB.:*~*:._.:*~*:._.:*~*:._.: | B19: ="" ->  | C19: ="" ->  | D19: ="" ->  | E19: ="" ->  | F19: ="" ->  | G19: ="" ->  | H19: ="" ->  | I19: ="" ->  | J19: ="" ->  | K19: HPE 64GB 4Rx4 PC4-2933 Smart Kit | L19: 8 | M19: TS2L4-RAM64-U | N19: TS2L4-RAM64-U | O19: 815101-B21 | P19: =$G$8*L19 -> 5640
A20: 512 (DIMM 64GB) | B20: ="" ->  | C20: ="" ->  | D20: ="" ->  | E20: ="" ->  | F20: ="" ->  | G20: ="" ->  | H20: ="" ->  | I20: ="" ->  | J20: ="" ->  | K20: HPE 64GB 4Rx4 PC4-2933 Smart Kit | L20: 8 | M20: TS2L4-RAM64-U | N20: TS2L4-RAM64-U | O20: 815101-B21 | P20: 5640
A21: 768 (DIMM 64GB) | B21: ="" ->  | C21: ="" ->  | D21: ="" ->  | E21: ="" ->  | F21: ="" ->  | G21: ="" ->  | H21: ="" ->  | I21: ="" ->  | J21: ="" ->  | K21: HPE 64GB 4Rx4 PC4-2933 Smart Kit | L21: 12 | M21: TS2L4-RAM64-U | N21: TS2L4-RAM64-U | O21: 815101-B21 | P21: 8460
A22: 1024 (DIMM 64GB) | B22: ="" ->  | C22: ="" ->  | D22: ="" ->  | E22: ="" ->  | F22: ="" ->  | G22: ="" ->  | H22: ="" ->  | I22: ="" ->  | J22: ="" ->  | K22: HPE 64GB 4Rx4 PC4-2933 Smart Kit | L22: 16 | M22: TS2L4-RAM64-U | N22: TS2L4-RAM64-U | O22: 815101-B21 | P22: =$G$8*L22 -> 11280
A23: 1536 (DIMM 64GB) | B23: ="" ->  | C23: ="" ->  | D23: ="" ->  | E23: ="" ->  | F23: ="" ->  | G23: ="" ->  | H23: ="" ->  | I23: ="" ->  | J23: ="" ->  | K23: HPE 64GB 4Rx4 PC4-2933 Smart Kit | L23: 24 | M23: TS2L4-RAM64-U | N23: TS2L4-RAM64-U | O23: 815101-B21 | P23: =$G$8*L23 -> 16920
A24: 4CPU
A25: .:*~*:._.:*~*:._.:*~*:._.:Moduli da 32GB.:*~*:._.:*~*:._.:*~*:._.: | B25: =$B$7 -> HPE 32GB 2Rx4 PC4-2933 Smart Kit | C25: 4 | D25: ="" ->  | E25: ="" ->  | F25: 815100-B21 | G25: 0 | H25: =$B$7 -> HPE 32GB 2Rx4 PC4-2933 Smart Kit | I25: 4 | J25: =$F$7 -> 815100-B21 | K25: ="" ->  | L25: ="" ->  | M25: ="" ->  | N25: ="" ->  | O25: ="" ->  | P25: ="" -> 
A26: 128 (DIMM 32GB) | B26: HPE 32GB 2Rx4 PC4-2933 Smart Kit | C26: 4 | D26: ="" ->  | E26: ="" ->  | F26: 815100-B21 | G26: 0 | H26: HPE 32GB 2Rx4 PC4-2933 Smart Kit | I26: 4 | J26: 815100-B21 | K26: ="" ->  | L26: ="" ->  | M26: ="" ->  | N26: ="" ->  | O26: ="" ->  | P26: ="" -> 
A27: 256 (DIMM 32GB) | B27: HPE 32GB 2Rx4 PC4-2933 Smart Kit | C27: 8 | D27: TS2L4-RAM32-U | E27: TS2L4-RAM32-U | F27: 815100-B21 | G27: =($G$7*C27)-$H$7 -> 1588 | H27: =$B$7 -> HPE 32GB 2Rx4 PC4-2933 Smart Kit | I27: 4 | J27: =$F$7 -> 815100-B21 | K27: ="" ->  | L27: ="" ->  | M27: ="" ->  | N27: ="" ->  | O27: ="" ->  | P27: ="" -> 
A28: 384 (DIMM 32GB) | B28: HPE 32GB 2Rx4 PC4-2933 Smart Kit | C28: 12 | D28: TS2L4-RAM32-U | E28: TS2L4-RAM32-U | F28: 815100-B21 | G28: =($G$7*C28)-$H$7 -> 3176 | H28: HPE 32GB 2Rx4 PC4-2933 Smart Kit | I28: 4 | J28: 815100-B21 | K28: ="" ->  | L28: ="" ->  | M28: ="" ->  | N28: ="" ->  | O28: ="" ->  | P28: ="" -> 
A29: 512 (DIMM 32GB) | B29: HPE 32GB 2Rx4 PC4-2933 Smart Kit | C29: 16 | D29: TS2L4-RAM32-U | E29: TS2L4-RAM32-U | F29: 815100-B21 | G29: 4764 | H29: HPE 32GB 2Rx4 PC4-2933 Smart Kit | I29: 4 | J29: 815100-B21 | K29: ="" ->  | L29: ="" ->  | M29: ="" ->  | N29: ="" ->  | O29: ="" ->  | P29: ="" -> 
A30: 768 (DIMM 32GB) | B30: HPE 32GB 2Rx4 PC4-2933 Smart Kit | C30: 24 | D30: TS2L4-RAM32-U | E30: TS2L4-RAM32-U | F30: 815100-B21 | G30: 7940 | H30: HPE 32GB 2Rx4 PC4-2933 Smart Kit | I30: 4 | J30: 815100-B21 | K30: ="" ->  | L30: ="" ->  | M30: ="" ->  | N30: ="" ->  | O30: ="" ->  | P30: ="" -> 
A31: 1024 (DIMM 32GB) | B31: HPE 32GB 2Rx4 PC4-2933 Smart Kit | C31: 32 | D31: TS2L4-RAM32-U | E31: TS2L4-RAM32-U | F31: 815100-B21 | G31: 11116 | H31: HPE 32GB 2Rx4 PC4-2933 Smart Kit | I31: 4 | J31: 815100-B21 | K31: ="" ->  | L31: ="" ->  | M31: ="" ->  | N31: ="" ->  | O31: ="" ->  | P31: ="" -> 
A32: 1536 (DIMM 32GB) | B32: HPE 32GB 2Rx4 PC4-2933 Smart Kit | C32: 48 | D32: TS2L4-RAM32-U | E32: TS2L4-RAM32-U | F32: 815100-B21 | G32: 17468 | H32: HPE 32GB 2Rx4 PC4-2933 Smart Kit | I32: 4 | J32: 815100-B21 | K32: ="" ->  | L32: ="" ->  | M32: ="" ->  | N32: ="" ->  | O32: ="" ->  | P32: ="" -> 
A33: .:*~*:._.:*~*:._.:*~*:._.:Moduli da 64GB.:*~*:._.:*~*:._.:*~*:._.: | B33: ="" ->  | C33: ="" ->  | D33: ="" ->  | E33: ="" ->  | F33: ="" ->  | G33: ="" ->  | H33: ="" ->  | I33: ="" ->  | J33: ="" ->  | K33: HPE 64GB 4Rx4 PC4-2933 Smart Kit | L33: 8 | M33: TS2L4-RAM64-U | N33: TS2L4-RAM64-U | O33: 815101-B21 | P33: =$G$8*L33 -> 5640
A34: 512 (DIMM 64GB) | B34: ="" ->  | C34: ="" ->  | D34: ="" ->  | E34: ="" ->  | F34: ="" ->  | G34: ="" ->  | H34: ="" ->  | I34: ="" ->  | J34: ="" ->  | K34: HPE 64GB 4Rx4 PC4-2933 Smart Kit | L34: 8 | M34: TS2L4-RAM64-U | N34: TS2L4-RAM64-U | O34: 815101-B21 | P34: 5640
A35: 768 (DIMM 64GB) | B35: ="" ->  | C35: ="" ->  | D35: ="" ->  | E35: ="" ->  | F35: ="" ->  | G35: ="" ->  | H35: ="" ->  | I35: ="" ->  | J35: ="" ->  | K35: HPE 64GB 4Rx4 PC4-2933 Smart Kit | L35: 12 | M35: TS2L4-RAM64-U | N35: TS2L4-RAM64-U | O35: 815101-B21 | P35: 8460
A36: 1024 (DIMM 64GB) | B36: ="" ->  | C36: ="" ->  | D36: ="" ->  | E36: ="" ->  | F36: ="" ->  | G36: ="" ->  | H36: ="" ->  | I36: ="" ->  | J36: ="" ->  | K36: HPE 64GB 4Rx4 PC4-2933 Smart Kit | L36: 16 | M36: TS2L4-RAM64-U | N36: TS2L4-RAM64-U | O36: 815101-B21 | P36: =$G$8*L36 -> 11280
A37: 1536 (DIMM 64GB) | B37: ="" ->  | C37: ="" ->  | D37: ="" ->  | E37: ="" ->  | F37: ="" ->  | G37: ="" ->  | H37: ="" ->  | I37: ="" ->  | J37: ="" ->  | K37: HPE 64GB 4Rx4 PC4-2933 Smart Kit | L37: 24 | M37: TS2L4-RAM64-U | N37: TS2L4-RAM64-U | O37: 815101-B21 | P37: =$G$8*L37 -> 16920
A38: 2048 (DIMM 64GB) | B38: ="" ->  | C38: ="" ->  | D38: ="" ->  | E38: ="" ->  | F38: ="" ->  | G38: ="" ->  | H38: ="" ->  | I38: ="" ->  | J38: ="" ->  | K38: HPE 64GB 4Rx4 PC4-2933 Smart Kit | L38: 32 | M38: TS2L4-RAM64-U | N38: TS2L4-RAM64-U | O38: 815101-B21 | P38: =$G$8*L38 -> 22560
A39: 3072 (DIMM 64GB) | B39: ="" ->  | C39: ="" ->  | D39: ="" ->  | E39: ="" ->  | F39: ="" ->  | G39: ="" ->  | H39: ="" ->  | I39: ="" ->  | J39: ="" ->  | K39: HPE 64GB 4Rx4 PC4-2933 Smart Kit | L39: 48 | M39: TS2L4-RAM64-U | N39: TS2L4-RAM64-U | O39: 815101-B21 | P39: =$G$8*L39 -> 33840
B41: MEMORY B
A42: 2CPU | B42: UPGRADE 16GB | H42: MEMORIA BASE | K42: UPGRADE 32GB | T42: Memoria Totale | U42: Prezzo Totale Memorie | V42: Memory Cartridge Totali | W42: DIMM Slot | X42: 32 | Y42: 16 | Z42: 16
A43: 64 | B43: ="" ->  | C43: ="" ->  | D43: ="" ->  | E43: ="" ->  | F43: ="" ->  | G43: ="" ->  | H43: =$B$7 -> HPE 32GB 2Rx4 PC4-2933 Smart Kit | I43: 2 | J43: =$F$7 -> 815100-B21 | K43: ="" ->  | L43: ="" ->  | M43: ="" ->  | N43: ="" ->  | O43: ="" ->  | P43: ="" ->  | X43: =IF(L43="",0,L43) -> 0 | Y43: =IF(I43="",0,I43) -> 2 | Z43: =IF(C43="",0,C43) -> 0 | AA43: =SUM(X43:Z43) -> 0
A44: 128 | B44: HPE 32GB 2Rx4 PC4-2933 Smart Kit | C44: 2 | D44: TS2L4-32GB | E44: TS2L4-32GB | F44: 815100-B21 | G44: =$G$7*C44 -> 794 | H44: =$B$7 -> HPE 32GB 2Rx4 PC4-2933 Smart Kit | I44: 2 | J44: =$F$7 -> 815100-B21 | K44: ="" ->  | L44: ="" ->  | M44: ="" ->  | N44: ="" ->  | O44: ="" ->  | P44: ="" ->  | X44: 0 | Y44: 2 | Z44: 2 | AA44: 2
A45: 192 | B45: HPE 32GB 2Rx4 PC4-2933 Smart Kit | C45: 4 | D45: TS2L4-32GB | E45: TS2L4-32GB | F45: 815100-B21 | G45: 1588 | H45: HPE 32GB 2Rx4 PC4-2933 Smart Kit | I45: 2 | J45: 815100-B21 | K45: ="" ->  | L45: ="" ->  | M45: ="" ->  | N45: ="" ->  | O45: ="" ->  | P45: ="" ->  | X45: 0 | Y45: 2 | Z45: 4 | AA45: 4
A46: 256 | B46: HPE 32GB 2Rx4 PC4-2933 Smart Kit | C46: 6 | D46: TS2L4-32GB | E46: TS2L4-32GB | F46: 815100-B21 | G46: 2382 | H46: HPE 32GB 2Rx4 PC4-2933 Smart Kit | I46: 2 | J46: 815100-B21 | K46: ="" ->  | L46: ="" ->  | M46: ="" ->  | N46: ="" ->  | O46: ="" ->  | P46: ="" ->  | X46: 0 | Y46: 2 | Z46: 6 | AA46: 6
A47: 384 | B47: HPE 32GB 2Rx4 PC4-2933 Smart Kit | C47: 10 | D47: TS2L4-32GB | E47: TS2L4-32GB | F47: 815100-B21 | G47: 3970 | H47: HPE 32GB 2Rx4 PC4-2933 Smart Kit | I47: 2 | J47: 815100-B21 | K47: ="" ->  | L47: ="" ->  | M47: ="" ->  | N47: ="" ->  | O47: ="" ->  | P47: ="" ->  | X47: 0 | Y47: 2 | Z47: 10 | AA47: 10
A48: 512 | B48: HPE 32GB 2Rx4 PC4-2933 Smart Kit | C48: 14 | D48: TS2L4-32GB | E48: TS2L4-32GB | F48: 815100-B21 | G48: 5558 | H48: HPE 32GB 2Rx4 PC4-2933 Smart Kit | I48: 2 | J48: 815100-B21 | K48: ="" ->  | L48: ="" ->  | M48: ="" ->  | N48: ="" ->  | O48: ="" ->  | P48: ="" ->  | X48: 0 | Y48: 2 | Z48: 14 | AA48: 14
A49: 768 | B49: HPE 32GB 2Rx4 PC4-2933 Smart Kit | C49: 22 | D49: TS2L4-32GB | E49: TS2L4-32GB | F49: 815100-B21 | G49: 8734 | H49: HPE 32GB 2Rx4 PC4-2933 Smart Kit | I49: 2 | J49: 815100-B21 | K49: ="" ->  | L49: ="" ->  | M49: ="" ->  | N49: ="" ->  | O49: ="" ->  | P49: ="" ->  | X49: 0 | Y49: 2 | Z49: 22 | AA49: 22
A50: 1024 | B50: ="" ->  | C50: ="" ->  | D50: ="" ->  | E50: ="" ->  | F50: ="" ->  | G50: ="" ->  | H50: ="" ->  | I50: ="" ->  | J50: ="" ->  | K50: HPE 64GB 4Rx4 PC4-2933 Smart Kit | L50: 16 | M50: TS1L2-64GB | N50: TS1L2-64GB | O50: 815101-B21 | P50: =$G$8*L50 -> 11280 | X50: 16 | Y50: 0 | Z50: 0 | AA50: 16
A51: 1536 | B51: ="" ->  | C51: ="" ->  | D51: ="" ->  | E51: ="" ->  | F51: ="" ->  | G51: ="" ->  | H51: ="" ->  | I51: ="" ->  | J51: ="" ->  | K51: HPE 64GB 4Rx4 PC4-2933 Smart Kit | L51: 24 | M51: TS1L2-64GB | N51: TS1L2-64GB | O51: 815101-B21 | P51: =$G$8*L51 -> 16920 | X51: 24 | Y51: 0 | Z51: 0 | AA51: 24
A52: 4CPU
A53: 128 | B53: HPE 32GB 2Rx4 PC4-2933 Smart Kit | C53: 2 | D53: TS2L4-32GB | E53: TS2L4-32GB | F53: 815100-B21 | G53: =$G$7*C53 -> 794 | H53: =$B$7 -> HPE 32GB 2Rx4 PC4-2933 Smart Kit | I53: 2 | J53: =$F$7 -> 815100-B21 | K53: ="" ->  | L53: ="" ->  | M53: ="" ->  | N53: ="" ->  | O53: ="" ->  | P53: ="" ->  | X53: =IF(L53="",0,L53) -> 0 | Y53: =IF(I53="",0,I53) -> 2 | Z53: =IF(C53="",0,C53) -> 2 | AA53: =SUM(X53:Z53) -> 2
A54: 256 | B54: HPE 32GB 2Rx4 PC4-2933 Smart Kit | C54: 6 | D54: TS2L4-32GB | E54: TS2L4-32GB | F54: 815100-B21 | G54: 2382 | H54: =$B$7 -> HPE 32GB 2Rx4 PC4-2933 Smart Kit | I54: 2 | J54: =$F$7 -> 815100-B21 | K54: ="" ->  | L54: ="" ->  | M54: ="" ->  | N54: ="" ->  | O54: ="" ->  | P54: ="" ->  | X54: 0 | Y54: 2 | Z54: 6 | AA54: 6
A55: 384 | B55: HPE 32GB 2Rx4 PC4-2933 Smart Kit | C55: 10 | D55: TS2L4-32GB | E55: TS2L4-32GB | F55: 815100-B21 | G55: 3970 | H55: HPE 32GB 2Rx4 PC4-2933 Smart Kit | I55: 2 | J55: 815100-B21 | K55: ="" ->  | L55: ="" ->  | M55: ="" ->  | N55: ="" ->  | O55: ="" ->  | P55: ="" ->  | X55: 0 | Y55: 2 | Z55: 10 | AA55: 10
A56: 512 | B56: HPE 32GB 2Rx4 PC4-2933 Smart Kit | C56: 14 | D56: TS2L4-32GB | E56: TS2L4-32GB | F56: 815100-B21 | G56: 5558 | H56: HPE 32GB 2Rx4 PC4-2933 Smart Kit | I56: 2 | J56: 815100-B21 | K56: ="" ->  | L56: ="" ->  | M56: ="" ->  | N56: ="" ->  | O56: ="" ->  | P56: ="" ->  | X56: 0 | Y56: 2 | Z56: 14 | AA56: 14
A57: 768 | B57: HPE 32GB 2Rx4 PC4-2933 Smart Kit | C57: 22 | D57: TS2L4-32GB | E57: TS2L4-32GB | F57: 815100-B21 | G57: 8734 | H57: HPE 32GB 2Rx4 PC4-2933 Smart Kit | I57: 2 | J57: 815100-B21 | K57: ="" ->  | L57: ="" ->  | M57: ="" ->  | N57: ="" ->  | O57: ="" ->  | P57: ="" ->  | X57: 0 | Y57: 2 | Z57: 22 | AA57: 22
A58: 1024 | B58: HPE 32GB 2Rx4 PC4-2933 Smart Kit | C58: 30 | D58: TS2L4-32GB | E58: TS2L4-32GB | F58: 815100-B21 | G58: 11910 | H58: HPE 32GB 2Rx4 PC4-2933 Smart Kit | I58: 2 | J58: 815100-B21 | K58: ="" ->  | L58: ="" ->  | M58: ="" ->  | N58: ="" ->  | O58: ="" ->  | P58: ="" ->  | X58: 0 | Y58: 2 | Z58: 30 | AA58: 30
A59: 1536 | B59: HPE 32GB 2Rx4 PC4-2933 Smart Kit | C59: 46 | D59: TS2L4-32GB | E59: TS2L4-32GB | F59: 815100-B21 | G59: 18262 | H59: HPE 32GB 2Rx4 PC4-2933 Smart Kit | I59: 2 | J59: 815100-B21 | K59: ="" ->  | L59: ="" ->  | M59: ="" ->  | N59: ="" ->  | O59: ="" ->  | P59: ="" ->  | X59: 0 | Y59: 2 | Z59: 46 | AA59: 46
A60: 2048 | B60: ="" ->  | C60: ="" ->  | D60: ="" ->  | E60: ="" ->  | F60: ="" ->  | G60: ="" ->  | H60: ="" ->  | I60: ="" ->  | J60: ="" ->  | K60: HPE 64GB 4Rx4 PC4-2933 Smart Kit | L60: 32 | M60: TS1L2-64GB | N60: TS1L2-64GB | O60: 815101-B21 | P60: =$G$8*L60 -> 22560 | X60: 32 | Y60: 0 | Z60: 0 | AA60: 32
A61: 3072 | B61: ="" ->  | C61: ="" ->  | D61: ="" ->  | E61: ="" ->  | F61: ="" ->  | G61: ="" ->  | H61: ="" ->  | I61: ="" ->  | J61: ="" ->  | K61: HPE 64GB 4Rx4 PC4-2933 Smart Kit | L61: 48 | M61: TS1L2-64GB | N61: TS1L2-64GB | O61: 815101-B21 | P61: =$G$8*L61 -> 33840 | X61: 48 | Y61: 0 | Z61: 0 | AA61: 48
A63: 1CPU | B63: MEMORY C | T63: Memoria Totale | U63: Prezzo Totale Memorie | V63: Memory Cartridge Totali | W63: DIMM Slot | X63: 32 | Y63: 16 | Z63: 16
A64: =32*I64 -> 128 | B64: ="" ->  | C64: ="" ->  | D64: ="" ->  | E64: ="" ->  | G64: ="" ->  | H64: HPE 32GB 2Rx4 PC4-2933 Smart Kit | I64: 4 | J64: 815100-B21 | K64: ="" ->  | L64: ="" ->  | M64: ="" ->  | N64: ="" ->  | O64: ="" ->  | P64: ="" ->  | X64: =IF(L64="",0,L64) -> 0 | Y64: =IF(I64="",0,I64) -> 4 | Z64: =IF(C64="",0,C64) -> 0 | AA64: =SUM(X64:Z64) -> 4
A65: =(32*I65)+(C65*32) -> 256 | B65: HPE 32GB 2Rx4 PC4-2933 Smart Kit | C65: 4 | D65: TS2L4-32GB | E65: TS2L4-32GB | F65: 815100-B21 | G65: =$G$4*C65 -> 1376 | H65: HPE 32GB 2Rx4 PC4-2933 Smart Kit | I65: 4 | J65: 815100-B21 | K65: ="" ->  | L65: ="" ->  | M65: ="" ->  | N65: ="" ->  | O65: ="" ->  | P65: ="" ->  | X65: =IF(L65="",0,L65) -> 0 | Y65: =IF(I65="",0,I65) -> 4 | Z65: =IF(C65="",0,C65) -> 4 | AA65: =SUM(X65:Z65) -> 8
A66: =(32*I66)+(C66*32) -> 512 | B66: HPE 32GB 2Rx4 PC4-2933 Smart Kit | C66: 12 | D66: TS2L4-32GB | E66: TS2L4-32GB | F66: 815100-B21 | G66: =$G$4*C66 -> 4128 | H66: HPE 32GB 2Rx4 PC4-2933 Smart Kit | I66: 4 | J66: 815100-B21 | K66: ="" ->  | L66: ="" ->  | M66: ="" ->  | N66: ="" ->  | O66: ="" ->  | P66: ="" ->  | X66: 0 | Y66: 4 | Z66: 12 | AA66: 16
A67: =(32*I67)+(C67*32) -> 640 | B67: HPE 32GB 2Rx4 PC4-2933 Smart Kit | C67: 16 | D67: TS2L4-32GB | E67: TS2L4-32GB | F67: 815100-B21 | G67: =$G$4*C67 -> 5504 | H67: HPE 32GB 2Rx4 PC4-2933 Smart Kit | I67: 4 | J67: 815100-B21 | K67: ="" ->  | L67: ="" ->  | M67: ="" ->  | N67: ="" ->  | O67: ="" ->  | P67: ="" ->  | X67: =IF(L67="",0,L67) -> 0 | Y67: =IF(I67="",0,I67) -> 4 | Z67: =IF(C67="",0,C67) -> 16 | AA67: =SUM(X67:Z67) -> 20
A68: =(32*I68)+(C68*32) -> 768 | B68: HPE 32GB 2Rx4 PC4-2933 Smart Kit | C68: 20 | D68: TS2L4-32GB | E68: TS2L4-32GB | F68: 815100-B21 | G68: =$G$4*C68 -> 6880 | H68: HPE 32GB 2Rx4 PC4-2933 Smart Kit | I68: 4 | J68: 815100-B21 | K68: ="" ->  | L68: ="" ->  | M68: ="" ->  | N68: ="" ->  | O68: ="" ->  | P68: ="" ->  | X68: 0 | Y68: 4 | Z68: 20 | AA68: 24
A69: =(L69*64) -> 1024 | B69: ="" ->  | C69: ="" ->  | D69: ="" ->  | E69: ="" ->  | F69: ="" ->  | G69: ="" ->  | H69: ="" ->  | I69: ="" ->  | J69: ="" ->  | K69: HPE 64GB 4Rx4 PC4-2933 Smart Kit | L69: 16 | M69: TS1L2-64GB | N69: TS1L2-64GB | O69: 815101-B21 | P69: =$G$8*L69 -> 11280 | X69: 16 | Y69: 0 | Z69: 0 | AA69: 16
A70: =(L70*64) -> 1280 | B70: ="" ->  | C70: ="" ->  | D70: ="" ->  | E70: ="" ->  | F70: ="" ->  | G70: ="" ->  | H70: ="" ->  | I70: ="" ->  | J70: ="" ->  | K70: HPE 64GB 4Rx4 PC4-2933 Smart Kit | L70: 20 | M70: TS1L2-64GB | N70: TS1L2-64GB | O70: 815101-B21 | P70: =$G$8*L70 -> 14100 | X70: 20 | Y70: 0 | Z70: 0 | AA70: 20
A71: =(L71*64) -> 1536 | B71: ="" ->  | C71: ="" ->  | D71: ="" ->  | E71: ="" ->  | F71: ="" ->  | G71: ="" ->  | H71: ="" ->  | I71: ="" ->  | J71: ="" ->  | K71: HPE 64GB 4Rx4 PC4-2933 Smart Kit | L71: 24 | M71: TS1L2-64GB | N71: TS1L2-64GB | O71: 815101-B21 | P71: =$G$8*L71 -> 16920 | X71: =IF(L71="",0,L71) -> 24 | Y71: =IF(I71="",0,I71) -> 0 | Z71: =IF(C71="",0,C71) -> 0 | AA71: =SUM(X71:Z71) -> 24
A72: 2CPU
A73: =(32*I73)+(C73*32) -> 256 | B73: HPE 32GB 2Rx4 PC4-2933 Smart Kit | C73: 4 | D73: TS2L4-32GB | E73: TS2L4-32GB | F73: 815100-B21 | G73: =$G$4*C73 -> 1376 | H73: HPE 32GB 2Rx4 PC4-2933 Smart Kit | I73: 4 | J73: 815100-B21 | K73: ="" ->  | L73: ="" ->  | M73: ="" ->  | N73: ="" ->  | O73: ="" ->  | P73: ="" ->  | X73: =IF(L73="",0,L73) -> 0 | Y73: =IF(I73="",0,I73) -> 4 | Z73: =IF(C73="",0,C73) -> 4 | AA73: =SUM(X73:Z73) -> 8
A74: 512 | B74: HPE 32GB 2Rx4 PC4-2933 Smart Kit | C74: 12 | D74: TS2L4-32GB | E74: TS2L4-32GB | F74: 815100-B21 | G74: 4128 | H74: HPE 32GB 2Rx4 PC4-2933 Smart Kit | I74: 4 | J74: 815100-B21 | K74: ="" ->  | L74: ="" ->  | M74: ="" ->  | N74: ="" ->  | O74: ="" ->  | P74: ="" ->  | X74: 0 | Y74: 4 | Z74: 12 | AA74: 16
A75: 640 | B75: HPE 32GB 2Rx4 PC4-2933 Smart Kit | C75: 16 | D75: TS2L4-32GB | E75: TS2L4-32GB | F75: 815100-B21 | G75: 5504 | H75: HPE 32GB 2Rx4 PC4-2933 Smart Kit | I75: 4 | J75: 815100-B21 | K75: ="" ->  | L75: ="" ->  | M75: ="" ->  | N75: ="" ->  | O75: ="" ->  | P75: ="" ->  | X75: 0 | Y75: 4 | Z75: 16 | AA75: 20
A76: 768 | B76: HPE 32GB 2Rx4 PC4-2933 Smart Kit | C76: 20 | D76: TS2L4-32GB | E76: TS2L4-32GB | F76: 815100-B21 | G76: 6880 | H76: HPE 32GB 2Rx4 PC4-2933 Smart Kit | I76: 4 | J76: 815100-B21 | K76: ="" ->  | L76: ="" ->  | M76: ="" ->  | N76: ="" ->  | O76: ="" ->  | P76: ="" ->  | X76: 0 | Y76: 4 | Z76: 20 | AA76: 24
A77: 1024 | B77: HPE 32GB 2Rx4 PC4-2933 Smart Kit | C77: 28 | D77: TS2L4-32GB | E77: TS2L4-32GB | F77: 815100-B21 | G77: 9632 | H77: HPE 32GB 2Rx4 PC4-2933 Smart Kit | I77: 4 | J77: 815100-B21 | K77: ="" ->  | L77: ="" ->  | M77: ="" ->  | N77: ="" ->  | O77: ="" ->  | P77: ="" ->  | X77: 0 | Y77: 4 | Z77: 28 | AA77: 32
A78: 1280 | B78: HPE 32GB 2Rx4 PC4-2933 Smart Kit | C78: 36 | D78: TS2L4-32GB | E78: TS2L4-32GB | F78: 815100-B21 | G78: 12384 | H78: HPE 32GB 2Rx4 PC4-2933 Smart Kit | I78: 4 | J78: 815100-B21 | K78: ="" ->  | L78: ="" ->  | M78: ="" ->  | N78: ="" ->  | O78: ="" ->  | P78: ="" ->  | X78: 0 | Y78: 4 | Z78: 36 | AA78: 40
A79: 1536 | B79: HPE 32GB 2Rx4 PC4-2933 Smart Kit | C79: 44 | D79: TS2L4-32GB | E79: TS2L4-32GB | F79: 815100-B21 | G79: 15136 | H79: HPE 32GB 2Rx4 PC4-2933 Smart Kit | I79: 4 | J79: 815100-B21 | K79: ="" ->  | L79: ="" ->  | M79: ="" ->  | N79: ="" ->  | O79: ="" ->  | P79: ="" ->  | X79: =IF(L79="",0,L79) -> 0 | Y79: =IF(I79="",0,I79) -> 4 | Z79: =IF(C79="",0,C79) -> 44 | AA79: =SUM(X79:Z79) -> 48
A80: =(L80*64) -> 2048 | B80: ="" ->  | C80: ="" ->  | D80: ="" ->  | E80: ="" ->  | F80: ="" ->  | G80: ="" ->  | H80: ="" ->  | I80: ="" ->  | J80: ="" ->  | K80: HPE 64GB 4Rx4 PC4-2933 Smart Kit | L80: 32 | M80: TS1L2-64GB | N80: TS1L2-64GB | O80: 815101-B21 | P80: =$G$8*L80 -> 22560 | X80: =IF(L80="",0,L80) -> 32 | Y80: =IF(I80="",0,I80) -> 0 | Z80: =IF(C80="",0,C80) -> 0 | AA80: =SUM(X80:Z80) -> 32
A81: =(L81*64) -> 3072 | B81: ="" ->  | C81: ="" ->  | D81: ="" ->  | E81: ="" ->  | F81: ="" ->  | G81: ="" ->  | H81: ="" ->  | I81: ="" ->  | J81: ="" ->  | K81: HPE 64GB 4Rx4 PC4-2933 Smart Kit | L81: 48 | M81: TS1L2-64GB | N81: TS1L2-64GB | O81: 815101-B21 | P81: =$G$8*L81 -> 33840 | X81: =IF(L81="",0,L81) -> 48 | Y81: =IF(I81="",0,I81) -> 0 | Z81: =IF(C81="",0,C81) -> 0 | AA81: =SUM(X81:Z81) -> 48
M89: 44GB8

Sheet HDD (hidden)
A1: Hard Drives
A2: DL560
A3: HP 300GB 12G SAS 15K 2.5in SC ENT HDD | C3: 10L2-HDD300GB | D3: S10L2-DL560-HDD300 | E3: 759208-B21 | F3: 140
A4: HP 1TB 6G SAS 7.2K 2.5in SC MDL HDD | C4: 10L2-HDD1TB | D4: S10L2-DL560-HDD1000 | E4: 652749-B21 | F4: 278
B5: DL560 | C5: DL560 2 | D5: DL560 3
A6: HDD max | B6: 8 | C6: 8 | D6: 8
A7: HDD 300GB Base | B7: 2 | C7: 2 | D7: 2 | E7: Hot Spare for 300GB HDD | F7: ='Lotto4 DL560 Gen10 1'!$C$112 -> No | G7: =IF(F7="Yes",1,0) -> 0 | H7: =#REF! ->  | I7: =IF(H7="Yes",1,0) ->  | J7: =#REF! ->  | K7: =IF(J7="Yes",1,0) -> 
A8: HDD 300GB Selected | B8: ='Lotto4 DL560 Gen10 1'!#REF! ->  | C8: =#REF! ->  | D8: =#REF! -> 
A9: HP 300GB 12G SAS 15K 2.5in SC ENT HDD | B9: 0 | C9: 0 | D9: 0
B10: 1 | C10: 1 | D10: 1
B11: 2 | C11: 2 | D11: 2
B12: 3 | C12: 3 | D12: 3
B13: 4 | C13: 4 | D13: 4
B14: 5 | C14: 5 | D14: 5
B15: 6 | C15: 6 | D15: 6
A16: HDD max | B16: 8 | C16: 8 | D16: 8
A17: HDD 300GB | B17: =B7+B8 ->  | C17: =C7+C8 ->  | D17: =D7+D8 -> 
A18: HDD 1TB Selected | B18: ='Lotto4 DL560 Gen10 1'!#REF! ->  | C18: =#REF! ->  | D18: =#REF! ->  | E18: Hot Spare for 1TB HDD | F18: ='Lotto4 DL560 Gen10 1'!$C$116 -> 0 | G18: =IF(F18="Yes",1,0) -> 0 | H18: =#REF! ->  | I18: =IF(H18="Yes",1,0) ->  | J18: =#REF! ->  | K18: =IF(J18="Yes",1,0) -> 
A19: HP 1TB 6G SAS 7.2K 2.5in SC MDL HDD | B19: =B$6-B$7-B$8 ->  | C19: =C$6-C$7-C$8 ->  | D19: =D$6-D$7-D$8 -> 
B20: =IF(B19-1<1,0,B19-1) -> 
A29: Hot Spare | B29: Yes
B30: No
A32: RAID Configuration | D32: HDD 300GB DL560 | F32: HDD 1TB DL560 | H32: HDD 300GB DL560 2 | J32: HDD 1TB DL560 2 | L32: HDD 300GB DL560 3 | N32: HDD 1TB DL560 3
A33: RAID Personalizzato | B33: =IF($B$109<=8,0,"") -> 0 | C33: ="" ->  | D33: =IF($G$7=0,A33,"") -> RAID Personalizzato | E33: =IF($G$7=0,C33,"") ->  | F33: =IF($G$18=0,A33,"") -> RAID Personalizzato | G33: =IF($G$18=0,C33,"") ->  | H33: =IF(I7=0,$A$33,"") ->  | I33: =IF(I7=0,$C$33,"") ->  | J33: =IF(I18=0,$A$33,"") ->  | K33: =IF(I18=0,$C$33,"") ->  | L33: =IF(K7=0,$A$33,"") ->  | M33: =IF(K7=0,$C$33,"") ->  | N33: =IF(K18=0,$A$33,"") ->  | O33: =IF(K18=0,$C$33,"") -> 
A34: RAID non Configurato (1-8 HDDs) | B34: 1 | C34: ="" ->  | D34: =IF($G$7=0,A34,"") -> RAID non Configurato (1-8 HDDs) | E34: =IF($G$7=0,C34,"") ->  | F34: =IF($G$18=0,A34,"") -> RAID non Configurato (1-8 HDDs) | G34: =IF($G$18=0,C34,"") ->  | H34: =IF(I7=0,$A$34,"") ->  | I34: =IF(I7=0,$C$34,"") ->  | J34: =IF(I18=0,$A$34,"") ->  | K34: =IF(I18=0,$C$34,"") ->  | L34: =IF(K7=0,$A$34,"") ->  | M34: =IF(K7=0,$C$34,"") ->  | N34: =IF(K18=0,$A$34,"") ->  | O34: =IF(K18=0,$C$34,"") -> 
A35: RAID 0 (1-8 HDDs) | B35: 1 | C35: ="" ->  | D35: =IF($G$7=0,A35,"") -> RAID 0 (1-8 HDDs) | E35: =IF($G$7=0,C35,"") ->  | F35: =IF($G$18=0,A35,"") -> RAID 0 (1-8 HDDs) | G35: =IF($G$18=0,C35,"") ->  | H35: =IF(I7=0,$A$35,"") ->  | I35: =IF(I7=0,$C$35,"") ->  | J35: =IF(I18=0,$A$35,"") ->  | K35: =IF(I18=0,$C$35,"") ->  | L35: =IF(K7=0,$A$35,"") ->  | M35: =IF(K7=0,$C$35,"") ->  | N35: =IF(K18=0,$A$35,"") ->  | O35: =IF(K18=0,$C$35,"") -> 
A36: RAID 1 (2 HDDs) | B36: 1 | C36: ="" ->  | D36: =IF($B$7+$B$8-$G$7=2,A36,"") ->  | E36: =IF($B$7+$B$8-$G$7=2,C36,"") ->  | F36: =IF($B$18-$G$18=2,A36,"") ->  | G36: =IF($B$18-$G$18=2,C36,"") ->  | H36: =IF($C$7+$C$8-I7=2,$A$36,"") ->  | I36: =IF($C$7+$C$8-I7=2,$C$36,"") ->  | J36: =IF($C$18-I18=2,A36,"") ->  | K36: =IF($C$18-I18=2,$C$36,"") ->  | L36: =IF($C$7+$C$8-K7=2,$A$36,"") ->  | M36: =IF($C$7+$C$8-K7=2,$C$36,"") ->  | N36: =IF($C$18-M18=2,E36,"") ->  | O36: =IF($D$18-K18=2,$C$36,"") -> 
A37: RAID 5 (da 3 a 10 HDDs) | B37: 1 | C37: ="" ->  | D37: =IF($B$7+$B$8-$G$7>=3,A37,"") ->  | E37: =IF($B$7+$B$8-$G$7>=3,C37,"") ->  | F37: =IF($B$18-$G$18>=3,A37,"") ->  | G37: =IF($B$18-$G$18>=3,C37,"") ->  | H37: =IF($C$7+$C$8-I7>=3,$A$37,"") ->  | I37: =IF($C$7+$C$8-I7>=3,$C$37,"") ->  | J37: =IF($C$18-I18>=3,$A$37,"") ->  | K37: =IF($C$18-I18>=3,$C$37,"") ->  | L37: =IF($D$7+$D$8-K7>=3,$A$37,"") ->  | M37: =IF($D$7+$D$8-K7>=3,$C$37,"") ->  | N37: =IF($D$18-K18>=3,$A$37,"") ->  | O37: =IF($D$18-K18>=3,$C$37,"") -> 
A38: RAID 10 (4-8 HDDs in pairs) | B38: 1 | C38: ="" ->  | D38: =IF($B$7+$B$8-$G$7=4,A38,"") ->  | E38: =IF($B$7+$B$8-$G$7=4,C38,"") ->  | F38: =IF($B$18-$G$18=4,A38,"") ->  | G38: =IF($B$18-$G$18=4,C38,"") ->  | H38: =IF($C$7+$C$8-I7=4,$A$38,"") ->  | I38: =IF($C$7+$C$8-I7=4,$C$38,"") ->  | J38: =IF($C$18-I18=4,$A$38,"") ->  | K38: =IF($C$18-I18=4,$C$38,"") ->  | L38: =IF($D$7+$D$8-K7=4,$A$38,"") ->  | M38: =IF($D$7+$D$8-K7=4,$C$38,"") ->  | N38: =IF($D$18-K18=4,$A$38,"") ->  | O38: =IF($D$18-K18=4,$C$38,"") -> 
A39: RAID 1+RAID 1 (2 + 2 HDDs) | B39: 1 | C39: ="" ->  | D39: =IF($B$7+$B$8-$G$7=4,A39,"") ->  | E39: =IF($B$7+$B$8-$G$7=4,C39,"") ->  | F39: =IF($B$18-$G$18=4,A39,"") ->  | G39: =IF($B$18-$G$18=4,C39,"") ->  | H39: =IF($C$7+$C$8-I7=4,$A$39,"") ->  | I39: =IF($C$7+$C$8-I7=4,$C$39,"") ->  | J39: =IF($C$18-I18=4,A39,"") ->  | K39: =IF($C$18-I18=4,$C$39,"") ->  | L39: =IF($D$7+$D$8-K7=4,$A$39,"") ->  | M39: =IF($D$7+$D$8-K7=4,$C$39,"") ->  | N39: =IF($D$18-K18=4,A39,"") ->  | O39: =IF($D$18-K18=4,$C$39,"") -> 
A40: RAID 1+RAID 5 (2 + 3-8 HDDs) | B40: 1 | C40: ="" ->  | D40: =IF($B$7+$B$8-$G$7>=5,A40,"") ->  | E40: =IF($B$7+$B$8-$G$7>=5,C40,"") ->  | F40: =IF($B$18-$G$18>=5,A40,"") ->  | G40: =IF($B$18-$G$18>=5,C40,"") ->  | H40: =IF($C$7+$C$8-I7>=5,$A$40,"") ->  | I40: =IF($C$7+$C$8-I7>=5,$C$40,"") ->  | J40: =IF($C$18-I18>=5,$A$40,"") ->  | K40: =IF($C$18-I18>=5,$C$40,"") ->  | L40: =IF($D$7+$D$8-K7>=5,$A$40,"") ->  | M40: =IF($D$7+$D$8-K7>=5,$C$40,"") ->  | N40: =IF($D$18-K18>=5,$A$40,"") ->  | O40: =IF($D$18-K18>=5,$C$40,"") -> 
A41: RAID 1 + RAID 10 (2 + 4 HDDs in pairs) | B41: 1 | C41: ="" ->  | D41: =IF($B$7+$B$8-$G$7=6,A41,"") ->  | E41: =IF($B$7+$B$8-$G$7=6,C41,"") ->  | F41: =IF($B$18-$G$18=6,A41,"") ->  | G41: =IF($B$18-$G$18=6,C41,"") ->  | H41: =IF($C$7+$C$8-I7=6,$A$41,"") ->  | I41: =IF($C$7+$C$8-I7=6,$C$41,"") ->  | J41: =IF($C$18-I18=6,A41,"") ->  | K41: =IF($C$18-I18=6,$C$41,"") ->  | L41: =IF($D$7+$D$8-M7=6,$A$41,"") ->  | M41: =IF($D$7+$D$8-M7=6,$C$41,"") ->  | N41: =IF($D$18-K18=6,A41,"") ->  | O41: =IF($D$18-K18=6,$C$41,"") -> 
A43: R730xd
A44: HP 300GB 12G SAS 15K 2.5in SC ENT HDD | C44: 10L2-HDD300GB | D44: S10L2-DL580-HDD300 | E44: 759208-B21 | F44: 140
A48: HP 1TB 6G SAS 7.2K 2.5in SC MDL HDD | C48: 10L2-HDD1TB | D48: S10L2-DL580-HDD1000 | E48: 652749-B21 | F48: 278
B49: =#REF! ->  | C49: =#REF! ->  | D49: =#REF! -> 
A50: HDD max | B50: 10 | C50: 10 | D50: 10
A51: HDD 300GB Base | B51: 2 | C51: 2 | D51: 2
A52: Hot Spare for 300GB HDD | B52: =IF(B49="Yes",1,0) ->  | C52: =IF(C49="Yes",1,0) ->  | D52: =IF(D49="Yes",1,0) -> 
A53: HDD 300GB Selected | B53: =#REF! ->  | C53: =#REF! ->  | D53: =#REF! -> 
A54: HP 300GB 12G SAS 15K 2.5in SC ENT HDD | B54: 0 | C54: 0 | D54: 0
B55: 1 | C55: 1 | D55: 1
B56: 2 | C56: 2 | D56: 2
B57: 3 | C57: 3 | D57: 3
B58: 4 | C58: 4 | D58: 4
B59: 5 | C59: 5 | D59: 5
B60: 6 | C60: 6 | D60: 6
B61: 7 | C61: 7 | D61: 7
B62: 8 | C62: 8 | D62: 8
B69: =#REF! ->  | C69: =#REF! ->  | D69: =#REF! -> 
A70: HDD max | B70: 10 | C70: 10 | D70: 10
A71: HDD 300GB | B71: =B51+B53 ->  | C71: =C51+C53 ->  | D71: =D51+D53 -> 
A72: Hot Spare for 1TB HDD | B72: =IF(B69="Yes",1,0) ->  | C72: =IF(C69="Yes",1,0) ->  | D72: =IF(D69="Yes",1,0) -> 
A73: HDD 1TB Selected | B73: =#REF! ->  | C73: =#REF! ->  | D73: =#REF! -> 
A74: HP 1TB 6G SAS 7.2K 2.5in SC MDL HDD | B74: =$B$70-$B$71-$B$73 ->  | C74: =$C$70-$C$71-$C$73 ->  | D74: =$D$70-$D$71-$D$73 -> 
B75: =IF(B74-1<1,0,B74-1) ->  | D75: =IF(D74-1<1,0,D74-1) -> 
A92: RAID Configuration | D92: HDD 300GB R730xd | F92: HDD 1TB R730xd | H92: HDD 300GB R730xd 2 | J92: HDD 1TB R730xd 2 | L92: HDD 300GB R730xd 3 | N92: HDD 1TB R730xd 3
A93: RAID Personalizzato | B93: =IF($B$109<=8,0,"") -> 0 | C93: [780-BBJC] | D93: =IF($B$52=0,A93,"") ->  | E93: =IF($B$52=0,C93,"") ->  | F93: =IF($B$72=0,A93,"") ->  | G93: =IF($B$72=0,C93,"") ->  | H93: =IF($C$52=0,A93,"") ->  | I93: =IF($C$52=0,C93,"") ->  | J93: =IF($C$72=0,A93,"") ->  | K93: =IF($C$72=0,C93,"") ->  | L93: =IF($D$52=0,A93,"") ->  | M93: =IF($D$52=0,C93,"") ->  | N93: =IF($D$72=0,A93,"") ->  | O93: =IF($D$72=0,C93,"") -> 
A94: RAID non Configurato (1-8 HDDs) | B94: 1 | C94: [780-BBJD] | D94: =IF($B$52=0,A94,"") ->  | E94: =IF($B$52=0,C94,"") ->  | F94: =IF($B$72=0,A94,"") ->  | G94: =IF($B$72=0,C94,"") ->  | H94: =IF($C$52=0,A94,"") ->  | I94: =IF($C$52=0,C94,"") ->  | J94: =IF($C$72=0,A94,"") ->  | K94: =IF($C$72=0,C94,"") ->  | L94: =IF($D$52=0,A94,"") ->  | M94: =IF($D$52=0,C94,"") ->  | N94: =IF($D$72=0,A94,"") ->  | O94: =IF($D$72=0,C94,"") -> 
A95: RAID 0 (1-8 HDDs) | B95: 1 | C95: [780-BBJF] | D95: =IF($B$52=0,A95,"") ->  | E95: =IF($B$52=0,C95,"") ->  | F95: =IF($B$72=0,A95,"") ->  | G95: =IF($B$72=0,C95,"") ->  | H95: =IF($C$52=0,A95,"") ->  | I95: =IF($C$52=0,C95,"") ->  | J95: =IF($C$72=0,A95,"") ->  | K95: =IF($C$72=0,C95,"") ->  | L95: =IF($D$52=0,A95,"") ->  | M95: =IF($D$52=0,C95,"") ->  | N95: =IF($D$72=0,A95,"") ->  | O95: =IF($D$72=0,C95,"") -> 
A96: RAID 1 (2 HDDs) | B96: 1 | C96: [780-BBJK] | D96: =IF($B$51+$B$53-$B$52=2,A96,"") ->  | E96: =IF($B$51+$B$53-$B$52=2,C96,"") ->  | F96: =IF($B$73-$B$72=2,A96,"") ->  | G96: =IF($B$73-$B$72=2,C96,"") ->  | H96: =IF($C$51+$C$53-$C$52=2,A96,"") ->  | I96: =IF($C$51+$C$53-$C$52=2,C96,"") ->  | J96: =IF($C$73-$C$72=2,A96,"") ->  | K96: =IF($C$73-$C$72=2,C96,"") ->  | L96: =IF($D$51+$D$53-$D$52=2,A96,"") ->  | M96: =IF($D$51+$D$53-$D$52=2,C96,"") ->  | N96: =IF($D$73-$D$72=2,A96,"") ->  | O96: =IF($D$73-$D$72=2,C96,"") -> 
A97: RAID 5 (da 3 a 10 HDDs) | B97: 1 | C97: [780-BBJL] | D97: =IF($B$51+$B$53-$B$52>=3,A97,"") ->  | E97: =IF($B$51+$B$53-$B$52>=3,C97,"") ->  | F97: =IF($B$73-$B$72>=3,A97,"") ->  | G97: =IF($B$73-$B$72>=3,C97,"") ->  | H97: =IF($C$51+$C$53-$C$52>=3,A97,"") ->  | I97: =IF($C$51+$C$53-$C$52>=3,C97,"") ->  | J97: =IF($C$73-$C$72>=3,A97,"") ->  | K97: =IF($C$73-$C$72>=3,C97,"") ->  | L97: =IF($D$51+$D$53-$D$52>=3,A97,"") ->  | M97: =IF($D$51+$D$53-$D$52>=3,C97,"") ->  | N97: =IF($D$73-$D$72>=3,A97,"") ->  | O97: =IF($D$73-$D$72>=3,C97,"") -> 
A98: RAID 10 (4-8 HDDs in pairs) | B98: 1 | C98: [780-BBJN] | D98: =IF($B$51+$B$53-$B$52=4,A98,"") ->  | E98: =IF($B$51+$B$53-$B$52=4,C98,"") ->  | F98: =IF($B$73-$B$72=4,A98,"") ->  | G98: =IF($B$73-$B$72=4,C98,"") ->  | H98: =IF($C$51+$C$53-$C$52=4,A98,"") ->  | I98: =IF($C$51+$C$53-$C$52=4,C98,"") ->  | J98: =IF($C$73-$C$72=4,A98,"") ->  | K98: =IF($C$73-$C$72=4,C98,"") ->  | L98: =IF($D$51+$D$53-$D$52=4,A98,"") ->  | M98: =IF($D$51+$D$53-$D$52=4,C98,"") ->  | N98: =IF($D$73-$D$72=4,A98,"") ->  | O98: =IF($D$73-$D$72=4,C98,"") -> 
A99: RAID 1+RAID 1 (2 + 2 HDDs) | B99: 1 | C99: [780-BBJO] | D99: =IF($B$51+$B$53-$B$52=4,A99,"") ->  | E99: =IF($B$51+$B$53-$B$52=4,C99,"") ->  | F99: =IF($B$73-$B$72=4,A99,"") ->  | G99: =IF($B$73-$B$72=4,C99,"") ->  | H99: =IF($C$51+$C$53-$C$52=4,A99,"") ->  | I99: =IF($C$51+$C$53-$C$52=4,C99,"") ->  | J99: =IF($C$73-$C$72=4,A99,"") ->  | K99: =IF($C$73-$C$72=4,C99,"") ->  | L99: =IF($D$51+$D$53-$D$52=4,A99,"") ->  | M99: =IF($D$51+$D$53-$D$52=4,C99,"") ->  | N99: =IF($D$73-$D$72=4,A99,"") ->  | O99: =IF($D$73-$D$72=4,C99,"") -> 
A100: RAID 1+RAID 5 (2 + 3-8 HDDs) | B100: 1 | C100: [780-BBJP] | D100: =IF($B$51+$B$53-$B$52>=5,A100,"") ->  | E100: =IF($B$51+$B$53-$B$52>=5,C100,"") ->  | F100: =IF($B$73-$B$72>=5,A100,"") ->  | G100: =IF($B$73-$B$72>=5,C100,"") ->  | H100: =IF($C$51+$C$53-$C$52>=5,A100,"") ->  | I100: =IF($C$51+$C$53-$C$52>=5,C100,"") ->  | J100: =IF($C$73-$C$72>=5,A100,"") ->  | K100: =IF($C$73-$C$72>=5,C100,"") ->  | L100: =IF($D$51+$D$53-$D$52>=5,A100,"") ->  | M100: =IF($D$51+$D$53-$D$52>=5,C100,"") ->  | N100: =IF($D$73-$D$72>=5,A100,"") ->  | O100: =IF($D$73-$D$72>=5,C100,"") -> 
A101: RAID 1 + RAID 10 (2 + 4 HDDs in pairs) | B101: 1 | C101: [780-BBJQ] | D101: =IF($B$51+$B$53-$B$52=6,A101,"") ->  | E101: =IF($B$51+$B$53-$B$52=6,C101,"") ->  | F101: =IF($B$73-$B$72=6,A101,"") ->  | G101: =IF($B$73-$B$72=6,C101,"") ->  | H101: =IF($C$51+$C$53-$C$52=6,A101,"") ->  | I101: =IF($C$51+$C$53-$C$52=6,C101,"") ->  | J101: =IF($C$73-$C$72=6,A101,"") ->  | K101: =IF($C$73-$C$72=6,C101,"") ->  | L101: =IF($D$51+$D$53-$D$52=6,A101,"") ->  | M101: =IF($D$51+$D$53-$D$52=6,C101,"") ->  | N101: =IF($D$73-$D$72=6,A101,"") ->  | O101: =IF($D$73-$D$72=6,C101,"") -> 
A108: T630
A109: 300GB 10K RPM SAS 12Gbps 2.5in Hot-plug Hard Drive,CusKit | C109: 10L1-HDD300GB-T | D109: S10L1-T630-HDD300 | E109: [400-AJOQ] | F109: 91
A110: 1TB 7.2K RPM NLSAS 6Gbps 2.5in Hot-plug Hard Drive,13G,CusKit | C110: 10L1-HDD1TB | D110: S10L1-T630-HDD1000 | E110: [400-AEFF] | F110: 296
A112: HDD max | B112: 32
A113: HDD 300GB Base | B113: 2
A114: HDD 300GB Selected | B114: =#REF! -> 
A115: 300GB 10K RPM SAS 12Gbps 2.5in Hot-plug Hard Drive,CusKit | B115: 0 | D115: Hot Spare for 300GB HDD | E115: =#REF! ->  | F115: =IF(E115="Yes",1,0) -> 
B116: 1
B117: 2
B118: 3
B119: 4
B120: 5
B121: 6
B122: 7
B123: 8
B124: 9
B125: 10
B126: 11
B127: 12
B128: 13
B129: 14
B130: 15
B131: 16
B132: 17
B133: 18
B134: 19
B135: 20
B136: 21
B137: 22
B138: 23
B139: 24
B140: 25
B141: 26
B142: 27
B143: 28
B144: 29
B145: 30
A146: HDD max | B146: 32
A147: HDD 300GB | B147: =B113+B114 -> 
A148: HDD 1TB Selected | B148: =#REF! ->  | D148: Hot Spare for 1TB HDD | E148: =#REF! ->  | F148: =IF(E148="Yes",1,0) -> 
A149: 1TB 7.2K RPM NLSAS 6Gbps 2.5in Hot-plug Hard Drive,13G,CusKit | B149: =$B$146-$B$147-$B$148 -> 
B150: =IF(B149-1<1,0,B149-1) -> 
B158: =IF(B157-1<1,0,B157-1) -> 
A181: RAID Configuration | D181: HDD 300GB | F181: HDD 1TB
A182: C1 - No RAID for H330 (1-8 HDDs) | B182: =IF($B$109<=8,0,"") -> 0 | C182: [780-BBJC] | D182: =IF($F$115=0,A182,"") ->  | E182: =IF($F$115=0,C182,"") ->  | F182: =IF($F$148=0,A182,"") ->  | G182: =IF($F$148=0,C182,"") -> 
A183: C10 - Unconfigured RAID for H330 (1-8 HDDs) | B183: 1 | C183: [780-BBJD] | D183: =IF($F$115=0,A183,"") ->  | E183: =IF($F$115=0,C183,"") ->  | F183: =IF($F$148=0,A183,"") ->  | G183: =IF($F$148=0,C183,"") -> 
A184: C2 - RAID 0 for H330 (1-8 HDDs) | B184: 1 | C184: [780-BBJF] | D184: =IF($F$115=0,A184,"") ->  | E184: =IF($F$115=0,C184,"") ->  | F184: =IF($F$148=0,A184,"") ->  | G184: =IF($F$148=0,C184,"") -> 
A185: C3 - RAID 1 for H330 (2 HDDs) | B185: 1 | C185: [780-BBJK] | D185: =IF($B$113+$B$114-$F$115=2,A185,"") ->  | E185: =IF($B$113+$B$114-$F$115=2,C185,"") ->  | F185: =IF($B$148-$F$148=2,A185,"") ->  | G185: =IF($B$148-$F$148=2,C185,"") -> 
A186: C4 - RAID 5 for H330 (3-8 HDDs) | B186: 1 | C186: [780-BBJL] | D186: =IF($B$113+$B$114-$F$115>=3,A186,"") ->  | E186: =IF($B$113+$B$114-$F$115>=3,C186,"") ->  | F186: =IF($B$148-$F$148>=3,A186,"") ->  | G186: =IF($B$148-$F$148>=3,C186,"") -> 
A187: C6 - RAID 10 forH330 (4-8 HDDs in pairs) | B187: 1 | C187: [780-BBJN] | D187: =IF($B$113+$B$114-$F$115=4,A187,"") ->  | E187: =IF($B$113+$B$114-$F$115=4,C187,"") ->  | F187: =IF($B$148-$F$148=4,A187,"") ->  | G187: =IF($B$148-$F$148=4,C187,"") -> 
A188: C7 - RAID 1+RAID 1 for H330 (2 + 2 HDDs) | B188: 1 | C188: [780-BBJO] | D188: =IF($B$113+$B$114-$F$115=4,A188,"") ->  | E188: =IF($B$113+$B$114-$F$115=4,C188,"") ->  | F188: =IF($B$148-$F$148=4,A188,"") ->  | G188: =IF($B$148-$F$148=4,C188,"") -> 
A189: C8 - RAID 1+RAID 5 for H330 (2 + 3-8 HDDs) | B189: 1 | C189: [780-BBJP] | D189: =IF($B$113+$B$114-$F$115>=5,A189,"") ->  | E189: =IF($B$113+$B$114-$F$115>=5,C189,"") ->  | F189: =IF($B$148-$F$148>=5,A189,"") ->  | G189: =IF($B$148-$F$148>=5,C189,"") -> 
A190: C9 - RAID 1+RAID 10 for H330 (2 + 4 HDDs in pairs) | B190: 1 | C190: [780-BBJQ] | D190: =IF($B$113+$B$114-$F$115=6,A190,"") ->  | E190: =IF($B$113+$B$114-$F$115=6,C190,"") ->  | F190: =IF($B$148-$F$148=6,A190,"") ->  | G190: =IF($B$148-$F$148=6,C190,"") -> 

Sheet Servizi Opzionali (hidden)
A1: Warranty Upgrades | G1: Protezione dei dati - Keep Your Hard Drive
A2: DL560
A3: None | B3: ="" ->  | C3: ="" ->  | D3: ="" ->  | E3: ="" ->  | F3: ="" ->  | I3: =IF(($A$22=$A$12),"",IF($A$8=$A$3,I13,IF($A$8=$A$4,I14,IF($A$8=$A$5,I15)))) ->  | J3: =IF(($A$22=$A$12),"",IF($A$8=$A$3,J13,IF($A$8=$A$4,J14,IF($A$8=$A$5,J15)))) ->  | K3: =IF(($A$22=$A$12),"",IF($A$8=$A$3,K13,IF($A$8=$A$4,K14,IF($A$8=$A$5,K15)))) ->  | L3: =IF(($A$22=$A$12),"",IF($A$8=$A$3,L13,IF($A$8=$A$4,L14,IF($A$8=$A$5,L15)))) ->  | M3: =IF(($A$22=$A$12),"",IF($A$8=$A$3,M13,IF($A$8=$A$4,M14,IF($A$8=$A$5,M15)))) -> 
A4: 4Yr Warranty upgrade | B4: 1 | C4: 10L2-SO-12M | D4: S10L2-DL560-S-12M | E4: ="" ->  | F4: 350
A5: 5Yr Warranty upgrade | B5: 1 | C5: 10L2-SO-24M | D5: S10L2-DL560-S-24M | E5: ="" ->  | F5: 700
A7: Estensione Garanzia Selezionata
A8: ='Lotto4 DL560 Gen10 1'!$B$201 -> None | C8: DL560
A9: =#REF! ->  | C9: DL560 2
A10: =#REF! ->  | C10: DL560 3
A12: None | B12: ="" ->  | C12: ="" ->  | D12: ="" ->  | E12: ="" ->  | F12: ="" ->  | H12: None
A13: =IF($A$8=$A$3,H13,IF($A$8=$A$4,H14,IF($A$8=$A$5,H15))) -> 3Yr Data Protection - Keep Your Hard Drive | B13: 1 | C13: 10L2-SO-HDD | D13: S10L2-DL560-S-HDD | E13: =IF($A$8=$A$3,L13,IF($A$8=$A$4,L14,IF($A$8=$A$5,L15))) ->  | F13: 300 | H13: 3Yr Data Protection - Keep Your Hard Drive | I13: 1 | J13: 10L2-SO-HDD | K13: S10L2-DL560-S-HDD | L13: ="" ->  | M13: 300
A14: None | B14: ="" ->  | C14: ="" ->  | D14: ="" ->  | E14: ="" ->  | F14: ="" ->  | H14: 4Yr Data Protection - Keep Your Hard Drive | I14: =I13 -> 1 | J14: =J13 -> 10L2-SO-HDD | K14: =K13 -> S10L2-DL560-S-HDD | L14: ="" ->  | M14: =M13 -> 300
A15: =IF(A9=A3,H13,IF(A9=A4,H14,IF(A9=A5,H15))) ->  | B15: 1 | C15: 10L2-SO-HDD | D15: S10L2-DL560-S-HDD | E15: =IF(A9=A3,L13,IF(A9=A4,L14,IF(A9=A5,L15))) ->  | F15: 300 | H15: 5Yr Data Protection - Keep Your Hard Drive | I15: =I13 -> 1 | J15: =J13 -> 10L2-SO-HDD | K15: =K13 -> S10L2-DL560-S-HDD | L15: ="" ->  | M15: =M13 -> 300
A16: None | B16: ="" ->  | C16: ="" ->  | D16: ="" ->  | E16: ="" ->  | F16: ="" -> 
A17: =IF(A10=A3,H13,IF(A10=A4,H14,IF(A10=A5,H15))) ->  | B17: 1 | C17: 10L2-SO-HDD | D17: S10L2-DL560-S-HDD | E17: =IF(A10=A3,L13,IF(A10=A4,L14,IF(A10=A5,L15))) ->  | F17: 300
A21: Protezione dei dati Selezionata
A22: ='Lotto4 DL560 Gen10 1'!B204 -> None
A24: Servizio Specialistico di System and Network Management per sistema opertivo Windows, erogato on site. | B24: 1 | C24: 10L2-SO-WIN | D24: S10L1-R630-S-WIN | F24: 200
A25: Servizio Specialistico di System and Network Management per sistema opertivo Linux, erogato on site. | B25: 1 | C25: 10L2-SO-LINUX | D25: S10L1-R630-S-LINUX | F25: 200
A27: None | B27: ="" ->  | C27: ="" ->  | D27: ="" ->  | E27: ="" ->  | F27: ="" -> 
A28: =IF('Lotto4 DL560 Gen10 1'!$C$16>=5,H28,"None") -> None | B28: =IF('Lotto4 DL560 Gen10 1'!$C$16>=5,I28,"") ->  | C28: =IF('Lotto4 DL560 Gen10 1'!$C$16>=5,J28,"") ->  | D28: =IF('Lotto4 DL560 Gen10 1'!$C$16>=5,K28,"") ->  | E28: =IF('Lotto4 DL560 Gen10 1'!$C$16>=5,L28,"") ->  | F28: =IF('Lotto4 DL560 Gen10 1'!$C$16>=5,M28,"") ->  | H28: Servizi di manutenzione preventiva | I28: 1 | J28: 10L1-SO-PREV | K28: S10L1-T630-S-PREV | M28: 200
A30: Warranty Upgrades | G30: Protezione dei dati - Keep Your Hard Drive
A31: DL580
A32: None | B32: ="" ->  | C32: ="" ->  | D32: ="" ->  | E32: ="" ->  | F32: ="" ->  | I32: =IF(($A$22=$A$12),"",IF($A$8=$A$3,I42,IF($A$8=$A$4,I43,IF($A$8=$A$5,I44)))) ->  | J32: =IF(($A$22=$A$12),"",IF($A$8=$A$3,J42,IF($A$8=$A$4,J43,IF($A$8=$A$5,J44)))) ->  | K32: =IF(($A$22=$A$12),"",IF($A$8=$A$3,K42,IF($A$8=$A$4,K43,IF($A$8=$A$5,K44)))) ->  | L32: =IF(($A$22=$A$12),"",IF($A$8=$A$3,L42,IF($A$8=$A$4,L43,IF($A$8=$A$5,L44)))) ->  | M32: =IF(($A$22=$A$12),"",IF($A$8=$A$3,M42,IF($A$8=$A$4,M43,IF($A$8=$A$5,M44)))) -> 
A33: Estensione della manutenzione in garanzia per ulteriori 12 mesi | B33: 1 | C33: TS2L4-4Y | D33: TS2L4-4Y | E33: HA537A1 | F33: 300
A34: Estensione della manutenzione in garanzia per ulteriori 24 mesi | B34: 1 | C34: TS2L4-5Y | D34: TS2L4-5Y | E34: HA538A1 | F34: 600
A36: Estensione Garanzia Selezionata
A37: =#REF! ->  | C37: DL580
A38: =#REF! ->  | C38: DL580 2
A39: =#REF! ->  | C39: DL580 3
A41: None | B41: ="" ->  | C41: ="" ->  | D41: ="" ->  | E41: ="" ->  | F41: ="" ->  | H41: None
A42: =IF($A$37=$A$32,H42,IF($A$37=$A$33,H43,IF($A$37=$A$34,H44))) ->  | B42: 1 | C42: 10L2-SO-HDD | D42: S10L2-DL580-S-HDD | E42: =IF($A$37=$A$32,L42,IF($A$37=$A$33,L43,IF($A$37=$A$34,L44))) ->  | F42: 300 | H42: 3Yr Data Protection - Keep Your Hard Drive | I42: 1 | J42: 10L2-SO-HDD | K42: S10L2-DL580-S-HDD | L42: [733-10057] | M42: 300
A43: None | B43: ="" ->  | C43: ="" ->  | D43: ="" ->  | E43: ="" ->  | F43: ="" ->  | H43: 4Yr Data Protection - Keep Your Hard Drive | I43: =I42 -> 1 | J43: =J42 -> 10L2-SO-HDD | K43: =K42 -> S10L2-DL580-S-HDD | L43: [733-10058] | M43: =M42 -> 300
A44: =IF(A38=A32,H42,IF(A38=A33,H43,IF(A38=A34,H44))) ->  | B44: 1 | C44: 10L2-SO-HDD | D44: S10L2-DL580-S-HDD | E44: =IF(A38=A32,L42,IF(A38=A33,L43,IF(A38=A34,L44))) ->  | F44: 300 | H44: 5Yr Data Protection - Keep Your Hard Drive | I44: =I42 -> 1 | J44: =J42 -> 10L2-SO-HDD | K44: =K42 -> S10L2-DL580-S-HDD | L44: [733-10059] | M44: =M42 -> 300
A45: None | B45: ="" ->  | C45: ="" ->  | D45: ="" ->  | E45: ="" ->  | F45: ="" -> 
A46: =IF(A39=A32,H42,IF(A39=A33,H43,IF(A39=A34,H44))) ->  | B46: 1 | C46: 10L2-SO-HDD | D46: S10L2-DL580-S-HDD | E46: =IF(A39=A32,L42,IF(A39=A33,L43,IF(A39=A34,L44))) ->  | F46: 300
A50: Protezione dei dati Selezionata
A51: =#REF! -> 
A53: Servizio Specialistico di System and Network Management per sistema opertivo Windows, erogato on site. | B53: 1 | C53: 10L2-SO-WIN | D53: S10L1-R730xd-S-WIN | F53: 200
A54: Servizio Specialistico di System and Network Management per sistema opertivo Linux, erogato on site. | B54: 1 | C54: 10L2-SO-LINUX | D54: S10L1-R730xd-S-LINUX | F54: 200
A56: None | B56: ="" ->  | C56: ="" ->  | D56: ="" ->  | E56: ="" ->  | F56: ="" -> 
A57: =IF(#REF!>=5,H57,"None") ->  | B57: =IF(#REF!>=5,I57,"") ->  | C57: =IF(#REF!>=5,J57,"") ->  | D57: =IF(#REF!>=5,K57,"") ->  | E57: =IF(#REF!>=5,L57,"") ->  | F57: =IF(#REF!>=5,M57,"") ->  | H57: Servizi di manutenzione preventiva | I57: 1 | J57: 10L2-SO-PREV | K57: S10L2-DL580-S-PREV | M57: 200
A60: Warranty Upgrades | G60: Protezione dei dati - Keep Your Hard Drive
A61: T630
A62: None | B62: ="" ->  | C62: ="" ->  | D62: ="" ->  | E62: ="" ->  | F62: ="" ->  | I62: =IF(($A$22=$A$12),"",IF($A$8=$A$3,I70,IF($A$8=$A$4,I71,IF($A$8=$A$5,I72)))) ->  | J62: =IF(($A$22=$A$12),"",IF($A$8=$A$3,J70,IF($A$8=$A$4,J71,IF($A$8=$A$5,J72)))) ->  | K62: =IF(($A$22=$A$12),"",IF($A$8=$A$3,K70,IF($A$8=$A$4,K71,IF($A$8=$A$5,K72)))) ->  | L62: =IF(($A$22=$A$12),"",IF($A$8=$A$3,L70,IF($A$8=$A$4,L71,IF($A$8=$A$5,L72)))) ->  | M62: =IF(($A$22=$A$12),"",IF($A$8=$A$3,M70,IF($A$8=$A$4,M71,IF($A$8=$A$5,M72)))) -> 
A63: 4Yr Warranty upgrade | B63: 1 | C63: 10L1-SO-12M-T | D63: S10L1-T630-S-12M | E63: ="" ->  | F63: 175
A64: 5Yr Warranty upgrade | B64: 1 | C64: 10L1-SO-24M-T | D64: S10L1-T630-S-24M | E64: ="" ->  | F64: 350
A66: Estensione Garanzia Selezionata
A67: =#REF! -> 
A69: None | B69: ="" ->  | C69: ="" ->  | D69: ="" ->  | E69: ="" ->  | F69: ="" ->  | H69: None
A70: =IF($A$67=$A$62,H70,IF($A$67=$A$63,H71,IF($A$67=$A$64,H72))) ->  | B70: 1 | C70: 10L1-SO-HDD | D70: S10L1-T630-S-HDD | E70: =IF($A$67=$A$62,L70,IF($A$67=$A$63,L71,IF($A$67=$A$64,L72))) ->  | F70: 150 | H70: 3Yr Data Protection - Keep Your Hard Drive | I70: 1 | J70: 10L1-SO-HDD | K70: S10L1-T630-S-HDD | L70: [733-10057] | M70: 150
H71: 4Yr Data Protection - Keep Your Hard Drive | I71: =I70 -> 1 | J71: =J70 -> 10L1-SO-HDD | K71: =K70 -> S10L1-T630-S-HDD | L71: [733-10058] | M71: =M70 -> 150
H72: 5Yr Data Protection - Keep Your Hard Drive | I72: =I70 -> 1 | J72: =J70 -> 10L1-SO-HDD | K72: =K70 -> S10L1-T630-S-HDD | L72: [733-10059] | M72: =M70 -> 150
A74: Protezione dei dati Selezionata
A75: =#REF! -> 
A77: Servizio Specialistico di System and Network Management per sistema opertivo Windows, erogato on site. | B77: 1 | C77: 10L1-SO-WIN | D77: S10L1-T630-S-WIN | F77: 193
A78: Servizio Specialistico di System and Network Management per sistema opertivo Linux, erogato on site. | B78: 1 | C78: 10L1-SO-LINUX | D78: S10L1-T630-S-LINUX | F78: 193
A80: None | B80: ="" ->  | C80: ="" ->  | D80: ="" ->  | E80: ="" ->  | F80: ="" -> 
A81: =IF(#REF!>=5,H81,"None") ->  | B81: =IF(#REF!>=5,I81,"") ->  | C81: =IF(#REF!>=5,J81,"") ->  | D81: =IF(#REF!>=5,K81,"") ->  | E81: =IF(#REF!>=5,L81,"") ->  | F81: =IF(#REF!>=5,M81,"") ->  | H81: Servizi di manutenzione preventiva | I81: 1 | J81: 10L1-SO-PREV | K81: S10L1-T630-S-PREV | M81: 193
